Workbook

Sheet General overview
A1: Milling as a Productive Use activity
A2: General Guidance
A3: 1 | B3: The workbook aims to assist developers of Solar PV based mini-grids (the "Mini Grid Developer") and owners of the productive use enterprise such as CBOs, rural entrepreneurs or mini-grid developers (the "Mill Owner") in determining the financial feasibility of milling as a productive use activity
A4: 2 | B4: The Workbook is split into two 'views'/tabs
A5: 2a | B5: The 'Mini Grid Developer' worksheet allows for the calculations associated with upgrading a mini-grid system to accommodate milling equipment. It computes key financial metrics that can assist the Developer in assessing the impact of integrating milling equipment on the mini-grid economics for a specific site. The worksheet has two default scenarios. 'Base Case' is the base case of the mini-grid system without milling equipment. 'Upgrade Case' includes the milling equipment
A6: 2b | B6: The 'Mill Owner' worksheet allows for the calculations associated with converting an existing mill to be compatible with a mini-grid or purchasing an electric milling machine. It allows the Enterprise Owner to perform a detailed financial analysis of the milling activity through cash flow modeling and computation of key financial metrics. The Mill Owner has the optionality to perform the analysis under two scenarios 1. Milling as a Service and 2. Milling as a Product.
A7: 3 | B7: Assumptions, Calculations and Outputs are presented on the same tabs
A8: 4 | B8: Please read the 'Instructions and Legend' tab before completing the workbook
A10: Mini Grid Developer worksheet | E10: Mill Owner
A11: Structure | E11: Structure
A12: 1. LCOE Analysis | E12: 1. Key Investment Metrics
A13: 2. Key Investment Metrics | E13: 2. NPV sensitivity analysis
A14: 3. Cash Flow Analysis | F14: 2.1 Milling as a Service
A15: 4. Assumptions and Calculations | F15: 2.2 Milling as a product
B16: 4.1 CAPEX | E16: 3. Cash Flow Analysis
B17: 4.2 Operating Expenditure | F17: 3.1 Milling as a Service
B18: 4.3 Energy Production | F18: 3.2 Milling as a product
E19: 4. Assumptions and calculations
F20: 4.1. Revenue
F21: 4.2 Inputs
F22: 4.3. Energy consumption/Flour Processing
G23: 4.3.1 Milling as a Service
G24: 4.3.2 Milling as a product
F25: 4.4. Operations and Maintenance
F26: 4.5 Depreciation
F27: 4.6 Interest and Principal Loan Repayments

Sheet Instructions and Legend
A1: Developer Worksheet
A3: Instructions
A5: 1 | B5: Please refer to the legend below for information on which cells to fill out in the model
A6: =A5+1 -> 2 | B6: Units of measurement are set to default in the analysis. The formulas are coded based on the assumption that all values are entered in the default units
A7: =A6+1 -> 3 | B7: Input values in all grey highlighted cells. All other calculations and output values in the worksheet will populate automatically. If certain categories do not apply, leave the cell blank
A8: 4 | B8: See Column I for User Instructions
A10: Legend
A11: Black Text | D11: This is an output cell. Cell includes formula and should not be edited
A12: Blue Highlighted Text | D12: This is an input cell. Cell is hard coded and can be edited
A13: Base Case Scenario | D13: Mini-Grid system without milling equipment
A14: Upgrade Case Scenario | D14: Mini-Grid system with milling equipment
A16: Enterprise Owner (conversion) Worksheet
A18: Instructions
A20: 1 | B20: Please refer to the legend below for information on which cells to fill out in the model.
A21: =A20+1 -> 2 | B21: Units of measurement are set to default in the analysis. The formulas are coded based on the assumption that all values are entered in the default units
A22: =A21+1 -> 3 | B22: Input values in all grey highlighted cells. All other calculations and output values in the worksheet will populate automatically. If certain categories do not apply, leave the cell blank
A23: 4 | B23: Please note that both revenues and expenses should be positive (expenses will be deducted as part of built in formulas)
A24: 5 | B24: See Column S for User Instructions
A26: Legend
A27: Black Text | D27: This is an output cell. Cell includes formula and should not be edited
A28: Blue Highlighted Text | D28: This is an input cell. Cell is hard coded and can be edited
A29: Milling as a Service | D29: Mini-grid site with converted milling machine, providing Milling only as a service
A30: Milling as aProduct | D30: Mini-grid site with converted milling machine, providing flour as product
A32: Enterprise Owner (new) Worksheet
A34: Instructions
A36: 1 | B36: Please refer to the legend below for information on which cells to fill out in the model.
A37: =A36+1 -> 2 | B37: Units of measurement are set to default in the analysis. The formulas are coded based on the assumption that all values are entered in the default units
A38: =A37+1 -> 3 | B38: Input values in all grey highlighted cells. All other calculations and output values in the worksheet will populate automatically. If certain categories do not apply, leave the cell blank
A39: 4 | B39: Please note that both revenues and expenses should be positive (expenses will be deducted as part of built in formulas)
A41: Legend
A42: Black Text | D42: This is an output cell. Cell includes formula and should not be edited
A43: Blue Highlighted Text | D43: This is an input cell. Cell is hard coded and can be edited
A44: Milling as a Service | D44: Mini-grid site with new milling machine, providing Milling only as a service
A45: Milling as aProduct | D45: Mini-grid site with new milling machine, providing flour as product

Sheet Mini-grid Developer view
A1: Mini Grid Developer View
A3: 1. LCOE Analysis | L3: User Reference
B4: Units | D4: Base Case | G4: Upgrade Case
A5: CAPEX | B5: $ | D5: =D94*D58*1000 -> 0 | G5: =G94*G58*1000 -> 0
A6: Present Value of Operating Expense | B6: $ | D6: =NPV(D12,D71:D90) -> 0 | G6: =NPV(G12,G71:G90) -> 0
A7: Total Energy Production | B7: kWhs | D7: =SUM(D99:D118) -> 0 | G7: =SUM(G99:G118) -> 0
A8: LCOE | B8: $/kWh | D8: =SUM(D5:D6)/D7 ->  | G8: =SUM(G5:G6)/G7 ->  | L8: LCOE" is the levelized cost of energy and is a proxy measure that captures the overall economic impact of the ice-making plant on the mini-grid system. If the LCOE decreases from the Base Case to Upgrade Case Scenario, then the developer should proceed with connecting the ice-making plant to the mini-grid system. A decreasing LCOE is an indication of the positive marginal benefit of adding an ice-making plant to the economics of the mini-grid system
A9: Margin | B9: % | L9: Profit margin should be selected based on the following considerations (i) approval of resulting tariff by ERC (ii) desired Equity IRR. Changing this input has direct impact on the equity IRR as the Tariff is used to calculated cash flows available to equity investors.
A10: Tariff | B10: $/kWh | D10: =D8*(1+D9) ->  | G10: =G8*(1+G9) -> 
A12: Discount Rate | B12: % | D12: 0.1 | G12: 0.1 | L12: For calculating the present value of operating expense in the LCOE calculation. Discount Rate can be based on the developer's cost of equity financing
A14: 2. Key Investment Metrics
B15: Units | D15: =$D$4 -> Base Case | G15: =$G$4 -> Upgrade Case
A16: Equity IRR | B16: % | D16: =IRR(D24:D44) ->  | G16: =IRR(G24:G44) -> 
A17: Payback Period | B17: Years | D17: =D18+D19 ->  | G17: =G18+G19 -> 
B18: Years | D18: =COUNTIF(E24:E44, "<0") -> 0 | G18: =COUNTIF(H24:H44, "<0") -> 0
B19: Fraction | D19: =INDEX(F24:F44,COUNTIF(E24:E44,"<0")+1) ->  | G19: =INDEX(I24:I44,COUNTIF(H24:H44,"<0")+1) -> 
A20: Grant Financing | B20: % | L20: Portion of capital structure that is financed by grants or similar incentives intended to subsidize the CAPEX of the mini-grid system
A22: 3. Cash Flow Analysis | L22: Cash flow projection is developed for the purpose of calculating IRR. Cash flows are calculated as follows: (Tariff x Energy Production) - (Operating Expense) - (CAPEX)
A23: Projected Cash Flows for IRR Calculation | D23: =$D$4 -> Base Case | E23: Cumulative CF | F23: Faction calc | G23: =$G$4 -> Upgrade Case | H23: Cumulative CF | I23: Faction calc
A24: 0 | B24: $ | D24: =-D5*(1-D20) -> 0 | E24: =SUM($D$24:D24) -> 0 | F24: =IF(E24<0, "n/m", ABS(E24/D25)) ->  | G24: =-G5*(1-G20) -> 0 | H24: =SUM($G$24:G24) -> 0 | I24: =IF(H24<0, "n/m", ABS(H24/H25)) -> 
A25: 1 | B25: $ | D25: =(D$10*D99)-D71 ->  | E25: =SUM($D$24:D25) ->  | F25: =IF(E25<0, "n/m", ABS(E25/D26)) ->  | G25: =(G$10*G99)-G71 ->  | H25: =SUM($G$24:G25) -> 
A26: 2 | B26: $ | E26: =SUM($D$24:D26) ->  | H26: =SUM($G$24:G26) -> 
A27: 3 | B27: $ | E27: =SUM($D$24:D27) ->  | H27: =SUM($G$24:G27) -> 
A28: 4 | B28: $ | E28: =SUM($D$24:D28) ->  | H28: =SUM($G$24:G28) -> 
A29: 5 | B29: $ | E29: =SUM($D$24:D29) ->  | H29: =SUM($G$24:G29) -> 
A30: 6 | B30: $ | E30: =SUM($D$24:D30) ->  | H30: =SUM($G$24:G30) -> 
A31: 7 | B31: $ | E31: =SUM($D$24:D31) ->  | H31: =SUM($G$24:G31) -> 
A32: 8 | B32: $ | E32: =SUM($D$24:D32) ->  | H32: =SUM($G$24:G32) -> 
A33: 9 | B33: $ | E33: =SUM($D$24:D33) ->  | H33: =SUM($G$24:G33) -> 
A34: 10 | B34: $ | E34: =SUM($D$24:D34) ->  | H34: =SUM($G$24:G34) -> 
A35: 11 | B35: $ | E35: =SUM($D$24:D35) ->  | H35: =SUM($G$24:G35) -> 
A36: 12 | B36: $ | E36: =SUM($D$24:D36) ->  | H36: =SUM($G$24:G36) -> 
A37: 13 | B37: $ | E37: =SUM($D$24:D37) ->  | H37: =SUM($G$24:G37) -> 
A38: 14 | B38: $ | E38: =SUM($D$24:D38) ->  | H38: =SUM($G$24:G38) -> 
A39: 15 | B39: $ | E39: =SUM($D$24:D39) ->  | H39: =SUM($G$24:G39) -> 
A40: 16 | B40: $ | E40: =SUM($D$24:D40) ->  | H40: =SUM($G$24:G40) -> 
A41: 17 | B41: $ | E41: =SUM($D$24:D41) ->  | H41: =SUM($G$24:G41) -> 
A42: 18 | B42: $ | E42: =SUM($D$24:D42) ->  | H42: =SUM($G$24:G42) -> 
A43: 19 | B43: $ | E43: =SUM($D$24:D43) ->  | H43: =SUM($G$24:G43) -> 
A44: 20 | B44: $ | E44: =SUM($D$24:D44) ->  | H44: =SUM($G$24:G44) ->  | I44: =IF(H44<0, "n/m", ABS(H44/I45)) -> 
A46: 4. Assumptions and calculations
A48: 4.1 CAPEX | L48: The default template includes the most commonly used categorizations. The user can add or consolidate categories based on the specific needs.
B49: Units | D49: =$D$4 -> Base Case | G49: =$G$4 -> Upgrade Case
A50: Generation System | B50: $/Wdc
A51: Battery Storage | B51: $/Wdc
A52: Gensets | B52: $/Wdc
A53: Civil Works & Installation | B53: $/Wdc
A54: Distribution | B54: $/Wdc
A55: Metering & Reticulation | B55: $/Wdc
A56: Int'l and Local Freight | B56: $/Wdc
A57: Import Fees & Duties | B57: $/Wdc
A58: Total Construction Cost | B58: $/Wdc | D58: =SUM(D50:D57) -> 0 | G58: =SUM(G50:G57) -> 0
A60: 4.2 Operating Expense | L60: The default template includes the most commonly used categorizations. User can add or consolidate categories based on the specific needs.
B61: Units | D61: =$D$4 -> Base Case | G61: =$G$4 -> Upgrade Case
A62: O&M - Solar PV | B62: $/Wdc
A63: O&M - Storage System | B63: $/Wdc
A64: O&M - Diesel Generator | B64: $/Wdc
A65: Diesel Generator - Fuel Cost | B65: $/Wdc
A66: Sales, General & Administrative including Billing (SG&A) | B66: $/Wdc
A67: Insurance | B67: %
A68: OPEX escalation per year | B68: %
A70: Projected Annual OPEX | D70: =$D$4 -> Base Case | G70: =$G$4 -> Upgrade Case
A71: 1 | B71: $ | D71: =SUM((SUM($D$62:$D$66)*$D$94)*1000,($D$67*$D$5))*(1+($D$68))^$A71 -> 0 | G71: =SUM((SUM($G$62:$G$66)*$G$94)*1000,($G$67*$G$5))*(1+($G$68))^$A71 -> 0
A72: 2 | B72: $ | D72: 0 | G72: 0
A73: 3 | B73: $ | D73: 0 | G73: 0
A74: 4 | B74: $ | D74: 0 | G74: 0
A75: 5 | B75: $ | D75: 0 | G75: 0
A76: 6 | B76: $ | D76: 0 | G76: 0
A77: 7 | B77: $ | D77: 0 | G77: 0
A78: 8 | B78: $ | D78: 0 | G78: 0
A79: 9 | B79: $ | D79: 0 | G79: 0
A80: 10 | B80: $ | D80: 0 | G80: 0
A81: 11 | B81: $ | D81: 0 | G81: 0
A82: 12 | B82: $ | D82: 0 | G82: 0
A83: 13 | B83: $ | D83: 0 | G83: 0
A84: 14 | B84: $ | D84: 0 | G84: 0
A85: 15 | B85: $ | D85: 0 | G85: 0
A86: 16 | B86: $ | D86: 0 | G86: 0
A87: 17 | B87: $ | D87: 0 | G87: 0
A88: 18 | B88: $ | D88: 0 | G88: 0
A89: 19 | B89: $ | D89: 0 | G89: 0
A90: 20 | B90: $ | D90: 0 | G90: 0
A92: 4.3 Energy Production
A93: Assumption | B93: Units | D93: =$D$4 -> Base Case | G93: =$G$4 -> Upgrade Case
A94: System Size, Designed | B94: kWdc | L94: Input should be based on result of developer's internal production modeling. The developer should ensure that the sizing of the system is consistent with the specifications and energy consumption profile of the ice-making plant as shown in the 'Enterprise Owner view' worksheet.
A95: Annual Production | B95: kWh | L95: Input should be based on result of developer's internal production modeling. The developer should ensure that the sizing of the system is consistent with the specifications and energy consumption profile of the ice-making plant as shown in the 'Enterprise Owner view' worksheet.
A96: Annual PV Degradation | B96: % | L96: Annual degradation in the production capacity of the solar PV panels
A98: Projected Annual Production | D98: =$D$4 -> Base Case | G98: =$G$4 -> Upgrade Case
A99: 1 | B99: kWh | D99: =D95 -> 0 | G99: =G95 -> 0
A100: 2 | B100: kWh | D100: =$D$99*(1-$D$96)^(A100-$A$99) -> 0 | G100: =$G$99*(1-$G$96)^(A100-$A$99) -> 0
A101: 3 | B101: kWh | D101: 0 | G101: 0
A102: 4 | B102: kWh | D102: 0 | G102: 0
A103: 5 | B103: kWh | D103: 0 | G103: 0
A104: 6 | B104: kWh | D104: 0 | G104: 0
A105: 7 | B105: kWh | D105: 0 | G105: 0
A106: 8 | B106: kWh | D106: 0 | G106: 0
A107: 9 | B107: kWh | D107: 0 | G107: 0
A108: 10 | B108: kWh | D108: 0 | G108: 0
A109: 11 | B109: kWh | D109: 0 | G109: 0
A110: 12 | B110: kWh | D110: 0 | G110: 0
A111: 13 | B111: kWh | D111: 0 | G111: 0
A112: 14 | B112: kWh | D112: 0 | G112: 0
A113: 15 | B113: kWh | D113: 0 | G113: 0
A114: 16 | B114: kWh | D114: 0 | G114: 0
A115: 17 | B115: kWh | D115: 0 | G115: 0
A116: 18 | B116: kWh | D116: 0 | G116: 0
A117: 19 | B117: kWh | D117: 0 | G117: 0
A118: 20 | B118: kWh | D118: 0 | G118: 0

Sheet Mill Owner view
A1: Mill Owner view
A3: 1. Key Investment Metrics | S3: User Reference
B4: Units | C4: 1. Service | D4: 2. Product
A5: Total Investment | B5: $ | C5: =C250 -> 0 | D5: =D250 -> 0
A6: 10 year NPV | B6: $ | C6: =NPV(C12, B83:K83) ->  | D6: =NPV(D12, B113:K113) -> 
A7: Payback period | B7: Years | C7: =IF(C8=0,"<1",C8+C9) -> <1 | D7: =IF(D8=0,"<1",D8+D9) -> <1
A8: Years | C8: =COUNTIF(B98:K98, "<0") -> 0 | D8: =COUNTIF(B114:K114, "<0") -> 0
A9: Months (expressed as decimal) | C9: =INDEX(B99:K99,COUNTIF(B98:K98,"<0")+1) -> 0 | D9: =INDEX(B115:K115,COUNTIF(B114:K114,"<0")+1) -> 0
A11: Assumptions
A12: Discount rate | B12: % | S12: Discount rate is an input for the NPV calculation. It should be based on the cost of capital for the Enterprise Owner. The interest rate on debt financing can be used as a proxy for cost of capital. In which case, the discount rate can be set to equal the interest rate under 4.6
A13: Tax rate | B13: % | S13: Tax rate should be consistent with local regulations
A14: Reamining useful life | B14: Years | S14: Input the remaining years of operation for the milling machine as at the time of calculation. Note than any Remaining Useful Life of less than 10 years will result in the cessation of all cash flows (apart from those related to Debt) as it is assumed that the Machine is no longer productive (and is not replaced)
A16: 2. NPV sensitivity analysis | S16: Sensitivity analysis is designed to show the impact of Net Present Value (NPV) based on changes to the assumped values for key variables. In this case quantity of inputs processed/flour produced and the Energy Tariff. This should be used as a tool for Enterprises to show their 'room for error'
A18: Legend
B19: <$0
B20: $0.001k-50k
B21: $50.001k-$100k
B22: $100.001k-150k
B23: $150k+
A26: 2.1 Milling as a Service
C27: Daily input processed (kg per day)
B28: =C6 ->  | C28: 100 | D28: 200 | E28: 300 | F28: 400 | G28: 500 | H28: 600
A29: Tariff ($/kWh) | B29: 0.3
B30: 0.4
B31: 0.5
B32: 0.6
B33: 0.7
B34: 0.8
B35: 0.9
B36: 1
B37: 1.1
B38: 1.2
B39: 1.3
A41: 2.2 Milling as a Product
C42: Daily flour produced (kg per day)
B43: =D6 ->  | C43: 100 | D43: 200 | E43: 300 | F43: 400 | G43: 500 | H43: 600
A44: Tariff ($/kWh) | B44: 0.3
B45: 0.4
B46: 0.5
B47: 0.6
B48: 0.7
B49: 0.8
B50: 0.9
B51: 1
B52: 1.1
B53: 1.2
B54: 1.3
A57: 3. Cash Flow Analysis | S57: Cash flow projection is developed for the purpose of calculating IRR. Cash flows are calculated as follows: (Tariff x Energy Production) - (Operating Expense) - (CAPEX)
A59: 3.1 Milling as a service | B59: 1 | C59: 2 | D59: 3 | E59: 4 | F59: 5 | G59: 6 | H59: 7 | I59: 8 | J59: 9 | K59: 10 | L59: Total
A60: REVENUE
A61: Milling Machine Service | B61: =C128 ->  | C61: =C129 ->  | D61: =C130 ->  | E61: =C131 ->  | F61: =C132 ->  | G61: =C133 ->  | H61: =C134 ->  | I61: =C135 ->  | J61: =C136 ->  | K61: =C137 ->  | L61: =SUM(B61:K61) -> 
A62: Total Revenue | B62: =B61 ->  | L62: =SUM(B62:K62) -> 
A64: OPEX
A65: Energy consumption | B65: =N200 -> 0 | C65: =N201 -> 0 | D65: =N202 -> 0 | E65: =N203 -> 0 | F65: =N204 -> 0 | G65: =N205 -> 0 | H65: =N206 -> 0 | I65: =N207 -> 0 | J65: =N208 -> 0 | K65: =N209 -> 0 | L65: =SUM(B65:K65) -> 0
A66: Operations and maintainance | B66: =C233 -> 0 | C66: =C234 -> 0 | D66: =C235 -> 0 | E66: =C236 -> 0 | F66: =C237 -> 0 | G66: =C238 -> 0 | H66: =C239 -> 0 | I66: =C240 -> 0 | J66: =C241 -> 0 | K66: =C242 -> 0 | L66: =SUM(B66:K66) -> 0
A67: Total OPEX | B67: =SUM(B65:B66) -> 0 | C67: =SUM(C65:C66) -> 0 | D67: 0 | E67: 0 | F67: 0 | G67: 0 | H67: 0 | I67: 0 | J67: 0 | K67: 0 | L67: =SUM(B67:K67) -> 0
A69: EBITDA | B69: =B62-B67 ->  | L69: =SUM(B69:K69) -> 
A71: Depreciation | B71: =D255 -> 0 | C71: =D256 -> 0 | D71: =D257 -> 0 | E71: =D258 -> 0 | F71: =D259 -> 0 | G71: =D260 -> 0 | H71: =D261 -> 0 | I71: =D262 -> 0 | J71: =D263 -> 0 | K71: =D264 -> 0 | L71: =SUM(B71:K71) -> 0
A72: Interest repayments | B72: =TRANSPOSE(G276:G285) -> 0 | C72: 0 | D72: 0 | E72: 0 | F72: 0 | G72: 0 | H72: 0 | I72: 0 | J72: 0 | K72: 0 | L72: =SUM(B72:K72) -> 0
A73: EBT | B73: =B69-B71-B72 ->  | L73: =SUM(B73:K73) -> 
H74: `
A75: Tax | B75: =IF(B73<=0,0,(B73*$C$13)) ->  | C75: =IF(C73<=0,0,(C73*$C$13)) ->  | L75: =SUM(B75:K75) -> 
A76: AFTER TAX INCOME | B76: =B73-B75 ->  | L76: =SUM(B76:K76) -> 
A77: Depreciation (+) | B77: =B71 -> 0 | C77: 0 | D77: 0 | E77: 0 | F77: 0 | G77: 0 | H77: 0 | I77: 0 | J77: 0 | K77: 0 | L77: =SUM(B77:K77) -> 0
A79: CAPEX - Upfront Deposit | B79: =C269 -> 0 | L79: =SUM(B79:K79) -> 0
A80: Total CapEX | B80: =B79 -> 0 | C80: =C79 -> 0 | D80: 0 | E80: 0 | F80: 0 | G80: 0 | H80: 0 | I80: 0 | J80: 0 | K80: 0 | L80: =SUM(B80:K80) -> 0
A82: Principal loan repayments | B82: =TRANSPOSE(F276:F285) -> 0 | C82: 0 | D82: 0 | E82: 0 | F82: 0 | G82: 0 | H82: 0 | I82: 0 | J82: 0 | K82: 0 | L82: =SUM(B82:K82) -> 0
A83: NET CASH FLOW | B83: ` | C83: =C76+C77-C80-C82 ->  | L83: =SUM(B83:K83) -> 
A84: Cumulative cash flow | B84: =SUM(B83) -> 0 | C84: =SUM($B$83:C83) ->  | D84: =SUM($B$83:D83) ->  | E84: =SUM($B$83:E83) ->  | F84: =SUM($B$83:F83) ->  | G84: =SUM($B$83:G83) ->  | H84: =SUM($B$83:H83) ->  | I84: =SUM($B$83:I83) ->  | J84: =SUM($B$83:J83) ->  | K84: =SUM($B$83:K83) -> 
A85: Fraction calculations | C85: =IF(C84<0,"n/m",ABS(B84/C83)) ->  | D85: =IF(D84<0,"n/m",ABS(C84/D83)) -> 
A87: 3.2 Milling as a product | B87: 1 | C87: 2 | D87: 3 | E87: 4 | F87: 5 | G87: 6 | H87: 7 | I87: 8 | J87: 9 | K87: 10 | L87: Total
A88: REVENUE
A89: Flour sales | B89: =D128 ->  | C89: =D129 ->  | D89: =D130 ->  | E89: =D131 ->  | F89: =D132 ->  | G89: =D133 ->  | H89: =D134 ->  | I89: =D135 ->  | J89: =D136 ->  | K89: =D137 ->  | L89: =SUM(B89:K89) -> 
A90: Total Revenue | B90: =B89 ->  | L90: =SUM(B90:K90) -> 
A92: OPEX
A93: Inputs | B93: =D148 -> 0 | C93: =D149 -> 0 | D93: =D150 -> 0 | E93: =D151 -> 0 | F93: =D152 -> 0 | G93: =D153 -> 0 | H93: =D154 -> 0 | I93: =D155 -> 0 | J93: =D156 -> 0 | K93: =D157 -> 0 | L93: =SUM(B93:K93) -> 0
A94: Energy consumption | B94: =L215 -> 0 | C94: =L216 -> 0 | D94: =L217 -> 0 | E94: =L218 -> 0 | F94: =L219 -> 0 | G94: =L220 -> 0 | H94: =L221 -> 0 | I94: =L222 -> 0 | J94: =L223 -> 0 | K94: =L224 -> 0 | L94: =SUM(B94:K94) -> 0
A95: Operations and maintainance | B95: =D233 -> 0 | C95: =D234 -> 0 | D95: =D235 -> 0 | E95: =D236 -> 0 | F95: =D237 -> 0 | G95: =D238 -> 0 | H95: =D239 -> 0 | I95: =D240 -> 0 | J95: =D241 -> 0 | K95: =D242 -> 0 | L95: =SUM(B95:K95) -> 0
A96: Total OPEX | B96: =SUM(B93:B95) -> 0 | C96: =SUM(C93:C95) -> 0 | D96: 0 | E96: 0 | F96: 0 | G96: 0 | H96: 0 | I96: 0 | J96: 0 | K96: 0 | L96: =SUM(B96:K96) -> 0
A98: EBITDA | B98: =B90-B96 ->  | L98: =SUM(B98:K98) -> 
A100: Depreciation | B100: =TRANSPOSE(G255:G264) -> 0 | C100: 0 | D100: 0 | E100: 0 | F100: 0 | G100: 0 | H100: 0 | I100: 0 | J100: 0 | K100: 0 | L100: =SUM(B100:K100) -> 0
A101: Interest repayments | B101: =TRANSPOSE(L276:L285) -> 0 | C101: 0 | D101: 0 | E101: 0 | F101: 0 | G101: 0 | H101: 0 | I101: 0 | J101: 0 | K101: 0 | L101: =SUM(B101:K101) -> 0
A102: EBT | B102: =B98-B100-B101 -> 
A104: Tax | B104: =IF(B102<=0,0,(B102*$D$13)) ->  | L104: =SUM(B104:K104) -> 
A105: AFTER TAX INCOME | B105: =B102-B104 ->  | L105: =SUM(B105:K105) -> 
A106: Depreciation (+) | B106: =B100 -> 0 | C106: 0 | D106: 0 | E106: 0 | F106: 0 | G106: 0 | H106: 0 | I106: 0 | J106: 0 | K106: 0 | L106: =SUM(B106:K106) -> 0
A109: CAPEX - Upfront Deposit | B109: =D269 -> 0 | L109: =SUM(B109:K109) -> 0
A110: Total CapEX | B110: =B109 -> 0 | C110: 0 | D110: 0 | E110: 0 | F110: 0 | G110: 0 | H110: 0 | I110: 0 | J110: 0 | K110: 0 | L110: =SUM(B110:K110) -> 0
A112: Principal loan repayments | B112: =TRANSPOSE(K276:K285) -> 0 | C112: 0 | D112: 0 | E112: 0 | F112: 0 | G112: 0 | H112: 0 | I112: 0 | J112: 0 | K112: 0 | L112: =SUM(B112:K112) -> 0
A113: NET CASH FLOW | B113: =B105+B106-B110-B112 ->  | L113: =SUM(B113:K113) -> 
A114: Cumulative cash flow | B114: =SUM(B113) ->  | C114: =SUM($B$113:C113) ->  | D114: =SUM($B$113:D113) ->  | E114: =SUM($B$113:E113) ->  | F114: =SUM($B$113:F113) ->  | G114: =SUM($B$113:G113) ->  | H114: =SUM($B$113:H113) ->  | I114: =SUM($B$113:I113) ->  | J114: =SUM($B$113:J113) ->  | K114: =SUM($B$113:K113) -> 
A115: Fraction calculations | C115: =IF(C114<0,"n/m",ABS(B114/C113)) ->  | D115: =IF(D114<0,"n/m",ABS(C114/D113)) ->  | E115: =IF(E114<0,"n/m",ABS(D114/E113)) ->  | F115: =IF(F114<0,"n/m",ABS(E114/F113)) ->  | G115: =IF(G114<0,"n/m",ABS(F114/G113)) ->  | H115: =IF(H114<0,"n/m",ABS(G114/H113)) ->  | I115: =IF(I114<0,"n/m",ABS(H114/I113)) ->  | J115: =IF(J114<0,"n/m",ABS(I114/J113)) ->  | K115: =IF(K114<0,"n/m",ABS(J114/K113)) -> 
A117: 4. Assumptions and Calculations | S117: Categories of assumptions and calculatons are presented in the same order as the Cash Flow Analysis
A119: 4.1 Revenue | S119: Revenue from the Mill are a function of (for Milling as a Service) Quantity of inputs processed and service price charge per kg of processed input annd (for Milling as a Product) quantity of outputs from procesing and flour sale price
A120: Assumptions | B120: Unit | C120: Service | D120: Product
A121: Milling cost (Fixed + Variable) | B121: $/kg | C121: =(C5/SUM(K200:L200))+(L67/SUM(K210:L210)) ->  | D121: =(D5/SUM(O225:P225)+(L96/SUM(O225:P225))) ->  | S121: Milling cost is the sum of fixed and variable cost p/kg. Fixed cost p/kg is CAPEX divided by the total quantity of inputs processed/flour produced over the milling machines lifetime. Variable cost p/kg is OPEX divided by the total quantity of inputs processed/flour produced over the milling machines lifetime
A122: Maize profit margin | B122: % | S122: Profit mark-up to be set by Enterprise Owner. In assessing the appropriate mark-up the Enterprise Owner should take into consideration prevailing market price for Milling as a Service/Product
A123: Maize fee | B123: $/kg | C123: =MIN(0.05,C121*(1+C122)) ->  | D123: =MIN(0.35,D121*(1+D122)) ->  | S123: Max. Maize Fee set to default based on prevailing market prices. Note that if a max fee is not set, then the sensitivity analysis will not be accurate
A124: Sorghum profit margin | B124: % | S124: Profit mark-up to be set by Enterprise Owner. In assessing the appropriate mark-up the Enterprise Owner should take into consideration prevailing market price for Milling as a Service/Product
A125: Sorghum fee | B125: $/kg | C125: =MIN(0.1,C121*(1+C124)) ->  | D125: =MIN(0.65,D121*(1+D124)) ->  | S125: Max. Sorghum Fee set to default based on prevailing market prices. Note that if a max fee is not set, then the sensitivity analysis will not be accurate
A127: Projected revenue | B127: Unit | C127: Service | D127: Product
A128: 1 | B128: $ | C128: =($C$123*K200)+($C$125*L200) ->  | D128: =($D$123*O215)+($D$125*P215) -> 
A129: 2 | B129: $
A130: 3 | B130: $
A131: 4 | B131: $
A132: 5 | B132: $
A133: 6 | B133: $
A134: 7 | B134: $
A135: 8 | B135: $
A136: 9 | B136: $
A137: 10 | B137: $
A138: Total | C138: =SUM(C128:C137) ->  | D138: =SUM(D128:D137) -> 
A140: 4.2 Inputs | S140: 4.2 assumptions apply only to Scenario 2 (Milling as a Product). Other crops may be used in lieu of Maize or Sorghum
A141: Assumptions | B141: Unit | C141: Service | D141: Product
A142: Maize as % of total inputs purchased | B142: %
A143: Sorghum as % of total inputs purchased | B143: % | D143: =1-D142 -> 1
A144: Raw Maize | B144: $/kg
A145: Raw Sorghum | B145: $/kg
A147: Projected input | B147: Unit | C147: Service | D147: Product
A148: 1 | B148: $ | D148: =IF(A148>$D$14,0,(I215*$D$142*$D$144)+(I215*$D$143*$D$145)) -> 0
A149: 2 | B149: $ | D149: 0
A150: 3 | B150: $ | D150: 0
A151: 4 | B151: $ | D151: 0
A152: 5 | B152: $ | D152: 0
A153: 6 | B153: $ | D153: 0
A154: 7 | B154: $ | D154: 0
A155: 8 | B155: $ | D155: 0
A156: 9 | B156: $ | D156: 0
A157: 10 | B157: $ | D157: 0
A158: Total | C158: =SUM(C148:C157) -> 0 | D158: =SUM(D148:D157) -> 0
A160: 4.3 Energy consumption/Flour Processing | S160: 4.3 is the key driver of returns and OPEX for the financials
B161: Units | C161: Service | D161: Product
A162: Number of machines | B162: # | S162: Calculations allow only for multiples of the same sized machine. For example, it does not allow variation in kWh between a Enterprise Owner's first and second milling machine.
A164: Milling machine size | B164: HP
A165: HP: KW | B165: HP/kW
A166: Power demand per hour of use per machine | B166: kWh | C166: =(C164*C165) -> 0 | D166: =(D164*D165) -> 0
A168: Hourly processing capacity per machine | B168: kg / hr | S168: This template assumes that all crops (i.e. maize and sorghum) are processed at same rate with milling machine
A169: Utilization | B169: hrs / day | C169: =C173/C168/C162 ->  | D169: =D173/D168/D162 ->  | S169: A proxy for Milling machine demand and a key assumption. Please ensure this is as accurate as possible.
A170: Operating days per month | B170: days | S170: A proxy for Milling machine demand and a key assumption. Please ensure this is as accurate as possible.
A171: Total Operating hours per month (for all machines) | B171: hrs / month | C171: =C169*C170*C162 ->  | D171: =D169*D170*D162 -> 
A173: Total Input processed per day per machine | B173: kg / day | S173: Best estimate of inputs processed during a day. Combined with row 170 to determine operating hours per day.
A174: Total Input processed per month (for all machines) | B174: kg / month | C174: =C173*C170*C162 -> 0 | D174: =D173*D170*D162 -> 0
A176: Raw input to flour throughput | B176: % | C176: NA | S176: The quantity of flour produced expressed as a proportion of quantityt of input processed (e.g. A throughput of 80% applies if a 1kg Maize input becomes 800g of Maize flour after processing
A178: Total Flour produced per day | B178: kg / day | C178: NA | D178: =D173*D162*D176 -> 0 | S178: Applies to only Milling as a Product scenario
A179: Total Flour produced per month | B179: kg / month | C179: NA | D179: =D178*D170 -> 0 | S179: Applies to only Milling as a Product scenario
A182: High Season utilisation | B182: % | S182: Assumptions from Row 182 to 187 are intended to utilisation of the milling machine based on fish supply seasonality. E.g. Less inputs are processed in low season. 100% Utilisation means that the milling machine is producing at its full capacity (as calculated in Row 175) for the period of the particular season
A183: High Season months p.a | B183: months
A184: Mid Season utilisation | B184: %
A185: Mid Season months p.a. | B185: months
A186: Low Season utilisation | B186: %
A187: Low Season months p.a | B187: months
A188: Month check | C188: =IF(SUM(C183,C185, C187)>12, ">12 months", "ok") -> ok | D188: =IF(SUM(D183,D185, D187)>12, ">12 months", "ok") -> ok | S188: The Sum of Rows 183, 185 and 187 should equal 12 (months of the year of operation) or less (if the Milling Plant is not utilised for extended periods of the year)
A190: Tariff | B190: $ kWh
A192: Maize as % of total processing | B192: %
A193: Sorghum as % of total processing | B193: % | C193: =1-C192 -> 1 | D193: =1-D192 -> 1
A195: Sorghum % of mixed flour | S195: All sorghum processed as part of Milling as a Product goes towards sold mixed flour. Total mixed flour produced = total sorghum flour processed/sorgum % of mixed flour.
A197: 4.3.1 Projected energy consumption - Milling as a Service
C198: High season processing | E198: Mid season processing | G198: Low season processing | I198: Annual processing | K198: Annual processed | M198: Total energy consumed
B199: Unit | C199: kg | D199: hrs | E199: kg | F199: hrs | G199: kg | H199: hrs | I199: kg | J199: hrs | K199: Maize | L199: Sorghum | M199: kWh | N199: $
A200: 1 | B200: $ | C200: =IF(A200>$C$14, 0, ($C$174*$C$182*$C$183)) -> 0 | D200: =IF(A200>$C$14, 0, C$182*$C$171*$C$183) -> 0 | E200: =IF(A200>$C$14, 0, ($C$174*$C$184)*$C$185) -> 0 | F200: =IF(A200>$C$14, 0, C$184*$C$171*$C$185) -> 0 | G200: =IF(A200>$C$14, 0, ($C$174*$C$186)*$C$187) -> 0 | H200: =IF(A200>$C$14, 0, C$186*$C$171*$C$187) -> 0 | I200: =SUM(C200,E200,G200) -> 0 | J200: 0 | K200: =$C$192*I200 -> 0 | L200: =I200-K200 -> 0 | M200: =J200*$C$166 -> 0 | N200: =M200*$C$190 -> 0
A201: 2 | B201: $ | C201: 0 | D201: 0 | E201: 0 | F201: 0 | G201: 0 | H201: 0 | I201: 0 | J201: 0 | K201: =$C$192*I201 -> 0 | L201: =I201-K201 -> 0 | M201: =J201*$C$166 -> 0 | N201: =M201*$C$190 -> 0
A202: 3 | B202: $ | C202: 0 | D202: 0 | E202: 0 | F202: 0 | G202: 0 | H202: 0 | I202: 0 | J202: 0 | K202: 0 | L202: 0 | M202: 0 | N202: 0
A203: 4 | B203: $ | C203: 0 | D203: 0 | E203: 0 | F203: 0 | G203: 0 | H203: 0 | I203: 0 | J203: 0 | K203: 0 | L203: 0 | M203: 0 | N203: 0
A204: 5 | B204: $ | C204: 0 | D204: 0 | E204: 0 | F204: 0 | G204: 0 | H204: 0 | I204: 0 | J204: 0 | K204: 0 | L204: 0 | M204: 0 | N204: 0
A205: 6 | B205: $ | C205: 0 | D205: 0 | E205: 0 | F205: 0 | G205: 0 | H205: 0 | I205: 0 | J205: 0 | K205: 0 | L205: 0 | M205: 0 | N205: 0
A206: 7 | B206: $ | C206: 0 | D206: 0 | E206: 0 | F206: 0 | G206: 0 | H206: 0 | I206: 0 | J206: 0 | K206: 0 | L206: 0 | M206: 0 | N206: 0
A207: 8 | B207: $ | C207: 0 | D207: 0 | E207: 0 | F207: 0 | G207: 0 | H207: 0 | I207: 0 | J207: 0 | K207: 0 | L207: 0 | M207: 0 | N207: 0
A208: 9 | B208: $ | C208: 0 | D208: 0 | E208: 0 | F208: 0 | G208: 0 | H208: 0 | I208: 0 | J208: 0 | K208: 0 | L208: 0 | M208: 0 | N208: 0
A209: 10 | B209: $ | C209: 0 | D209: 0 | E209: 0 | F209: 0 | G209: 0 | H209: 0 | I209: 0 | J209: 0 | K209: 0 | L209: 0 | M209: 0 | N209: 0
A210: Total | C210: =SUM(C200:C209) -> 0 | D210: 0 | E210: 0 | F210: 0 | G210: 0 | H210: 0 | I210: 0 | J210: 0 | K210: 0 | L210: 0 | M210: 0 | N210: =SUM(N200:N209) -> 0
A212: 4.3.2 Projected energy consumption - Milling as a Product
C213: High season flour production | E213: Mid season flour production | G213: Low season flour production | I213: Total annual flour production | K213: Total energy consumed | M213: Annual processed | O213: Final product
B214: Unit | C214: kg pa | D214: hours pa | E214: kg pa | F214: hours pa | G214: kg pa | H214: hours pa | I214: kg pa | J214: hours pa | K214: kWh | L214: $ pa | M214: Maize (kg) | N214: Sorghum (kg) | O214: Maize (kg) | P214: Mixed (kg)
A215: 1 | B215: $ | C215: =IF(A215>$D$14, 0, ($D$179*$D$182)*$D$183) -> 0 | D215: =IF(A215>$D$14, 0, D$182*$D$171*$D$183) -> 0 | E215: =IF(A215>$D$14, 0, ($D$179*$D$184)*$D$185) -> 0 | F215: =IF(A215>$D$14, 0, D$184*$D$171*$D$185) -> 0 | G215: =IF(A215>$D$14, 0, ($D$179*$D$186)*$D$187) -> 0 | H215: =IF(A215>$D$14, 0, D$186*$D$171*$D$187) -> 0 | I215: =SUM(C215,E215,G215) -> 0 | J215: =SUM(D215,F215,H215) -> 0 | K215: =J215*$D$166 -> 0 | L215: =K215*$D$190 -> 0 | M215: =I215*$D$192 -> 0 | N215: =I215-M215 -> 0 | O215: =(M215+N215)-P215 -> 0 | P215: =N215+(N215*(1-$D$195)) -> 0
A216: 2 | B216: $ | C216: 0 | D216: 0 | E216: 0 | F216: 0 | G216: 0 | H216: 0 | I216: =SUM(C216,E216,G216) -> 0 | J216: 0 | K216: 0 | L216: 0 | M216: 0 | N216: 0 | O216: =(M216+N216)-P216 -> 0 | P216: 0
A217: 3 | B217: $ | C217: 0 | D217: 0 | E217: 0 | F217: 0 | G217: 0 | H217: 0 | I217: 0 | J217: 0 | K217: 0 | L217: 0 | M217: 0 | N217: 0 | O217: 0 | P217: 0
A218: 4 | B218: $ | C218: 0 | D218: 0 | E218: 0 | F218: 0 | G218: 0 | H218: 0 | I218: 0 | J218: 0 | K218: 0 | L218: 0 | M218: 0 | N218: 0 | O218: 0 | P218: 0
A219: 5 | B219: $ | C219: 0 | D219: 0 | E219: 0 | F219: 0 | G219: 0 | H219: 0 | I219: 0 | J219: 0 | K219: 0 | L219: 0 | M219: 0 | N219: 0 | O219: 0 | P219: 0
A220: 6 | B220: $ | C220: 0 | D220: 0 | E220: 0 | F220: 0 | G220: 0 | H220: 0 | I220: 0 | J220: 0 | K220: 0 | L220: 0 | M220: 0 | N220: 0 | O220: 0 | P220: 0
A221: 7 | B221: $ | C221: 0 | D221: 0 | E221: 0 | F221: 0 | G221: 0 | H221: 0 | I221: 0 | J221: 0 | K221: 0 | L221: 0 | M221: 0 | N221: 0 | O221: 0 | P221: 0
A222: 8 | B222: $ | C222: 0 | D222: 0 | E222: 0 | F222: 0 | G222: 0 | H222: 0 | I222: 0 | J222: 0 | K222: 0 | L222: 0 | M222: 0 | N222: 0 | O222: 0 | P222: 0
A223: 9 | B223: $ | C223: 0 | D223: 0 | E223: 0 | F223: 0 | G223: 0 | H223: 0 | I223: 0 | J223: 0 | K223: 0 | L223: 0 | M223: 0 | N223: 0 | O223: 0 | P223: 0
A224: 10 | B224: $ | C224: 0 | D224: 0 | E224: 0 | F224: 0 | G224: 0 | H224: 0 | I224: 0 | J224: 0 | K224: 0 | L224: 0 | M224: 0 | N224: 0 | O224: 0 | P224: 0
A225: Total | C225: =SUM(C215:C224) -> 0 | D225: 0 | E225: 0 | F225: 0 | G225: 0 | H225: 0 | I225: 0 | J225: 0 | K225: =SUM(K215:K224) -> 0 | L225: =SUM(L215:L224) -> 0 | M225: 0 | N225: 0 | O225: 0 | P225: 0
A227: 4.4 Operations and Maintenance (O&M) | S227: The default template includes the most commonly used categorizations. User can add or consolidate categories based on the specific needs though adjustments.
A228: Assumptions | B228: Unit | C228: Service | D228: Product
A229: Monthly Maintenance costs per machine | B229: $ | S229: Estimated monthly cost of servicing of the milling machine.
A230: No of machines | B230: # | C230: =C162 -> 0 | D230: =D162 -> 0
A232: Projected O&M | B232: Unit | C232: Service | D232: Product
A233: 1 | B233: $ | C233: =IF(A233>$C$14, 0, $C$229*$C$230*12) -> 0 | D233: =IF(A233>$D$14, 0, $D$229*$D$230*12) -> 0
A234: 2 | B234: $ | C234: 0 | D234: 0
A235: 3 | B235: $ | C235: 0 | D235: 0 | H235: s
A236: 4 | B236: $ | C236: 0 | D236: 0
A237: 5 | B237: $ | C237: 0 | D237: 0
A238: 6 | B238: $ | C238: 0 | D238: 0
A239: 7 | B239: $ | C239: 0 | D239: 0
A240: 8 | B240: $ | C240: 0 | D240: 0
A241: 9 | B241: $ | C241: 0 | D241: 0
A242: 10 | B242: $ | C242: 0 | D242: 0
A243: Total | C243: =SUM(C233:C242) -> 0 | D243: =SUM(D233:D242) -> 0
... 39 more rows

Sheet Sheet1 (hidden)
B3: ='€ per type of cust.'!D3:D4 -> Site | C3: kWp | D3: Gen Cost | E3: Gen Cost / kWp | F3: Dist. Cost | G3: Dist. Cost / kWp
B4: ='€ per type of cust.'!D5 -> Mudoriko + Bwiri A + Bwiri B | C4: ='Detailed Summary'!P5 ->  | D4: ='€ per type of cust.'!V5 -> 41935.06667 | E4: =D4/C4 ->  | F4: ='€ per type of cust.'!BS5 -> 78045.56 | G4: =F4/C4 -> 
B5: ='€ per type of cust.'!D6 -> Buyende | C5: ='Detailed Summary'!P6 ->  | D5: ='€ per type of cust.'!V6 -> 41935.06667 | E5: =D5/C5 ->  | F5: ='€ per type of cust.'!BS6 -> 51077.08 | G5: =F5/C5 -> 
B6: ='€ per type of cust.'!D7 -> Dirako + Rukada | C6: ='Detailed Summary'!P7 ->  | D6: ='€ per type of cust.'!V7 -> 41935.06667 | F6: ='€ per type of cust.'!BS7 -> 69975.74
B7: ='€ per type of cust.'!D8 -> Mukhwayo | C7: ='Detailed Summary'!P8 ->  | D7: ='€ per type of cust.'!V8 -> 38490.30256 | F7: ='€ per type of cust.'!BS8 -> 43565.42
B8: ='€ per type of cust.'!D9 -> Mufumu | C8: ='Detailed Summary'!P10 ->  | D8: ='€ per type of cust.'!V9 -> 35045.53846 | F8: ='€ per type of cust.'!BS9 -> 53729.72
B9: ='€ per type of cust.'!D10 -> Makhurisi | C9: ='Detailed Summary'!P11 ->  | D9: ='€ per type of cust.'!V10 -> 20967.53333 | F9: ='€ per type of cust.'!BS10 -> 24560.38
B10: ='€ per type of cust.'!D11 -> Mumbaka + Mukhondo B + Mugonga | C10: ='Detailed Summary'!P12 ->  | D10: ='€ per type of cust.'!V11 -> 35045.53846 | F10: ='€ per type of cust.'!BS11 -> 45590.82
B11: ='€ per type of cust.'!D12 -> Namagumba | C11: ='Detailed Summary'!P13 ->  | D11: ='€ per type of cust.'!V12 -> 20967.53333 | F11: ='€ per type of cust.'!BS12 -> 28297.56
B12: ='€ per type of cust.'!D13 -> Akadetewai | C12: ='Detailed Summary'!P14 ->  | D12: ='€ per type of cust.'!V13 -> 20967.53333 | F12: ='€ per type of cust.'!BS13 -> 32454.74
B13: ='€ per type of cust.'!D14 -> Syamakanga / Imprezza | C13: ='Detailed Summary'!P15 ->  | D13: ='€ per type of cust.'!V14 -> 20967.53333 | F13: ='€ per type of cust.'!BS14 -> 28844.66
B14: Total or Median | C14: =SUM(C4:C13) ->  | D14: =SUM(D4:D13) -> 318256.7128 | E14: =MEDIAN(E4:E13) ->  | F14: =SUM(F4:F13) -> 456141.68 | G14: =MEDIAN(G4:G13) -> 

Sheet Summary_v2 (hidden)
B2: Description | E2: Fix cost | F2: COST PER TYPE OF CUSTOMER (TOTAL)
F3: T1 | G3: T2 | H3: T3 | I3: T4 | J3: T5 | K3: Shop | L3: School | M3: Big School | N3: Clinic | O3: Public services | P3: Low PEU | Q3: Wel. | R3: Carp. | S3: Posho. | T3: Public Lighting | X3: Summary_v1 | AA3: % | AB3: EUR/kWp
B4: Generation System | F4: ='€ per type of cust.'!W15+'€ per type of cust.'!AL15 ->  | G4: ='€ per type of cust.'!X15+'€ per type of cust.'!AM15 ->  | H4: ='€ per type of cust.'!Y15+'€ per type of cust.'!AN15 ->  | I4: ='€ per type of cust.'!Z15+'€ per type of cust.'!AO15 ->  | J4: ='€ per type of cust.'!AA15+'€ per type of cust.'!AP15 ->  | K4: ='€ per type of cust.'!AB15+'€ per type of cust.'!AQ15 ->  | L4: ='€ per type of cust.'!AC15+'€ per type of cust.'!AR15 ->  | M4: ='€ per type of cust.'!AD15+'€ per type of cust.'!AS15 ->  | N4: ='€ per type of cust.'!AE15+'€ per type of cust.'!AT15 ->  | O4: ='€ per type of cust.'!AF15+'€ per type of cust.'!AU15 ->  | P4: ='€ per type of cust.'!AG15+'€ per type of cust.'!AV15 ->  | Q4: ='€ per type of cust.'!AH15+'€ per type of cust.'!AW15 ->  | R4: ='€ per type of cust.'!AI15+'€ per type of cust.'!AX15 ->  | S4: ='€ per type of cust.'!AJ15+'€ per type of cust.'!AY15 ->  | T4: ='€ per type of cust.'!AK15+'€ per type of cust.'!AZ15 ->  | U4: =SUM(F4:T4) ->  | V4: =U4/SUM('Eq. UsageRate '!$E$15:$R$15) ->  | W4: =SUM(U4:U6) ->  | X4: 318256.7128 | Y4: =X4-U4 ->  | AA4: =U4/$U$16 ->  | AB4: =U4/$AB$17 -> 
B5: Battery storage | F5: ='€ per type of cust.'!F15 -> 5663.158389 | G5: ='€ per type of cust.'!G15 -> 8360.954263 | H5: ='€ per type of cust.'!H15 -> 17818.53149 | I5: ='€ per type of cust.'!I15 -> 25385.86595 | J5: ='€ per type of cust.'!J15 -> 16653.60285 | K5: ='€ per type of cust.'!K15 -> 307.7773356 | L5: ='€ per type of cust.'!L15 -> 54.06654367 | M5: ='€ per type of cust.'!M15 -> 246.9773429 | N5: ='€ per type of cust.'!N15 -> 48.24101802 | O5: ='€ per type of cust.'!O15 -> 3670.294042 | P5: ='€ per type of cust.'!P15 -> 1544.710569 | Q5: ='€ per type of cust.'!Q15 -> 94.91448481 | R5: ='€ per type of cust.'!R15 -> 742.9224883 | S5: ='€ per type of cust.'!S15 -> 0 | T5: ='€ per type of cust.'!T15 -> 25156.1564 | U5: 105748.1732 | V5: =U5/SUM('Eq. UsageRate '!$E$15:$R$15) -> 57.50308491 | X5: 109854.8 | Y5: 4106.626842 | AA5: =U5/$U$16 -> 
B6: Gensets | F6: ='€ per type of cust.'!BC15 -> 0 | G6: ='€ per type of cust.'!BD15 -> 0 | H6: ='€ per type of cust.'!BE15 -> 0 | I6: ='€ per type of cust.'!BF15 -> 0 | J6: ='€ per type of cust.'!BG15 -> 0 | K6: ='€ per type of cust.'!BH15 -> 0 | L6: ='€ per type of cust.'!BI15 -> 0 | M6: ='€ per type of cust.'!BJ15 -> 0 | N6: ='€ per type of cust.'!BK15 -> 0 | O6: ='€ per type of cust.'!BL15 -> 0 | P6: ='€ per type of cust.'!BM15 -> 0 | Q6: ='€ per type of cust.'!BN15 -> 0 | R6: ='€ per type of cust.'!BO15 -> 0 | S6: ='€ per type of cust.'!BP15 -> 0 | T6: ='€ per type of cust.'!BQ15 -> 0 | U6: 0 | X6: 0 | Y6: 0
B7: Civil works & installation | C7: Generation | D7: Batteries | F7: ='€ per type of cust.'!CT15 -> 814.3752582 | G7: ='€ per type of cust.'!CU15 -> 1203.665823 | H7: ='€ per type of cust.'!CV15 -> 2473.893582 | I7: ='€ per type of cust.'!CW15 -> 3515.001313 | J7: ='€ per type of cust.'!CX15 -> 2337.769539 | K7: ='€ per type of cust.'!CY15 -> 45.38804827 | L7: ='€ per type of cust.'!CZ15 -> 7.485517134 | M7: ='€ per type of cust.'!DA15 -> 28.72142004 | N7: ='€ per type of cust.'!DB15 -> 6.975350681 | O7: ='€ per type of cust.'!DC15 -> 536.8693083 | P7: ='€ per type of cust.'!DD15 -> 228.7884467 | Q7: ='€ per type of cust.'!DE15 -> 14.69725239 | R7: ='€ per type of cust.'!DF15 -> 106.4360072 | S7: ='€ per type of cust.'!DG15 -> 0 | T7: ='€ per type of cust.'!DH15 -> 3514.515871 | U7: =SUM(F7:T7) -> 14834.58274 | V7: =SUM(U7:U11)/SUM('Eq. UsageRate '!$E$15:$R$15) -> 30.92665728 | W7: =SUM(U7:U11) -> 56874.12274 | X7: 233553
D8: PV System | F8: ='€ per type of cust.'!DK15 -> 0 | G8: ='€ per type of cust.'!DL15 -> 0 | H8: ='€ per type of cust.'!DM15 -> 0 | I8: ='€ per type of cust.'!DN15 -> 0 | J8: ='€ per type of cust.'!DO15 -> 0 | K8: ='€ per type of cust.'!DP15 -> 0 | L8: ='€ per type of cust.'!DQ15 -> 0 | M8: ='€ per type of cust.'!DR15 -> 0 | N8: ='€ per type of cust.'!DS15 -> 0 | O8: ='€ per type of cust.'!DT15 -> 0 | P8: ='€ per type of cust.'!DU15 -> 0 | Q8: ='€ per type of cust.'!DV15 -> 0 | R8: ='€ per type of cust.'!DW15 -> 0 | S8: ='€ per type of cust.'!DX15 -> 0 | T8: ='€ per type of cust.'!DY15 -> 0 | U8: =SUM(F8:T8) -> 0 | Y8: =X7-W7 -> 176678.8773
D9: Genset | F9: ='€ per type of cust.'!EB15 -> 0 | G9: ='€ per type of cust.'!EC15 -> 0 | H9: ='€ per type of cust.'!ED15 -> 0 | I9: ='€ per type of cust.'!EE15 -> 0 | J9: ='€ per type of cust.'!EF15 -> 0 | K9: ='€ per type of cust.'!EG15 -> 0 | L9: ='€ per type of cust.'!EH15 -> 0 | M9: ='€ per type of cust.'!EI15 -> 0 | N9: ='€ per type of cust.'!EJ15 -> 0 | O9: ='€ per type of cust.'!EK15 -> 0 | P9: ='€ per type of cust.'!EL15 -> 0 | Q9: ='€ per type of cust.'!EM15 -> 0 | R9: ='€ per type of cust.'!EN15 -> 0 | S9: ='€ per type of cust.'!EO15 -> 0 | T9: ='€ per type of cust.'!EP15 -> 0 | U9: 0
C10: Distribuition | F10: ='Eq. UsageRate '!E16*'€ per type of cust.'!$CL$15 -> 11887.2 | G10: ='Eq. UsageRate '!F16*'€ per type of cust.'!$CL$15 -> 11704.32 | H10: ='Eq. UsageRate '!G16*'€ per type of cust.'!$CL$15 -> 7475.22 | I10: ='Eq. UsageRate '!H16*'€ per type of cust.'!$CL$15 -> 5669.28 | J10: ='Eq. UsageRate '!I16*'€ per type of cust.'!$CL$15 -> 1760.22 | K10: ='Eq. UsageRate '!J16*'€ per type of cust.'!$CL$15 -> 685.8 | L10: ='Eq. UsageRate '!K16*'€ per type of cust.'!$CL$15 -> 91.44 | M10: ='Eq. UsageRate '!L16*'€ per type of cust.'!$CL$15 -> 22.86 | N10: ='Eq. UsageRate '!M16*'€ per type of cust.'!$CL$15 -> 45.72 | O10: ='Eq. UsageRate '!N16*'€ per type of cust.'!$CL$15 -> 1371.6 | P10: ='Eq. UsageRate '!O16*'€ per type of cust.'!$CL$15 -> 845.82 | Q10: ='Eq. UsageRate '!P16*'€ per type of cust.'!$CL$15 -> 22.86 | R10: ='Eq. UsageRate '!Q16*'€ per type of cust.'!$CL$15 -> 137.16 | S10: ='Eq. UsageRate '!R16*'€ per type of cust.'!$CL$15 -> 320.04 | T10: ='Eq. UsageRate '!S16*'€ per type of cust.'!$CL$15 -> 0 | U10: 42039.54
C11: Reticulation | F11: ='€ per type of cust.'!ES15 -> 0 | G11: ='€ per type of cust.'!ET15 -> 0 | H11: ='€ per type of cust.'!EU15 -> 0 | I11: ='€ per type of cust.'!EV15 -> 0 | J11: ='€ per type of cust.'!EW15 -> 0 | K11: ='€ per type of cust.'!EX15 -> 0 | L11: ='€ per type of cust.'!EY15 -> 0 | M11: ='€ per type of cust.'!EZ15 -> 0 | N11: ='€ per type of cust.'!FA15 -> 0 | O11: ='€ per type of cust.'!FB15 -> 0 | P11: ='€ per type of cust.'!FC15 -> 0 | Q11: ='€ per type of cust.'!FD15 -> 0 | R11: ='€ per type of cust.'!FE15 -> 0 | S11: ='€ per type of cust.'!FF15 -> 0 | T11: ='€ per type of cust.'!FG15 -> 0 | U11: 0
B12: Distribution | E12: 250.5595432 | F12: =$E$12*'Eq. UsageRate '!E15 -> 130290.9625 | G12: =$E$12*'Eq. UsageRate '!F15 -> 128286.4861 | H12: =$E$12*'Eq. UsageRate '!G15 -> 81932.97064 | I12: =$E$12*'Eq. UsageRate '!H15 -> 62138.76672 | J12: =$E$12*'Eq. UsageRate '!I15 -> 19293.08483 | K12: =$E$12*'Eq. UsageRate '!J15 -> 7516.786297 | L12: =$E$12*'Eq. UsageRate '!K15 -> 1002.238173 | M12: =$E$12*'Eq. UsageRate '!L15 -> 250.5595432 | N12: =$E$12*'Eq. UsageRate '!M15 -> 501.1190865 | O12: =$E$12*'Eq. UsageRate '!N15 -> 15033.57259 | P12: =$E$12*'Eq. UsageRate '!O15 -> 9270.7031 | Q12: =$E$12*'Eq. UsageRate '!P15 -> 250.5595432 | R12: =$E$12*'Eq. UsageRate '!Q15 -> 1503.357259 | S12: =$E$12*'Eq. UsageRate '!R15 -> 3507.833605 | T12: ='Eq. UsageRate '!S15*60 -> 19200 | U12: =SUM(F12:T12) -> 479979 | V12: =U12/SUM('Eq. UsageRate '!$E$15:$R$15) -> 261 | W12: =SUM(U12:U15) -> 1108986.68 | X12: 479979 | Y12: =X12-U12 -> 0 | Z12: =Y12/1839 -> 0
B13: Metering & Reticulation | E13: 244.54 | F13: ='€ per type of cust.'!BT15 -> 127160.8 | G13: ='€ per type of cust.'!BU15 -> 125204.48 | H13: ='€ per type of cust.'!BV15 -> 79964.58 | I13: ='€ per type of cust.'!BW15 -> 60645.92 | J13: ='€ per type of cust.'!BX15 -> 18829.58 | K13: ='€ per type of cust.'!BY15 -> 7336.2 | L13: ='€ per type of cust.'!BZ15 -> 978.16 | M13: ='€ per type of cust.'!CA15 -> 2992.5 | N13: ='€ per type of cust.'!CB15 -> 489.08 | O13: ='€ per type of cust.'!CC15 -> 14672.4 | P13: ='€ per type of cust.'!CD15 -> 9047.98 | Q13: ='€ per type of cust.'!CE15 -> 420 | R13: ='€ per type of cust.'!CF15 -> 2520 | S13: ='€ per type of cust.'!CG15 -> 5880 | T13: ='€ per type of cust.'!CH15 -> 0 | U13: 456141.68 | V13: =U13/SUM('Eq. UsageRate '!$E$15:$R$15) -> 248.0378902 | X13: 449709.06 | Y13: =X13-U13 -> -6432.62 | Z13: =Y13/1839 -> -3.497890158
B14: Int'l and Local Freight | E14: 45 | F14: =$E$14*'Eq. UsageRate '!E15 -> 23400 | G14: =$E$14*'Eq. UsageRate '!F15 -> 23040 | H14: =$E$14*'Eq. UsageRate '!G15 -> 14715 | I14: =$E$14*'Eq. UsageRate '!H15 -> 11160 | J14: =$E$14*'Eq. UsageRate '!I15 -> 3465 | K14: =$E$14*'Eq. UsageRate '!J15 -> 1350 | L14: =$E$14*'Eq. UsageRate '!K15 -> 180 | M14: =$E$14*'Eq. UsageRate '!L15 -> 45 | N14: =$E$14*'Eq. UsageRate '!M15 -> 90 | O14: =$E$14*'Eq. UsageRate '!N15 -> 2700 | P14: =$E$14*'Eq. UsageRate '!O15 -> 1665 | Q14: =$E$14*'Eq. UsageRate '!P15 -> 45 | R14: =$E$14*'Eq. UsageRate '!Q15 -> 270 | S14: =$E$14*'Eq. UsageRate '!R15 -> 630 | T14: 0 | U14: =SUM(F14:T14) -> 82755 | V14: =U14/SUM('Eq. UsageRate '!$E$15:$R$15) -> 45 | X14: 82755 | Y14: 0
B15: Import fees & duties (no VAT) | E15: 49 | F15: =$E$15*'Eq. UsageRate '!E15 -> 25480 | G15: =$E$15*'Eq. UsageRate '!F15 -> 25088 | H15: =$E$15*'Eq. UsageRate '!G15 -> 16023 | I15: =$E$15*'Eq. UsageRate '!H15 -> 12152 | J15: =$E$15*'Eq. UsageRate '!I15 -> 3773 | K15: =$E$15*'Eq. UsageRate '!J15 -> 1470 | L15: =$E$15*'Eq. UsageRate '!K15 -> 196 | M15: =$E$15*'Eq. UsageRate '!L15 -> 49 | N15: =$E$15*'Eq. UsageRate '!M15 -> 98 | O15: =$E$15*'Eq. UsageRate '!N15 -> 2940 | P15: =$E$15*'Eq. UsageRate '!O15 -> 1813 | Q15: =$E$15*'Eq. UsageRate '!P15 -> 49 | R15: =$E$15*'Eq. UsageRate '!Q15 -> 294 | S15: =$E$15*'Eq. UsageRate '!R15 -> 686 | T15: 0 | U15: 90111 | V15: =U15/SUM('Eq. UsageRate '!$E$15:$R$15) -> 49 | X15: 90111 | Y15: 0
B16: CAPEX per consumer group | F16: =SUM(F4:F15) ->  | U16: =SUM(U4:U15) ->  | X16: =SUM(X4:X15) -> 1764218.573 | AB16: =SUM(AB4:AB15) -> 
B17: % of TOTAL CAPEX | F17: =F16/$U$16 ->  | G17: =G16/$U$16 ->  | U17: =SUM(F17:T17) ->  | AB17: ='Detailed Summary'!P16 ->  | AC17: kWp
B18: TOTAL NUMBER OF CONSUMERS | E18: # users | F18: ='Detailed Summary'!E16 -> 520 | G18: ='Detailed Summary'!F16 -> 512 | H18: ='Detailed Summary'!G16 -> 327 | I18: ='Detailed Summary'!H16 -> 248 | J18: ='Detailed Summary'!I16 -> 77 | K18: =Assumptions!E60 -> 30 | L18: =Assumptions!F60 -> 4 | M18: =Assumptions!G60 -> 1 | N18: =Assumptions!H60 -> 2 | O18: =Assumptions!I60 -> 60 | P18: =Assumptions!J60 -> 37 | Q18: =Assumptions!K60 -> 1 | R18: =Assumptions!L60 -> 6 | S18: =Assumptions!M60 -> 14 | T18: =Assumptions!P60 -> 320 | U18: 1839 consumers 320 public lights
R19: COST PER CONNECTION | U19: =U16/SUM('Eq. UsageRate '!E15:R15) -> 
B21: Description | E21: Fix cost | F21: COST PER TYPE OF CUSTOMER (AVERAGE)
F22: T1 | G22: T2 | H22: T3 | I22: T4 | J22: T5 | K22: Shop | L22: School | M22: Big School | N22: Clinic | O22: Public services | P22: Low PEU | Q22: Wel. | R22: Carp. | S22: Posho. | T22: Public Lighting
B23: Generation System | F23: =F4/'Eq. UsageRate '!E$15 ->  | G23: =G4/'Eq. UsageRate '!F$15 ->  | H23: =H4/'Eq. UsageRate '!G$15 ->  | I23: =I4/'Eq. UsageRate '!H$15 ->  | J23: =J4/'Eq. UsageRate '!I$15 ->  | K23: =K4/'Eq. UsageRate '!J$15 ->  | L23: =L4/'Eq. UsageRate '!K$15 ->  | M23: =M4/'Eq. UsageRate '!L$15 ->  | N23: =N4/'Eq. UsageRate '!M$15 ->  | O23: =O4/'Eq. UsageRate '!N$15 ->  | P23: =P4/'Eq. UsageRate '!O$15 ->  | Q23: =Q4/'Eq. UsageRate '!P$15 ->  | R23: =R4/'Eq. UsageRate '!Q$15 ->  | S23: =S4/'Eq. UsageRate '!R$15 ->  | T23: =T4/'Eq. UsageRate '!S$15 ->  | U23: =AVERAGE(F23:T23) -> 
B24: Battery storage | F24: =F5/'Eq. UsageRate '!E$15 -> 10.89068921 | G24: =G5/'Eq. UsageRate '!F$15 -> 16.32998879 | H24: =H5/'Eq. UsageRate '!G$15 -> 54.49092199 | I24: =I5/'Eq. UsageRate '!H$15 -> 102.3623627 | J24: =J5/'Eq. UsageRate '!I$15 -> 216.2805565 | K24: =K5/'Eq. UsageRate '!J$15 -> 10.25924452 | L24: =L5/'Eq. UsageRate '!K$15 -> 13.51663592 | M24: =M5/'Eq. UsageRate '!L$15 -> 246.9773429 | N24: =N5/'Eq. UsageRate '!M$15 -> 24.12050901 | O24: =O5/'Eq. UsageRate '!N$15 -> 61.17156737 | P24: =P5/'Eq. UsageRate '!O$15 -> 41.7489343 | Q24: =Q5/'Eq. UsageRate '!P$15 -> 94.91448481 | R24: =R5/'Eq. UsageRate '!Q$15 -> 123.8204147 | S24: =S5/'Eq. UsageRate '!R$15 -> 0 | T24: =T5/'Eq. UsageRate '!S$15 -> 78.61298873 | U24: =SUM(F24:T24) -> 1095.496641
B25: Gensets | F25: =F6/'Eq. UsageRate '!E$15 -> 0 | G25: =G6/'Eq. UsageRate '!F$15 -> 0 | H25: =H6/'Eq. UsageRate '!G$15 -> 0 | I25: =I6/'Eq. UsageRate '!H$15 -> 0 | J25: =J6/'Eq. UsageRate '!I$15 -> 0 | K25: =K6/'Eq. UsageRate '!J$15 -> 0 | L25: =L6/'Eq. UsageRate '!K$15 -> 0 | M25: =M6/'Eq. UsageRate '!L$15 -> 0 | N25: =N6/'Eq. UsageRate '!M$15 -> 0 | O25: =O6/'Eq. UsageRate '!N$15 -> 0 | P25: =P6/'Eq. UsageRate '!O$15 -> 0 | Q25: =Q6/'Eq. UsageRate '!P$15 -> 0 | R25: =R6/'Eq. UsageRate '!Q$15 -> 0 | S25: =S6/'Eq. UsageRate '!R$15 -> 0 | T25: =T6/'Eq. UsageRate '!S$15 -> 0 | U25: 0
B26: Civil works & installation | C26: Generation | D26: Batteries | F26: =F7/'Eq. UsageRate '!E$15 -> 1.566106266 | G26: =G7/'Eq. UsageRate '!F$15 -> 2.35090981 | H26: =H7/'Eq. UsageRate '!G$15 -> 7.565423797 | I26: =I7/'Eq. UsageRate '!H$15 -> 14.17339239 | J26: =J7/'Eq. UsageRate '!I$15 -> 30.36064336 | K26: =K7/'Eq. UsageRate '!J$15 -> 1.512934942 | L26: =L7/'Eq. UsageRate '!K$15 -> 1.871379284 | M26: =M7/'Eq. UsageRate '!L$15 -> 28.72142004 | N26: =N7/'Eq. UsageRate '!M$15 -> 3.487675341 | O26: =O7/'Eq. UsageRate '!N$15 -> 8.947821805 | P26: =P7/'Eq. UsageRate '!O$15 -> 6.183471532 | Q26: =Q7/'Eq. UsageRate '!P$15 -> 14.69725239 | R26: =R7/'Eq. UsageRate '!Q$15 -> 17.73933453 | S26: =S7/'Eq. UsageRate '!R$15 -> 0 | T26: =T7/'Eq. UsageRate '!S$15 -> 10.9828621 | U26: 150.1606276
D27: PV System | F27: =F8/'Eq. UsageRate '!E$15 -> 0 | G27: =G8/'Eq. UsageRate '!F$15 -> 0 | H27: =H8/'Eq. UsageRate '!G$15 -> 0 | I27: =I8/'Eq. UsageRate '!H$15 -> 0 | J27: =J8/'Eq. UsageRate '!I$15 -> 0 | K27: =K8/'Eq. UsageRate '!J$15 -> 0 | L27: =L8/'Eq. UsageRate '!K$15 -> 0 | M27: =M8/'Eq. UsageRate '!L$15 -> 0 | N27: =N8/'Eq. UsageRate '!M$15 -> 0 | O27: =O8/'Eq. UsageRate '!N$15 -> 0 | P27: =P8/'Eq. UsageRate '!O$15 -> 0 | Q27: =Q8/'Eq. UsageRate '!P$15 -> 0 | R27: =R8/'Eq. UsageRate '!Q$15 -> 0 | S27: =S8/'Eq. UsageRate '!R$15 -> 0 | T27: =T8/'Eq. UsageRate '!S$15 -> 0 | U27: 0
D28: Genset | F28: =F9/'Eq. UsageRate '!E$15 -> 0 | G28: =G9/'Eq. UsageRate '!F$15 -> 0 | H28: =H9/'Eq. UsageRate '!G$15 -> 0 | I28: =I9/'Eq. UsageRate '!H$15 -> 0 | J28: =J9/'Eq. UsageRate '!I$15 -> 0 | K28: =K9/'Eq. UsageRate '!J$15 -> 0 | L28: =L9/'Eq. UsageRate '!K$15 -> 0 | M28: =M9/'Eq. UsageRate '!L$15 -> 0 | N28: =N9/'Eq. UsageRate '!M$15 -> 0 | O28: =O9/'Eq. UsageRate '!N$15 -> 0 | P28: =P9/'Eq. UsageRate '!O$15 -> 0 | Q28: =Q9/'Eq. UsageRate '!P$15 -> 0 | R28: =R9/'Eq. UsageRate '!Q$15 -> 0 | S28: =S9/'Eq. UsageRate '!R$15 -> 0 | T28: =T9/'Eq. UsageRate '!S$15 -> 0 | U28: 0
C29: Distribuition | F29: =F10/'Eq. UsageRate '!E$15 -> 22.86 | G29: =G10/'Eq. UsageRate '!F$15 -> 22.86 | H29: =H10/'Eq. UsageRate '!G$15 -> 22.86 | I29: =I10/'Eq. UsageRate '!H$15 -> 22.86 | J29: =J10/'Eq. UsageRate '!I$15 -> 22.86 | K29: =K10/'Eq. UsageRate '!J$15 -> 22.86 | L29: =L10/'Eq. UsageRate '!K$15 -> 22.86 | M29: =M10/'Eq. UsageRate '!L$15 -> 22.86 | N29: =N10/'Eq. UsageRate '!M$15 -> 22.86 | O29: =O10/'Eq. UsageRate '!N$15 -> 22.86 | P29: =P10/'Eq. UsageRate '!O$15 -> 22.86 | Q29: =Q10/'Eq. UsageRate '!P$15 -> 22.86 | R29: =R10/'Eq. UsageRate '!Q$15 -> 22.86 | S29: =S10/'Eq. UsageRate '!R$15 -> 22.86 | T29: =T10/'Eq. UsageRate '!S$15 -> 0 | U29: 320.04
C30: Reticulation | F30: =F11/'Eq. UsageRate '!E$15 -> 0 | G30: =G11/'Eq. UsageRate '!F$15 -> 0 | H30: =H11/'Eq. UsageRate '!G$15 -> 0 | I30: =I11/'Eq. UsageRate '!H$15 -> 0 | J30: =J11/'Eq. UsageRate '!I$15 -> 0 | K30: =K11/'Eq. UsageRate '!J$15 -> 0 | L30: =L11/'Eq. UsageRate '!K$15 -> 0 | M30: =M11/'Eq. UsageRate '!L$15 -> 0 | N30: =N11/'Eq. UsageRate '!M$15 -> 0 | O30: =O11/'Eq. UsageRate '!N$15 -> 0 | P30: =P11/'Eq. UsageRate '!O$15 -> 0 | Q30: =Q11/'Eq. UsageRate '!P$15 -> 0 | R30: =R11/'Eq. UsageRate '!Q$15 -> 0 | S30: =S11/'Eq. UsageRate '!R$15 -> 0 | T30: =T11/'Eq. UsageRate '!S$15 -> 0 | U30: 0
B31: Distribution | F31: =F12/'Eq. UsageRate '!E$15 -> 250.5595432 | G31: =G12/'Eq. UsageRate '!F$15 -> 250.5595432 | H31: =H12/'Eq. UsageRate '!G$15 -> 250.5595432 | I31: =I12/'Eq. UsageRate '!H$15 -> 250.5595432 | J31: =J12/'Eq. UsageRate '!I$15 -> 250.5595432 | K31: =K12/'Eq. UsageRate '!J$15 -> 250.5595432 | L31: =L12/'Eq. UsageRate '!K$15 -> 250.5595432 | M31: =M12/'Eq. UsageRate '!L$15 -> 250.5595432 | N31: =N12/'Eq. UsageRate '!M$15 -> 250.5595432 | O31: =O12/'Eq. UsageRate '!N$15 -> 250.5595432 | P31: =P12/'Eq. UsageRate '!O$15 -> 250.5595432 | Q31: =Q12/'Eq. UsageRate '!P$15 -> 250.5595432 | R31: =R12/'Eq. UsageRate '!Q$15 -> 250.5595432 | S31: =S12/'Eq. UsageRate '!R$15 -> 250.5595432 | T31: =T12/'Eq. UsageRate '!S$15 -> 60 | U31: 3567.833605
B32: Metering & Reticulation | F32: =F13/'Eq. UsageRate '!E$15 -> 244.54 | G32: =G13/'Eq. UsageRate '!F$15 -> 244.54 | H32: =H13/'Eq. UsageRate '!G$15 -> 244.54 | I32: =I13/'Eq. UsageRate '!H$15 -> 244.54 | J32: =J13/'Eq. UsageRate '!I$15 -> 244.54 | K32: =K13/'Eq. UsageRate '!J$15 -> 244.54 | L32: =L13/'Eq. UsageRate '!K$15 -> 244.54 | M32: =M13/'Eq. UsageRate '!L$15 -> 2992.5 | N32: =N13/'Eq. UsageRate '!M$15 -> 244.54 | O32: =O13/'Eq. UsageRate '!N$15 -> 244.54 | P32: =P13/'Eq. UsageRate '!O$15 -> 244.54 | Q32: =Q13/'Eq. UsageRate '!P$15 -> 420 | R32: =R13/'Eq. UsageRate '!Q$15 -> 420 | S32: =S13/'Eq. UsageRate '!R$15 -> 420 | T32: =T13/'Eq. UsageRate '!S$15 -> 0 | U32: 6697.9
B33: Int'l and Local Freight | F33: =F14/'Eq. UsageRate '!E$15 -> 45 | G33: =G14/'Eq. UsageRate '!F$15 -> 45 | H33: =H14/'Eq. UsageRate '!G$15 -> 45 | I33: =I14/'Eq. UsageRate '!H$15 -> 45 | J33: =J14/'Eq. UsageRate '!I$15 -> 45 | K33: =K14/'Eq. UsageRate '!J$15 -> 45 | L33: =L14/'Eq. UsageRate '!K$15 -> 45 | M33: =M14/'Eq. UsageRate '!L$15 -> 45 | N33: =N14/'Eq. UsageRate '!M$15 -> 45 | O33: =O14/'Eq. UsageRate '!N$15 -> 45 | P33: =P14/'Eq. UsageRate '!O$15 -> 45 | Q33: =Q14/'Eq. UsageRate '!P$15 -> 45 | R33: =R14/'Eq. UsageRate '!Q$15 -> 45 | S33: =S14/'Eq. UsageRate '!R$15 -> 45 | T33: =T14/'Eq. UsageRate '!S$15 -> 0 | U33: 630
B34: Import fees & duties (no VAT) | F34: =F15/'Eq. UsageRate '!E$15 -> 49 | G34: =G15/'Eq. UsageRate '!F$15 -> 49 | H34: =H15/'Eq. UsageRate '!G$15 -> 49 | I34: =I15/'Eq. UsageRate '!H$15 -> 49 | J34: =J15/'Eq. UsageRate '!I$15 -> 49 | K34: =K15/'Eq. UsageRate '!J$15 -> 49 | L34: =L15/'Eq. UsageRate '!K$15 -> 49 | M34: =M15/'Eq. UsageRate '!L$15 -> 49 | N34: =N15/'Eq. UsageRate '!M$15 -> 49 | O34: =O15/'Eq. UsageRate '!N$15 -> 49 | P34: =P15/'Eq. UsageRate '!O$15 -> 49 | Q34: =Q15/'Eq. UsageRate '!P$15 -> 49 | R34: =R15/'Eq. UsageRate '!Q$15 -> 49 | S34: =S15/'Eq. UsageRate '!R$15 -> 49 | T34: =T15/'Eq. UsageRate '!S$15 -> 0 | U34: 686
F35: =SUM(F23:F34) ->  | U35: =SUM(F35:T35) -> 
F38: GRANT PER TYPE OF CUSTOMER
B39: TOTAL CAPEX | E39: Total CAPEX | F39: =F35*F18 ->  | U39: =SUM(F39:T39) ->  | W39: 6432.62
D40: 450 | E40: % GRANT @ €450 | F40: =F$18*$D40/F$39 ->  | G40: =G18*450/G39 -> 
D41: 550 | E41: % GRANT @ €550 | F41: =F$18*$D41/F$39 ->  | G41: =G$18*$D41/G$39 ->  | U41: =U45/U39 -> 
E42: GMG "rule" | F42: =F45/F39 ->  | Q42: =Q45/Q39 -> 
F43: =F40*F39 ->  | G43: =G40*G39 ->  | U43: =SUM(F43:T43) ->  | W43: =U43/1839 -> 
F44: =F41*F39 ->  | G44: =G41*G39 ->  | U44: =SUM(F44:T44) ->  | W44: =U44/1839 -> 
F45: =F43 ->  | G45: =G43 ->  | K45: =K18*3*450 -> 40500 | L45: =L18*3*450 -> 5400 | M45: =M18*3*450 -> 1350 | N45: =N18*3*450 -> 2700 | O45: =O18*3*450 -> 81000 | P45: =P18*5*450 -> 83250 | Q45: =Q18*5*450 -> 2250 | R45: =R18*5*450 -> 13500 | S45: =S18*5*450 -> 31500 | U45: =SUM(F45:T45) ->  | W45: =U45/1839 -> 
F46: =MIN(0.7*F39,F43) ->  | G46: =MIN(0.7*G39,G43) ->  | U46: =SUM(F46:T46) -> 
F48: =F43-F$39 ->  | G48: =G43-G$39 ->  | R48: =R43-R$39 ->  | S48: =S43-S$39 -> 
F49: =F44-F$39 ->  | R49: =R44-R$39 -> 
R50: =R45-R$39 -> 
R51: =R46-R$39 -> 
E52: 2
D53: 450 | E53: =E52*D53 -> 900 | F53: =F18*$D53/F39 ->  | M53: =M18*$E53/M39 -> 
F54: =F39*F53 ->  | G54: =G39*G53 ->  | Q54: =Q39*Q53 ->  | R54: =R39*R53 ->  | S54: =S39*S53 ->  | U54: =SUM(F54:T54) ->  | W54: =U54/1839 -> 
F55: =F56/F39 ->  | G55: =G56/G39 -> 
F56: =0.7*F39 ->  | G56: =0.7*G39 ->  | H56: =0.7*H39 ->  | I56: =0.5*I39 ->  | J56: =0.5*J39 ->  | K56: =0.6*K39 ->  | L56: =0.6*L39 ->  | S56: =0.33*S39 ->  | T56: =0.5*T39 ->  | U56: =SUM(F56:T56) ->  | W56: =U56/1839 -> 

Sheet € per type of cust. (hidden)
E2: Battery cost per type of customer FOR NIGHTTIME ENERGY DREMAND PER CONSUMER TYPE | V2: Generation system cost per site | W2: Generation cost per type of customer FOR NIGHTTIME ENERGY DREMAND PER CONSUMER TYPE | AL2: Generation cost per type of customer FOR DAYTIME ENERGY DREMAND PER CONSUMER TYPE | BB2: Diesel Genset cost per type of customer | BS2: Reticulation Cost | CJ2: Total cost of civil works & installation | CN2: Total cost of civil works & installation | CS2: Total cost of battery installation | DJ2: Total cost of PV system civil work & installation | EA2: Total cost of genset civil work & installation | ER2: Total cost of reticulation civil work & installation (excluding meter - included in in-home installation))
C3: Site No. | D3: Site | E3: Battery cost per site | F3: T1 | G3: T2 | H3: T3 | I3: T4 | J3: T5 | K3: Shop | L3: School | M3: Big School | N3: Clinic | O3: Public services | P3: Low PEU | Q3: Wel. | R3: Carp. | S3: Posho. | T3: Public Lighting | W3: T1 | X3: T2 | Y3: T3 | Z3: T4 | AA3: T5 | AB3: Shop | AC3: School | AD3: Big School | AE3: Clinic | AF3: Public services | AG3: Low PEU | AH3: Wel. | AI3: Carp. | AJ3: Posho. | AK3: Public Lighting | AL3: T1 | AM3: T2 | AN3: T3 | AO3: T4 | AP3: T5 | AQ3: Shop | AR3: School | AS3: Big School | AT3: Clinic | AU3: Public services | AV3: Low PEU | AW3: Wel. | AX3: Carp. | AY3: Posho. | AZ3: Public Lighting | BB3: Genset cost per site | BC3: T1 | BD3: T2 | BE3: T3 | BF3: T4 | BG3: T5 | BH3: Shop | BI3: School | BJ3: Big School | BK3: Clinic | BL3: Public services | BM3: Low PEU | BN3: Wel. | BO3: Carp. | BP3: Posho. | BQ3: Public Lighting | BS3: Metering + drop | BT3: T1 | BU3: T2 | BV3: T3 | BW3: T4 | BX3: T5 | BY3: Shop | BZ3: School | CA3: Big School | CB3: Clinic | CC3: Public services | CD3: Low PEU | CE3: Hi PEU Cost | CG3: =SUM(200,45,35,100,40) -> 420 | CH3: Public Lighting | CJ3: Fix cost per connection | CK3: Generation | CL3: Distribuition | CM3: Reticulation | CN3: Generation | CO3: Batteries | CP3: PV System | CQ3: Genset | CS3: Battery cost per site | CT3: T1 | CU3: T2 | CV3: T3 | CW3: T4 | CX3: T5 | CY3: Shop | CZ3: School | DA3: Big School | DB3: Clinic | DC3: Public services | DD3: Low PEU | DE3: Wel. | DF3: Carp. | DG3: Posho. | DH3: Public Lighting | DJ3: PV System cost per site | DK3: T1 | DL3: T2 | DM3: T3 | DN3: T4 | DO3: T5 | DP3: Shop | DQ3: School | DR3: Big School | DS3: Clinic | DT3: Public services | DU3: Low PEU | DV3: Wel. | DW3: Carp. | DX3: Posho. | DY3: Public Lighting | EA3: Genset cost per site | EB3: T1 | EC3: T2 | ED3: T3 | EE3: T4 | EF3: T5 | EG3: Shop | EH3: School | EI3: Big School | EJ3: Clinic | EK3: Public services | EL3: Low PEU | EM3: Wel. | EN3: Carp. | EO3: Posho. | EP3: Public Lighting | ER3: Reticulation and civil work cost per site | ES3: T1 | ET3: T2 | EU3: T3 | EV3: T4 | EW3: T5 | EX3: Shop | EY3: School | EZ3: Big School | FA3: Clinic | FB3: Public services | FC3: Low PEU | FD3: Wel. | FE3: Carp. | FF3: Posho. | FG3: Public Lighting
BS4: 244.54 | CE4: Wel. | CF4: Carp. | CG4: Posho. | CH4: 0 | CJ4: 127 | CK4: 0.44 | CL4: 0.18 | CM4: 0.38 | CO4: 0.15 | CP4: 0.65 | CQ4: 0.2
B5: 1 | C5: 45 + 59 + 60 | D5: Mudoriko + Bwiri A + Bwiri B | E5: 15280.4 | F5: =IFERROR(($E5*'Eq. UsageRate '!BC5),0) -> 856.1268047 | G5: =IFERROR(($E5*'Eq. UsageRate '!BD5),0) -> 1284.190207 | H5: =IFERROR(($E5*'Eq. UsageRate '!BE5),0) -> 2425.692613 | I5: =IFERROR(($E5*'Eq. UsageRate '!BF5),0) -> 3210.475518 | J5: =IFERROR(($E5*'Eq. UsageRate '!BG5),0) -> 2853.756016 | K5: =IFERROR(($E5*'Eq. UsageRate '!BH5),0) -> 54.87992338 | L5: =IFERROR(($E5*'Eq. UsageRate '!BI5),0) -> 0 | M5: =IFERROR(($E5*'Eq. UsageRate '!BJ5),0) -> 0 | N5: =IFERROR(($E5*'Eq. UsageRate '!BK5),0) -> 21.95196935 | O5: =IFERROR(($E5*'Eq. UsageRate '!BL5),0) -> 878.0787741 | P5: =IFERROR(($E5*'Eq. UsageRate '!BM5),0) -> 329.2795403 | Q5: =IFERROR(($E5*'Eq. UsageRate '!BN5),0) -> 0 | R5: =IFERROR(($E5*'Eq. UsageRate '!BO5),0) -> 109.7598468 | S5: =IFERROR(($E5*'Eq. UsageRate '!BP5),0) -> 0 | T5: =IFERROR(($E5*'Eq. UsageRate '!BQ5),0) -> 2743.996169 | V5: 41935.06667 | W5: ='Eq. UsageRate '!W5*$V5 ->  | X5: ='Eq. UsageRate '!X5*$V5 ->  | Y5: ='Eq. UsageRate '!Y5*$V5 ->  | Z5: ='Eq. UsageRate '!Z5*$V5 ->  | AA5: ='Eq. UsageRate '!AA5*$V5 ->  | AB5: ='Eq. UsageRate '!AB5*$V5 ->  | AC5: ='Eq. UsageRate '!AC5*$V5 ->  | AD5: ='Eq. UsageRate '!AD5*$V5 ->  | AE5: ='Eq. UsageRate '!AE5*$V5 ->  | AF5: ='Eq. UsageRate '!AF5*$V5 ->  | AG5: ='Eq. UsageRate '!AG5*$V5 ->  | AH5: ='Eq. UsageRate '!AH5*$V5 ->  | AI5: ='Eq. UsageRate '!AI5*$V5 ->  | AJ5: ='Eq. UsageRate '!AJ5*$V5 ->  | AK5: ='Eq. UsageRate '!AK5*$V5 ->  | AL5: ='Eq. UsageRate '!AL5*$V5 ->  | AM5: ='Eq. UsageRate '!AM5*$V5 ->  | AN5: ='Eq. UsageRate '!AN5*$V5 ->  | AO5: ='Eq. UsageRate '!AO5*$V5 ->  | AP5: ='Eq. UsageRate '!AP5*$V5 ->  | AQ5: ='Eq. UsageRate '!AQ5*$V5 ->  | AR5: ='Eq. UsageRate '!AR5*$V5 ->  | AS5: ='Eq. UsageRate '!AS5*$V5 ->  | AT5: ='Eq. UsageRate '!AT5*$V5 ->  | AU5: ='Eq. UsageRate '!AU5*$V5 ->  | AV5: ='Eq. UsageRate '!AV5*$V5 ->  | AW5: ='Eq. UsageRate '!AW5*$V5 ->  | AX5: ='Eq. UsageRate '!AX5*$V5 ->  | AY5: ='Eq. UsageRate '!AY5*$V5 ->  | AZ5: ='Eq. UsageRate '!AZ5*$V5 -> 0 | BB5: 0 | BC5: =IFERROR(($BB5*'Eq. UsageRate '!BT5),0) -> 0 | BD5: =IFERROR(($BB5*'Eq. UsageRate '!BU5),0) -> 0 | BE5: =IFERROR(($BB5*'Eq. UsageRate '!BV5),0) -> 0 | BF5: =IFERROR(($BB5*'Eq. UsageRate '!BW5),0) -> 0 | BG5: =IFERROR(($BB5*'Eq. UsageRate '!BX5),0) -> 0 | BH5: =IFERROR(($BB5*'Eq. UsageRate '!BY5),0) -> 0 | BI5: =IFERROR(($BB5*'Eq. UsageRate '!BZ5),0) -> 0 | BJ5: =IFERROR(($BB5*'Eq. UsageRate '!CA5),0) -> 0 | BK5: =IFERROR(($BB5*'Eq. UsageRate '!CB5),0) -> 0 | BL5: =IFERROR(($BB5*'Eq. UsageRate '!CC5),0) -> 0 | BM5: =IFERROR(($BB5*'Eq. UsageRate '!CD5),0) -> 0 | BN5: =IFERROR(($BB5*'Eq. UsageRate '!CE5),0) -> 0 | BO5: =IFERROR(($BB5*'Eq. UsageRate '!CF5),0) -> 0 | BP5: =IFERROR(($BB5*'Eq. UsageRate '!CG5),0) -> 0 | BQ5: =IFERROR(($BB5*'Eq. UsageRate '!CH5),0) -> 0 | BS5: =SUM(BT5:CH5) -> 78045.56 | BT5: ='Eq. UsageRate '!E5*$BS$4 -> 22008.6 | BU5: ='Eq. UsageRate '!F5*$BS$4 -> 22008.6 | BV5: ='Eq. UsageRate '!G5*$BS$4 -> 12471.54 | BW5: ='Eq. UsageRate '!H5*$BS$4 -> 8803.44 | BX5: ='Eq. UsageRate '!I5*$BS$4 -> 3668.1 | BY5: ='Eq. UsageRate '!J5*$BS$4 -> 1467.24 | BZ5: ='Eq. UsageRate '!K5*$BS$4 -> 0 | CA5: ='Eq. UsageRate '!L5*$BS$4 -> 0 | CB5: ='Eq. UsageRate '!M5*$BS$4 -> 244.54 | CC5: ='Eq. UsageRate '!N5*$BS$4 -> 3912.64 | CD5: ='Eq. UsageRate '!O5*$BS$4 -> 2200.86 | CE5: ='Eq. UsageRate '!P5*$CG$3 -> 0 | CF5: ='Eq. UsageRate '!Q5*$CG$3 -> 420 | CG5: ='Eq. UsageRate '!R5*$CG$3 -> 840 | CH5: ='Eq. UsageRate '!S5*$CH$4 -> 0 | CJ5: =SUM('Eq. UsageRate '!E5:R5)*$CJ$4 -> 40259 | CK5: =CJ5*$CK$4 -> 17713.96 | CL5: =CJ5*$CL$4 -> 7246.62 | CM5: =CJ5*$CM$4 -> 15298.42 | CN5: =CK5 -> 17713.96 | CO5: =CN5*$CO$4 -> 2657.094 | CP5: =CN5*$CP$4 -> 11514.074 | CQ5: =CN5*$CQ$4 -> 3542.792 | CS5: =CO5 -> 2657.094 | CT5: =IFERROR(($CS5*'Eq. UsageRate '!BC5),0) -> 148.8710633 | CU5: =IFERROR(($CS5*'Eq. UsageRate '!BD5),0) -> 223.306595 | CV5: =IFERROR(($CS5*'Eq. UsageRate '!BE5),0) -> 421.8013461 | CW5: =IFERROR(($CS5*'Eq. UsageRate '!BF5),0) -> 558.2664875 | CX5: =IFERROR(($CS5*'Eq. UsageRate '!BG5),0) -> 496.2368778 | CY5: =IFERROR(($CS5*'Eq. UsageRate '!BH5),0) -> 9.54301688 | CZ5: =IFERROR(($CS5*'Eq. UsageRate '!BI5),0) -> 0 | DA5: =IFERROR(($CS5*'Eq. UsageRate '!BJ5),0) -> 0 | DB5: =IFERROR(($CS5*'Eq. UsageRate '!BK5),0) -> 3.817206752 | DC5: =IFERROR(($CS5*'Eq. UsageRate '!BL5),0) -> 152.6882701 | DD5: =IFERROR(($CS5*'Eq. UsageRate '!BM5),0) -> 57.25810128 | DE5: =IFERROR(($CS5*'Eq. UsageRate '!BN5),0) -> 0 | DF5: =IFERROR(($CS5*'Eq. UsageRate '!BO5),0) -> 19.08603376 | DG5: =IFERROR(($CS5*'Eq. UsageRate '!BP5),0) -> 0 | DH5: =IFERROR(($CS5*'Eq. UsageRate '!BQ5),0) -> 477.150844 | DJ5: =CP5 -> 11514.074 | DK5: =IFERROR(($DJ5*'Eq. UsageRate '!BT5),0) -> 0 | DL5: =IFERROR(($DJ5*'Eq. UsageRate '!BU5),0) -> 0 | DM5: =IFERROR(($DJ5*'Eq. UsageRate '!BV5),0) -> 0 | DN5: =IFERROR(($DJ5*'Eq. UsageRate '!BW5),0) -> 0 | DO5: =IFERROR(($DJ5*'Eq. UsageRate '!BX5),0) -> 0 | DP5: =IFERROR(($DJ5*'Eq. UsageRate '!BY5),0) -> 0 | DQ5: =IFERROR(($DJ5*'Eq. UsageRate '!BZ5),0) -> 0 | DR5: =IFERROR(($DJ5*'Eq. UsageRate '!CA5),0) -> 0 | DS5: =IFERROR(($DJ5*'Eq. UsageRate '!CB5),0) -> 0 | DT5: =IFERROR(($DJ5*'Eq. UsageRate '!CC5),0) -> 0 | DU5: =IFERROR(($DJ5*'Eq. UsageRate '!CD5),0) -> 0 | DV5: =IFERROR(($DJ5*'Eq. UsageRate '!CE5),0) -> 0 | DW5: =IFERROR(($DJ5*'Eq. UsageRate '!CF5),0) -> 0 | DX5: =IFERROR(($DJ5*'Eq. UsageRate '!CG5),0) -> 0 | DY5: =IFERROR(($DJ5*'Eq. UsageRate '!CH5),0) -> 0 | EA5: =CQ5 -> 3542.792 | EB5: =IFERROR(($EA5*'Eq. UsageRate '!BT5),0) -> 0 | EC5: =IFERROR(($EA5*'Eq. UsageRate '!BU5),0) -> 0 | ED5: =IFERROR(($EA5*'Eq. UsageRate '!BV5),0) -> 0 | EE5: =IFERROR(($EA5*'Eq. UsageRate '!BW5),0) -> 0 | EF5: =IFERROR(($EA5*'Eq. UsageRate '!BX5),0) -> 0 | EG5: =IFERROR(($EA5*'Eq. UsageRate '!BY5),0) -> 0 | EH5: =IFERROR(($EA5*'Eq. UsageRate '!BZ5),0) -> 0 | EI5: =IFERROR(($EA5*'Eq. UsageRate '!CA5),0) -> 0 | EJ5: =IFERROR(($EA5*'Eq. UsageRate '!CB5),0) -> 0 | EK5: =IFERROR(($EA5*'Eq. UsageRate '!CC5),0) -> 0 | EL5: =IFERROR(($EA5*'Eq. UsageRate '!CD5),0) -> 0 | EM5: =IFERROR(($EA5*'Eq. UsageRate '!CE5),0) -> 0 | EN5: =IFERROR(($EA5*'Eq. UsageRate '!CF5),0) -> 0 | EO5: =IFERROR(($EA5*'Eq. UsageRate '!CG5),0) -> 0 | EP5: =IFERROR(($EA5*'Eq. UsageRate '!CH5),0) -> 0 | ER5: =CM5 -> 15298.42 | ES5: =IFERROR(($ER5*'Eq. UsageRate '!CK5),0) -> 0 | ET5: =IFERROR(($ER5*'Eq. UsageRate '!CL5),0) -> 0 | EU5: =IFERROR(($ER5*'Eq. UsageRate '!CM5),0) -> 0 | EV5: =IFERROR(($ER5*'Eq. UsageRate '!CN5),0) -> 0 | EW5: =IFERROR(($ER5*'Eq. UsageRate '!CO5),0) -> 0 | EX5: =IFERROR(($ER5*'Eq. UsageRate '!CP5),0) -> 0 | EY5: =IFERROR(($ER5*'Eq. UsageRate '!CQ5),0) -> 0 | EZ5: =IFERROR(($ER5*'Eq. UsageRate '!CR5),0) -> 0 | FA5: =IFERROR(($ER5*'Eq. UsageRate '!CS5),0) -> 0 | FB5: =IFERROR(($ER5*'Eq. UsageRate '!CT5),0) -> 0 | FC5: =IFERROR(($ER5*'Eq. UsageRate '!CU5),0) -> 0 | FD5: =IFERROR(($ER5*'Eq. UsageRate '!CV5),0) -> 0 | FE5: =IFERROR(($ER5*'Eq. UsageRate '!CW5),0) -> 0 | FF5: =IFERROR(($ER5*'Eq. UsageRate '!CX5),0) -> 0 | FG5: =IFERROR(($ER5*'Eq. UsageRate '!CY5),0) -> 0
B6: 2 | C6: 133 | D6: Buyende | E6: 11150.93333 | F6: =IFERROR(($E6*'Eq. UsageRate '!BC6),0) -> 572.5241724 | G6: =IFERROR(($E6*'Eq. UsageRate '!BD6),0) -> 843.9795989 | H6: =IFERROR(($E6*'Eq. UsageRate '!BE6),0) -> 1678.088091 | I6: =IFERROR(($E6*'Eq. UsageRate '!BF6),0) -> 2591.165435 | J6: =IFERROR(($E6*'Eq. UsageRate '!BG6),0) -> 1184.53277 | K6: =IFERROR(($E6*'Eq. UsageRate '!BH6),0) -> 66.44013937 | L6: =IFERROR(($E6*'Eq. UsageRate '!BI6),0) -> 0 | M6: =IFERROR(($E6*'Eq. UsageRate '!BJ6),0) -> 0 | N6: =IFERROR(($E6*'Eq. UsageRate '!BK6),0) -> 0 | O6: =IFERROR(($E6*'Eq. UsageRate '!BL6),0) -> 512.538218 | P6: =IFERROR(($E6*'Eq. UsageRate '!BM6),0) -> 113.8973818 | Q6: =IFERROR(($E6*'Eq. UsageRate '!BN6),0) -> 94.91448481 | R6: =IFERROR(($E6*'Eq. UsageRate '!BO6),0) -> 113.8973818 | S6: =IFERROR(($E6*'Eq. UsageRate '!BP6),0) -> 0 | T6: =IFERROR(($E6*'Eq. UsageRate '!BQ6),0) -> 2847.434544 | V6: 41935.06667 | W6: ='Eq. UsageRate '!W6*$V6 ->  | X6: ='Eq. UsageRate '!X6*$V6 ->  | Y6: ='Eq. UsageRate '!Y6*$V6 ->  | Z6: ='Eq. UsageRate '!Z6*$V6 ->  | AA6: ='Eq. UsageRate '!AA6*$V6 ->  | AB6: ='Eq. UsageRate '!AB6*$V6 ->  | AC6: ='Eq. UsageRate '!AC6*$V6 ->  | AD6: ='Eq. UsageRate '!AD6*$V6 ->  | AE6: ='Eq. UsageRate '!AE6*$V6 ->  | AF6: ='Eq. UsageRate '!AF6*$V6 ->  | AG6: ='Eq. UsageRate '!AG6*$V6 ->  | AH6: ='Eq. UsageRate '!AH6*$V6 ->  | AI6: ='Eq. UsageRate '!AI6*$V6 ->  | AJ6: ='Eq. UsageRate '!AJ6*$V6 ->  | AK6: ='Eq. UsageRate '!AK6*$V6 ->  | AL6: ='Eq. UsageRate '!AL6*$V6 ->  | AM6: ='Eq. UsageRate '!AM6*$V6 ->  | AN6: ='Eq. UsageRate '!AN6*$V6 ->  | AO6: ='Eq. UsageRate '!AO6*$V6 ->  | AP6: ='Eq. UsageRate '!AP6*$V6 ->  | AQ6: ='Eq. UsageRate '!AQ6*$V6 ->  | AR6: ='Eq. UsageRate '!AR6*$V6 ->  | AS6: ='Eq. UsageRate '!AS6*$V6 ->  | AT6: ='Eq. UsageRate '!AT6*$V6 ->  | AU6: ='Eq. UsageRate '!AU6*$V6 ->  | AV6: ='Eq. UsageRate '!AV6*$V6 ->  | AW6: ='Eq. UsageRate '!AW6*$V6 ->  | AX6: ='Eq. UsageRate '!AX6*$V6 ->  | AY6: ='Eq. UsageRate '!AY6*$V6 ->  | AZ6: ='Eq. UsageRate '!AZ6*$V6 -> 0 | BB6: 0 | BC6: =IFERROR(($BB6*'Eq. UsageRate '!BT6),0) -> 0 | BD6: =IFERROR(($BB6*'Eq. UsageRate '!BU6),0) -> 0 | BE6: =IFERROR(($BB6*'Eq. UsageRate '!BV6),0) -> 0 | BF6: =IFERROR(($BB6*'Eq. UsageRate '!BW6),0) -> 0 | BG6: =IFERROR(($BB6*'Eq. UsageRate '!BX6),0) -> 0 | BH6: =IFERROR(($BB6*'Eq. UsageRate '!BY6),0) -> 0 | BI6: =IFERROR(($BB6*'Eq. UsageRate '!BZ6),0) -> 0 | BJ6: =IFERROR(($BB6*'Eq. UsageRate '!CA6),0) -> 0 | BK6: =IFERROR(($BB6*'Eq. UsageRate '!CB6),0) -> 0 | BL6: =IFERROR(($BB6*'Eq. UsageRate '!CC6),0) -> 0 | BM6: =IFERROR(($BB6*'Eq. UsageRate '!CD6),0) -> 0 | BN6: =IFERROR(($BB6*'Eq. UsageRate '!CE6),0) -> 0 | BO6: =IFERROR(($BB6*'Eq. UsageRate '!CF6),0) -> 0 | BP6: =IFERROR(($BB6*'Eq. UsageRate '!CG6),0) -> 0 | BQ6: =IFERROR(($BB6*'Eq. UsageRate '!CH6),0) -> 0 | BS6: =SUM(BT6:CH6) -> 51077.08 | BT6: ='Eq. UsageRate '!E6*$BS$4 -> 14183.32 | BU6: ='Eq. UsageRate '!F6*$BS$4 -> 13938.78 | BV6: ='Eq. UsageRate '!G6*$BS$4 -> 8314.36 | BW6: ='Eq. UsageRate '!H6*$BS$4 -> 6847.12 | BX6: ='Eq. UsageRate '!I6*$BS$4 -> 1467.24 | BY6: ='Eq. UsageRate '!J6*$BS$4 -> 1711.78 | BZ6: ='Eq. UsageRate '!K6*$BS$4 -> 0 | CA6: ='Eq. UsageRate '!L6*$BS$4 -> 0 | CB6: ='Eq. UsageRate '!M6*$BS$4 -> 0 | CC6: ='Eq. UsageRate '!N6*$BS$4 -> 2200.86 | CD6: ='Eq. UsageRate '!O6*$BS$4 -> 733.62 | CE6: ='Eq. UsageRate '!P6*$CG$3 -> 420 | CF6: ='Eq. UsageRate '!Q6*$CG$3 -> 420 | CG6: ='Eq. UsageRate '!R6*$CG$3 -> 840 | CH6: ='Eq. UsageRate '!S6*$CH$4 -> 0 | CJ6: =SUM('Eq. UsageRate '!E6:R6)*$CJ$4 -> 26162 | CK6: =CJ6*$CK$4 -> 11511.28 | CL6: =CJ6*$CL$4 -> 4709.16 | CM6: =CJ6*$CM$4 -> 9941.56 | CN6: =CK6 -> 11511.28 | CO6: =CN6*$CO$4 -> 1726.692 | CP6: =CN6*$CP$4 -> 7482.332 | CQ6: =CN6*$CQ$4 -> 2302.256 | CS6: =CO6 -> 1726.692 | CT6: =IFERROR(($CS6*'Eq. UsageRate '!BC6),0) -> 88.65382643 | CU6: =IFERROR(($CS6*'Eq. UsageRate '!BD6),0) -> 130.6879683 | CV6: =IFERROR(($CS6*'Eq. UsageRate '!BE6),0) -> 259.8474223 | CW6: =IFERROR(($CS6*'Eq. UsageRate '!BF6),0) -> 401.2349903 | CX6: =IFERROR(($CS6*'Eq. UsageRate '!BG6),0) -> 183.4217098 | CY6: =IFERROR(($CS6*'Eq. UsageRate '!BH6),0) -> 10.28807667 | CZ6: =IFERROR(($CS6*'Eq. UsageRate '!BI6),0) -> 0 | DA6: =IFERROR(($CS6*'Eq. UsageRate '!BJ6),0) -> 0 | DB6: =IFERROR(($CS6*'Eq. UsageRate '!BK6),0) -> 0 | DC6: =IFERROR(($CS6*'Eq. UsageRate '!BL6),0) -> 79.36516292 | DD6: =IFERROR(($CS6*'Eq. UsageRate '!BM6),0) -> 17.63670287 | DE6: =IFERROR(($CS6*'Eq. UsageRate '!BN6),0) -> 14.69725239 | DF6: =IFERROR(($CS6*'Eq. UsageRate '!BO6),0) -> 17.63670287 | DG6: =IFERROR(($CS6*'Eq. UsageRate '!BP6),0) -> 0 | DH6: =IFERROR(($CS6*'Eq. UsageRate '!BQ6),0) -> 440.9175718 | DJ6: =CP6 -> 7482.332 | DK6: =IFERROR(($DJ6*'Eq. UsageRate '!BT6),0) -> 0 | DL6: =IFERROR(($DJ6*'Eq. UsageRate '!BU6),0) -> 0 | DM6: =IFERROR(($DJ6*'Eq. UsageRate '!BV6),0) -> 0 | DN6: =IFERROR(($DJ6*'Eq. UsageRate '!BW6),0) -> 0 | DO6: =IFERROR(($DJ6*'Eq. UsageRate '!BX6),0) -> 0 | DP6: =IFERROR(($DJ6*'Eq. UsageRate '!BY6),0) -> 0 | DQ6: =IFERROR(($DJ6*'Eq. UsageRate '!BZ6),0) -> 0 | DR6: =IFERROR(($DJ6*'Eq. UsageRate '!CA6),0) -> 0 | DS6: =IFERROR(($DJ6*'Eq. UsageRate '!CB6),0) -> 0 | DT6: =IFERROR(($DJ6*'Eq. UsageRate '!CC6),0) -> 0 | DU6: =IFERROR(($DJ6*'Eq. UsageRate '!CD6),0) -> 0 | DV6: =IFERROR(($DJ6*'Eq. UsageRate '!CE6),0) -> 0 | DW6: =IFERROR(($DJ6*'Eq. UsageRate '!CF6),0) -> 0 | DX6: =IFERROR(($DJ6*'Eq. UsageRate '!CG6),0) -> 0 | DY6: =IFERROR(($DJ6*'Eq. UsageRate '!CH6),0) -> 0 | EA6: =CQ6 -> 2302.256 | EB6: =IFERROR(($EA6*'Eq. UsageRate '!BT6),0) -> 0 | EC6: =IFERROR(($EA6*'Eq. UsageRate '!BU6),0) -> 0 | ED6: =IFERROR(($EA6*'Eq. UsageRate '!BV6),0) -> 0 | EE6: =IFERROR(($EA6*'Eq. UsageRate '!BW6),0) -> 0 | EF6: =IFERROR(($EA6*'Eq. UsageRate '!BX6),0) -> 0 | EG6: =IFERROR(($EA6*'Eq. UsageRate '!BY6),0) -> 0 | EH6: =IFERROR(($EA6*'Eq. UsageRate '!BZ6),0) -> 0 | EI6: =IFERROR(($EA6*'Eq. UsageRate '!CA6),0) -> 0 | EJ6: =IFERROR(($EA6*'Eq. UsageRate '!CB6),0) -> 0 | EK6: =IFERROR(($EA6*'Eq. UsageRate '!CC6),0) -> 0 | EL6: =IFERROR(($EA6*'Eq. UsageRate '!CD6),0) -> 0 | EM6: =IFERROR(($EA6*'Eq. UsageRate '!CE6),0) -> 0 | EN6: =IFERROR(($EA6*'Eq. UsageRate '!CF6),0) -> 0 | EO6: =IFERROR(($EA6*'Eq. UsageRate '!CG6),0) -> 0 | EP6: =IFERROR(($EA6*'Eq. UsageRate '!CH6),0) -> 0 | ER6: =CM6 -> 9941.56 | ES6: =IFERROR(($ER6*'Eq. UsageRate '!CK6),0) -> 0 | ET6: =IFERROR(($ER6*'Eq. UsageRate '!CL6),0) -> 0 | EU6: =IFERROR(($ER6*'Eq. UsageRate '!CM6),0) -> 0 | EV6: =IFERROR(($ER6*'Eq. UsageRate '!CN6),0) -> 0 | EW6: =IFERROR(($ER6*'Eq. UsageRate '!CO6),0) -> 0 | EX6: =IFERROR(($ER6*'Eq. UsageRate '!CP6),0) -> 0 | EY6: =IFERROR(($ER6*'Eq. UsageRate '!CQ6),0) -> 0 | EZ6: =IFERROR(($ER6*'Eq. UsageRate '!CR6),0) -> 0 | FA6: =IFERROR(($ER6*'Eq. UsageRate '!CS6),0) -> 0 | FB6: =IFERROR(($ER6*'Eq. UsageRate '!CT6),0) -> 0 | FC6: =IFERROR(($ER6*'Eq. UsageRate '!CU6),0) -> 0 | FD6: =IFERROR(($ER6*'Eq. UsageRate '!CV6),0) -> 0 | FE6: =IFERROR(($ER6*'Eq. UsageRate '!CW6),0) -> 0 | FF6: =IFERROR(($ER6*'Eq. UsageRate '!CX6),0) -> 0 | FG6: =IFERROR(($ER6*'Eq. UsageRate '!CY6),0) -> 0
B7: 3 | C7: 20 + 62 | D7: Dirako + Rukada | E7: 15280.4 | F7: =IFERROR(($E7*'Eq. UsageRate '!BC7),0) -> 1119.433049 | G7: =IFERROR(($E7*'Eq. UsageRate '!BD7),0) -> 1661.094201 | H7: =IFERROR(($E7*'Eq. UsageRate '!BE7),0) -> 2347.198328 | I7: =IFERROR(($E7*'Eq. UsageRate '!BF7),0) -> 3611.07435 | J7: =IFERROR(($E7*'Eq. UsageRate '!BG7),0) -> 1444.42974 | K7: =IFERROR(($E7*'Eq. UsageRate '!BH7),0) -> 46.295825 | L7: =IFERROR(($E7*'Eq. UsageRate '!BI7),0) -> 27.777495 | M7: =IFERROR(($E7*'Eq. UsageRate '!BJ7),0) -> 0 | N7: =IFERROR(($E7*'Eq. UsageRate '!BK7),0) -> 0 | O7: =IFERROR(($E7*'Eq. UsageRate '!BL7),0) -> 486.1061625 | P7: =IFERROR(($E7*'Eq. UsageRate '!BM7),0) -> 277.77495 | Q7: =IFERROR(($E7*'Eq. UsageRate '!BN7),0) -> 0 | R7: =IFERROR(($E7*'Eq. UsageRate '!BO7),0) -> 138.887475 | S7: =IFERROR(($E7*'Eq. UsageRate '!BP7),0) -> 0 | T7: =IFERROR(($E7*'Eq. UsageRate '!BQ7),0) -> 3472.186875 | V7: 41935.06667 | W7: ='Eq. UsageRate '!W7*$V7 ->  | X7: ='Eq. UsageRate '!X7*$V7 ->  | Y7: ='Eq. UsageRate '!Y7*$V7 ->  | Z7: ='Eq. UsageRate '!Z7*$V7 ->  | AA7: ='Eq. UsageRate '!AA7*$V7 ->  | AB7: ='Eq. UsageRate '!AB7*$V7 ->  | AC7: ='Eq. UsageRate '!AC7*$V7 ->  | AD7: ='Eq. UsageRate '!AD7*$V7 ->  | AE7: ='Eq. UsageRate '!AE7*$V7 ->  | AF7: ='Eq. UsageRate '!AF7*$V7 ->  | AG7: ='Eq. UsageRate '!AG7*$V7 ->  | AH7: ='Eq. UsageRate '!AH7*$V7 ->  | AI7: ='Eq. UsageRate '!AI7*$V7 ->  | AJ7: ='Eq. UsageRate '!AJ7*$V7 ->  | AK7: ='Eq. UsageRate '!AK7*$V7 ->  | AL7: ='Eq. UsageRate '!AL7*$V7 ->  | AM7: ='Eq. UsageRate '!AM7*$V7 ->  | AN7: ='Eq. UsageRate '!AN7*$V7 ->  | AO7: ='Eq. UsageRate '!AO7*$V7 ->  | AP7: ='Eq. UsageRate '!AP7*$V7 ->  | AQ7: ='Eq. UsageRate '!AQ7*$V7 ->  | AR7: ='Eq. UsageRate '!AR7*$V7 ->  | AS7: ='Eq. UsageRate '!AS7*$V7 ->  | AT7: ='Eq. UsageRate '!AT7*$V7 ->  | AU7: ='Eq. UsageRate '!AU7*$V7 ->  | AV7: ='Eq. UsageRate '!AV7*$V7 ->  | AW7: ='Eq. UsageRate '!AW7*$V7 ->  | AX7: ='Eq. UsageRate '!AX7*$V7 ->  | AY7: ='Eq. UsageRate '!AY7*$V7 ->  | AZ7: ='Eq. UsageRate '!AZ7*$V7 -> 0 | BB7: 0 | BC7: =IFERROR(($BB7*'Eq. UsageRate '!BT7),0) -> 0 | BD7: =IFERROR(($BB7*'Eq. UsageRate '!BU7),0) -> 0 | BE7: =IFERROR(($BB7*'Eq. UsageRate '!BV7),0) -> 0 | BF7: =IFERROR(($BB7*'Eq. UsageRate '!BW7),0) -> 0 | BG7: =IFERROR(($BB7*'Eq. UsageRate '!BX7),0) -> 0 | BH7: =IFERROR(($BB7*'Eq. UsageRate '!BY7),0) -> 0 | BI7: =IFERROR(($BB7*'Eq. UsageRate '!BZ7),0) -> 0 | BJ7: =IFERROR(($BB7*'Eq. UsageRate '!CA7),0) -> 0 | BK7: =IFERROR(($BB7*'Eq. UsageRate '!CB7),0) -> 0 | BL7: =IFERROR(($BB7*'Eq. UsageRate '!CC7),0) -> 0 | BM7: =IFERROR(($BB7*'Eq. UsageRate '!CD7),0) -> 0 | BN7: =IFERROR(($BB7*'Eq. UsageRate '!CE7),0) -> 0 | BO7: =IFERROR(($BB7*'Eq. UsageRate '!CF7),0) -> 0 | BP7: =IFERROR(($BB7*'Eq. UsageRate '!CG7),0) -> 0 | BQ7: =IFERROR(($BB7*'Eq. UsageRate '!CH7),0) -> 0 | BS7: 69975.74 | BT7: ='Eq. UsageRate '!E7*$BS$4 -> 22742.22 | BU7: ='Eq. UsageRate '!F7*$BS$4 -> 22497.68 | BV7: ='Eq. UsageRate '!G7*$BS$4 -> 9537.06 | BW7: ='Eq. UsageRate '!H7*$BS$4 -> 7825.28 | BX7: ='Eq. UsageRate '!I7*$BS$4 -> 1467.24 | BY7: ='Eq. UsageRate '!J7*$BS$4 -> 978.16 | BZ7: ='Eq. UsageRate '!K7*$BS$4 -> 489.08 | CA7: ='Eq. UsageRate '!L7*$BS$4 -> 0 | CB7: ='Eq. UsageRate '!M7*$BS$4 -> 0 | CC7: ='Eq. UsageRate '!N7*$BS$4 -> 1711.78 | CD7: ='Eq. UsageRate '!O7*$BS$4 -> 1467.24 | CE7: ='Eq. UsageRate '!P7*$CG$3 -> 0 | CF7: ='Eq. UsageRate '!Q7*$CG$3 -> 420 | CG7: ='Eq. UsageRate '!R7*$CG$3 -> 840 | CH7: ='Eq. UsageRate '!S7*$CH$4 -> 0 | CJ7: =SUM('Eq. UsageRate '!E7:R7)*$CJ$4 -> 36068 | CK7: 15869.92 | CL7: 6492.24 | CM7: 13705.84 | CN7: 15869.92 | CO7: 2380.488 | CP7: 10315.448 | CQ7: 3173.984 | CS7: 2380.488 | CT7: =IFERROR(($CS7*'Eq. UsageRate '!BC7),0) -> 174.3931402 | CU7: =IFERROR(($CS7*'Eq. UsageRate '!BD7),0) -> 258.7769177 | CV7: =IFERROR(($CS7*'Eq. UsageRate '!BE7),0) -> 365.6630358 | CW7: =IFERROR(($CS7*'Eq. UsageRate '!BF7),0) -> 562.5585166 | CX7: =IFERROR(($CS7*'Eq. UsageRate '!BG7),0) -> 225.0234067 | CY7: =IFERROR(($CS7*'Eq. UsageRate '!BH7),0) -> 7.212288675 | CZ7: =IFERROR(($CS7*'Eq. UsageRate '!BI7),0) -> 4.327373205 | DA7: =IFERROR(($CS7*'Eq. UsageRate '!BJ7),0) -> 0 | DB7: =IFERROR(($CS7*'Eq. UsageRate '!BK7),0) -> 0 | DC7: =IFERROR(($CS7*'Eq. UsageRate '!BL7),0) -> 75.72903109 | DD7: =IFERROR(($CS7*'Eq. UsageRate '!BM7),0) -> 43.27373205 | DE7: =IFERROR(($CS7*'Eq. UsageRate '!BN7),0) -> 0 | DF7: =IFERROR(($CS7*'Eq. UsageRate '!BO7),0) -> 21.63686602 | DG7: =IFERROR(($CS7*'Eq. UsageRate '!BP7),0) -> 0 | DH7: =IFERROR(($CS7*'Eq. UsageRate '!BQ7),0) -> 540.9216506 | DJ7: 10315.448 | DK7: =IFERROR(($DJ7*'Eq. UsageRate '!BT7),0) -> 0 | DL7: =IFERROR(($DJ7*'Eq. UsageRate '!BU7),0) -> 0 | DM7: =IFERROR(($DJ7*'Eq. UsageRate '!BV7),0) -> 0 | DN7: =IFERROR(($DJ7*'Eq. UsageRate '!BW7),0) -> 0 | DO7: =IFERROR(($DJ7*'Eq. UsageRate '!BX7),0) -> 0 | DP7: =IFERROR(($DJ7*'Eq. UsageRate '!BY7),0) -> 0 | DQ7: =IFERROR(($DJ7*'Eq. UsageRate '!BZ7),0) -> 0 | DR7: =IFERROR(($DJ7*'Eq. UsageRate '!CA7),0) -> 0 | DS7: =IFERROR(($DJ7*'Eq. UsageRate '!CB7),0) -> 0 | DT7: =IFERROR(($DJ7*'Eq. UsageRate '!CC7),0) -> 0 | DU7: =IFERROR(($DJ7*'Eq. UsageRate '!CD7),0) -> 0 | DV7: =IFERROR(($DJ7*'Eq. UsageRate '!CE7),0) -> 0 | DW7: =IFERROR(($DJ7*'Eq. UsageRate '!CF7),0) -> 0 | DX7: =IFERROR(($DJ7*'Eq. UsageRate '!CG7),0) -> 0 | DY7: =IFERROR(($DJ7*'Eq. UsageRate '!CH7),0) -> 0 | EA7: 3173.984 | EB7: =IFERROR(($EA7*'Eq. UsageRate '!BT7),0) -> 0 | EC7: =IFERROR(($EA7*'Eq. UsageRate '!BU7),0) -> 0 | ED7: =IFERROR(($EA7*'Eq. UsageRate '!BV7),0) -> 0 | EE7: =IFERROR(($EA7*'Eq. UsageRate '!BW7),0) -> 0 | EF7: =IFERROR(($EA7*'Eq. UsageRate '!BX7),0) -> 0 | EG7: =IFERROR(($EA7*'Eq. UsageRate '!BY7),0) -> 0 | EH7: =IFERROR(($EA7*'Eq. UsageRate '!BZ7),0) -> 0 | EI7: =IFERROR(($EA7*'Eq. UsageRate '!CA7),0) -> 0 | EJ7: =IFERROR(($EA7*'Eq. UsageRate '!CB7),0) -> 0 | EK7: =IFERROR(($EA7*'Eq. UsageRate '!CC7),0) -> 0 | EL7: =IFERROR(($EA7*'Eq. UsageRate '!CD7),0) -> 0 | EM7: =IFERROR(($EA7*'Eq. UsageRate '!CE7),0) -> 0 | EN7: =IFERROR(($EA7*'Eq. UsageRate '!CF7),0) -> 0 | EO7: =IFERROR(($EA7*'Eq. UsageRate '!CG7),0) -> 0 | EP7: =IFERROR(($EA7*'Eq. UsageRate '!CH7),0) -> 0 | ER7: 13705.84 | ES7: =IFERROR(($ER7*'Eq. UsageRate '!CK7),0) -> 0 | ET7: =IFERROR(($ER7*'Eq. UsageRate '!CL7),0) -> 0 | EU7: =IFERROR(($ER7*'Eq. UsageRate '!CM7),0) -> 0 | EV7: =IFERROR(($ER7*'Eq. UsageRate '!CN7),0) -> 0 | EW7: =IFERROR(($ER7*'Eq. UsageRate '!CO7),0) -> 0 | EX7: =IFERROR(($ER7*'Eq. UsageRate '!CP7),0) -> 0 | EY7: =IFERROR(($ER7*'Eq. UsageRate '!CQ7),0) -> 0 | EZ7: =IFERROR(($ER7*'Eq. UsageRate '!CR7),0) -> 0 | FA7: =IFERROR(($ER7*'Eq. UsageRate '!CS7),0) -> 0 | FB7: =IFERROR(($ER7*'Eq. UsageRate '!CT7),0) -> 0 | FC7: =IFERROR(($ER7*'Eq. UsageRate '!CU7),0) -> 0 | FD7: =IFERROR(($ER7*'Eq. UsageRate '!CV7),0) -> 0 | FE7: =IFERROR(($ER7*'Eq. UsageRate '!CW7),0) -> 0 | FF7: =IFERROR(($ER7*'Eq. UsageRate '!CX7),0) -> 0 | FG7: =IFERROR(($ER7*'Eq. UsageRate '!CY7),0) -> 0
B8: 4 | C8: 102 | D8: Mukhwayo | E8: 11150.93333 | F8: =IFERROR(($E8*'Eq. UsageRate '!BC8),0) -> 630.3986229 | G8: =IFERROR(($E8*'Eq. UsageRate '!BD8),0) -> 928.712257 | H8: =IFERROR(($E8*'Eq. UsageRate '!BE8),0) -> 1407.139783 | I8: =IFERROR(($E8*'Eq. UsageRate '!BF8),0) -> 1794.103224 | J8: =IFERROR(($E8*'Eq. UsageRate '!BG8),0) -> 1801.138923 | K8: =IFERROR(($E8*'Eq. UsageRate '!BH8),0) -> 21.64830436 | L8: =IFERROR(($E8*'Eq. UsageRate '!BI8),0) -> 0 | M8: =IFERROR(($E8*'Eq. UsageRate '!BJ8),0) -> 0 | N8: =IFERROR(($E8*'Eq. UsageRate '!BK8),0) -> 0 | O8: =IFERROR(($E8*'Eq. UsageRate '!BL8),0) -> 454.6143915 | P8: =IFERROR(($E8*'Eq. UsageRate '!BM8),0) -> 129.8898261 | Q8: =IFERROR(($E8*'Eq. UsageRate '!BN8),0) -> 0 | R8: =IFERROR(($E8*'Eq. UsageRate '!BO8),0) -> 129.8898261 | S8: =IFERROR(($E8*'Eq. UsageRate '!BP8),0) -> 0 | T8: =IFERROR(($E8*'Eq. UsageRate '!BQ8),0) -> 3247.245654 | V8: 38490.30256 | W8: ='Eq. UsageRate '!W8*$V8 ->  | X8: ='Eq. UsageRate '!X8*$V8 ->  | Y8: ='Eq. UsageRate '!Y8*$V8 ->  | Z8: ='Eq. UsageRate '!Z8*$V8 ->  | AA8: ='Eq. UsageRate '!AA8*$V8 ->  | AB8: ='Eq. UsageRate '!AB8*$V8 ->  | AC8: ='Eq. UsageRate '!AC8*$V8 ->  | AD8: ='Eq. UsageRate '!AD8*$V8 ->  | AE8: ='Eq. UsageRate '!AE8*$V8 ->  | AF8: ='Eq. UsageRate '!AF8*$V8 ->  | AG8: ='Eq. UsageRate '!AG8*$V8 ->  | AH8: ='Eq. UsageRate '!AH8*$V8 ->  | AI8: ='Eq. UsageRate '!AI8*$V8 ->  | AJ8: ='Eq. UsageRate '!AJ8*$V8 ->  | AK8: ='Eq. UsageRate '!AK8*$V8 ->  | AL8: ='Eq. UsageRate '!AL8*$V8 ->  | AM8: ='Eq. UsageRate '!AM8*$V8 ->  | AN8: ='Eq. UsageRate '!AN8*$V8 ->  | AO8: ='Eq. UsageRate '!AO8*$V8 ->  | AP8: ='Eq. UsageRate '!AP8*$V8 ->  | AQ8: ='Eq. UsageRate '!AQ8*$V8 ->  | AR8: ='Eq. UsageRate '!AR8*$V8 ->  | AS8: ='Eq. UsageRate '!AS8*$V8 ->  | AT8: ='Eq. UsageRate '!AT8*$V8 ->  | AU8: ='Eq. UsageRate '!AU8*$V8 ->  | AV8: ='Eq. UsageRate '!AV8*$V8 ->  | AW8: ='Eq. UsageRate '!AW8*$V8 ->  | AX8: ='Eq. UsageRate '!AX8*$V8 ->  | AY8: ='Eq. UsageRate '!AY8*$V8 ->  | AZ8: ='Eq. UsageRate '!AZ8*$V8 -> 0 | BB8: 0 | BC8: =IFERROR(($BB8*'Eq. UsageRate '!BT8),0) -> 0 | BD8: =IFERROR(($BB8*'Eq. UsageRate '!BU8),0) -> 0 | BE8: =IFERROR(($BB8*'Eq. UsageRate '!BV8),0) -> 0 | BF8: =IFERROR(($BB8*'Eq. UsageRate '!BW8),0) -> 0 | BG8: =IFERROR(($BB8*'Eq. UsageRate '!BX8),0) -> 0 | BH8: =IFERROR(($BB8*'Eq. UsageRate '!BY8),0) -> 0 | BI8: =IFERROR(($BB8*'Eq. UsageRate '!BZ8),0) -> 0 | BJ8: =IFERROR(($BB8*'Eq. UsageRate '!CA8),0) -> 0 | BK8: =IFERROR(($BB8*'Eq. UsageRate '!CB8),0) -> 0 | BL8: =IFERROR(($BB8*'Eq. UsageRate '!CC8),0) -> 0 | BM8: =IFERROR(($BB8*'Eq. UsageRate '!CD8),0) -> 0 | BN8: =IFERROR(($BB8*'Eq. UsageRate '!CE8),0) -> 0 | BO8: =IFERROR(($BB8*'Eq. UsageRate '!CF8),0) -> 0 | BP8: =IFERROR(($BB8*'Eq. UsageRate '!CG8),0) -> 0 | BQ8: =IFERROR(($BB8*'Eq. UsageRate '!CH8),0) -> 0 | BS8: 43565.42 | BT8: ='Eq. UsageRate '!E8*$BS$4 -> 13694.24 | BU8: ='Eq. UsageRate '!F8*$BS$4 -> 13449.7 | BV8: ='Eq. UsageRate '!G8*$BS$4 -> 6113.5 | BW8: ='Eq. UsageRate '!H8*$BS$4 -> 4157.18 | BX8: ='Eq. UsageRate '!I8*$BS$4 -> 1956.32 | BY8: ='Eq. UsageRate '!J8*$BS$4 -> 489.08 | BZ8: ='Eq. UsageRate '!K8*$BS$4 -> 0 | CA8: ='Eq. UsageRate '!L8*$BS$4 -> 0 | CB8: ='Eq. UsageRate '!M8*$BS$4 -> 0 | CC8: ='Eq. UsageRate '!N8*$BS$4 -> 1711.78 | CD8: ='Eq. UsageRate '!O8*$BS$4 -> 733.62 | CE8: ='Eq. UsageRate '!P8*$CG$3 -> 0 | CF8: ='Eq. UsageRate '!Q8*$CG$3 -> 420 | CG8: ='Eq. UsageRate '!R8*$CG$3 -> 840 | CH8: ='Eq. UsageRate '!S8*$CH$4 -> 0 | CJ8: =SUM('Eq. UsageRate '!E8:R8)*$CJ$4 -> 22352 | CK8: 9834.88 | CL8: 4023.36 | CM8: 8493.76 | CN8: 9834.88 | CO8: 1475.232 | CP8: 6392.672 | CQ8: 1966.976 | CS8: 1475.232 | CT8: =IFERROR(($CS8*'Eq. UsageRate '!BC8),0) -> 83.39967548 | CU8: =IFERROR(($CS8*'Eq. UsageRate '!BD8),0) -> 122.8655933 | CV8: =IFERROR(($CS8*'Eq. UsageRate '!BE8),0) -> 186.1599899 | CW8: =IFERROR(($CS8*'Eq. UsageRate '!BF8),0) -> 237.3539871 | CX8: =IFERROR(($CS8*'Eq. UsageRate '!BG8),0) -> 238.2847871 | CY8: =IFERROR(($CS8*'Eq. UsageRate '!BH8),0) -> 2.863999845 | CZ8: =IFERROR(($CS8*'Eq. UsageRate '!BI8),0) -> 0 | DA8: =IFERROR(($CS8*'Eq. UsageRate '!BJ8),0) -> 0 | DB8: =IFERROR(($CS8*'Eq. UsageRate '!BK8),0) -> 0 | DC8: =IFERROR(($CS8*'Eq. UsageRate '!BL8),0) -> 60.14399674 | DD8: =IFERROR(($CS8*'Eq. UsageRate '!BM8),0) -> 17.18399907 | DE8: =IFERROR(($CS8*'Eq. UsageRate '!BN8),0) -> 0 | DF8: =IFERROR(($CS8*'Eq. UsageRate '!BO8),0) -> 17.18399907 | DG8: =IFERROR(($CS8*'Eq. UsageRate '!BP8),0) -> 0 | DH8: =IFERROR(($CS8*'Eq. UsageRate '!BQ8),0) -> 429.5999767 | DJ8: 6392.672 | DK8: =IFERROR(($DJ8*'Eq. UsageRate '!BT8),0) -> 0 | DL8: =IFERROR(($DJ8*'Eq. UsageRate '!BU8),0) -> 0 | DM8: =IFERROR(($DJ8*'Eq. UsageRate '!BV8),0) -> 0 | DN8: =IFERROR(($DJ8*'Eq. UsageRate '!BW8),0) -> 0 | DO8: =IFERROR(($DJ8*'Eq. UsageRate '!BX8),0) -> 0 | DP8: =IFERROR(($DJ8*'Eq. UsageRate '!BY8),0) -> 0 | DQ8: =IFERROR(($DJ8*'Eq. UsageRate '!BZ8),0) -> 0 | DR8: =IFERROR(($DJ8*'Eq. UsageRate '!CA8),0) -> 0 | DS8: =IFERROR(($DJ8*'Eq. UsageRate '!CB8),0) -> 0 | DT8: =IFERROR(($DJ8*'Eq. UsageRate '!CC8),0) -> 0 | DU8: =IFERROR(($DJ8*'Eq. UsageRate '!CD8),0) -> 0 | DV8: =IFERROR(($DJ8*'Eq. UsageRate '!CE8),0) -> 0 | DW8: =IFERROR(($DJ8*'Eq. UsageRate '!CF8),0) -> 0 | DX8: =IFERROR(($DJ8*'Eq. UsageRate '!CG8),0) -> 0 | DY8: =IFERROR(($DJ8*'Eq. UsageRate '!CH8),0) -> 0 | EA8: 1966.976 | EB8: =IFERROR(($EA8*'Eq. UsageRate '!BT8),0) -> 0 | EC8: =IFERROR(($EA8*'Eq. UsageRate '!BU8),0) -> 0 | ED8: =IFERROR(($EA8*'Eq. UsageRate '!BV8),0) -> 0 | EE8: =IFERROR(($EA8*'Eq. UsageRate '!BW8),0) -> 0 | EF8: =IFERROR(($EA8*'Eq. UsageRate '!BX8),0) -> 0 | EG8: =IFERROR(($EA8*'Eq. UsageRate '!BY8),0) -> 0 | EH8: =IFERROR(($EA8*'Eq. UsageRate '!BZ8),0) -> 0 | EI8: =IFERROR(($EA8*'Eq. UsageRate '!CA8),0) -> 0 | EJ8: =IFERROR(($EA8*'Eq. UsageRate '!CB8),0) -> 0 | EK8: =IFERROR(($EA8*'Eq. UsageRate '!CC8),0) -> 0 | EL8: =IFERROR(($EA8*'Eq. UsageRate '!CD8),0) -> 0 | EM8: =IFERROR(($EA8*'Eq. UsageRate '!CE8),0) -> 0 | EN8: =IFERROR(($EA8*'Eq. UsageRate '!CF8),0) -> 0 | EO8: =IFERROR(($EA8*'Eq. UsageRate '!CG8),0) -> 0 | EP8: =IFERROR(($EA8*'Eq. UsageRate '!CH8),0) -> 0 | ER8: 8493.76 | ES8: =IFERROR(($ER8*'Eq. UsageRate '!CK8),0) -> 0 | ET8: =IFERROR(($ER8*'Eq. UsageRate '!CL8),0) -> 0 | EU8: =IFERROR(($ER8*'Eq. UsageRate '!CM8),0) -> 0 | EV8: =IFERROR(($ER8*'Eq. UsageRate '!CN8),0) -> 0 | EW8: =IFERROR(($ER8*'Eq. UsageRate '!CO8),0) -> 0 | EX8: =IFERROR(($ER8*'Eq. UsageRate '!CP8),0) -> 0 | EY8: =IFERROR(($ER8*'Eq. UsageRate '!CQ8),0) -> 0 | EZ8: =IFERROR(($ER8*'Eq. UsageRate '!CR8),0) -> 0 | FA8: =IFERROR(($ER8*'Eq. UsageRate '!CS8),0) -> 0 | FB8: =IFERROR(($ER8*'Eq. UsageRate '!CT8),0) -> 0 | FC8: =IFERROR(($ER8*'Eq. UsageRate '!CU8),0) -> 0 | FD8: =IFERROR(($ER8*'Eq. UsageRate '!CV8),0) -> 0 | FE8: =IFERROR(($ER8*'Eq. UsageRate '!CW8),0) -> 0 | FF8: =IFERROR(($ER8*'Eq. UsageRate '!CX8),0) -> 0 | FG8: =IFERROR(($ER8*'Eq. UsageRate '!CY8),0) -> 0
B9: 5 | C9: 78 | D9: Mufumu | E9: 15280.4 | F9: =IFERROR(($E9*'Eq. UsageRate '!BC9),0) -> 603.7718177 | G9: =IFERROR(($E9*'Eq. UsageRate '!BD9),0) -> 888.5698449 | H9: =IFERROR(($E9*'Eq. UsageRate '!BE9),0) -> 2961.899483 | I9: =IFERROR(($E9*'Eq. UsageRate '!BF9),0) -> 4378.769669 | J9: =IFERROR(($E9*'Eq. UsageRate '!BG9),0) -> 2506.22264 | K9: =IFERROR(($E9*'Eq. UsageRate '!BH9),0) -> 10.95377028 | L9: =IFERROR(($E9*'Eq. UsageRate '!BI9),0) -> 26.28904867 | M9: =IFERROR(($E9*'Eq. UsageRate '!BJ9),0) -> 0 | N9: =IFERROR(($E9*'Eq. UsageRate '!BK9),0) -> 26.28904867 | O9: =IFERROR(($E9*'Eq. UsageRate '!BL9),0) -> 197.167865 | P9: =IFERROR(($E9*'Eq. UsageRate '!BM9),0) -> 87.63016222 | Q9: =IFERROR(($E9*'Eq. UsageRate '!BN9),0) -> 0 | R9: =IFERROR(($E9*'Eq. UsageRate '!BO9),0) -> 0 | S9: =IFERROR(($E9*'Eq. UsageRate '!BP9),0) -> 0 | T9: =IFERROR(($E9*'Eq. UsageRate '!BQ9),0) -> 3286.131083 | V9: 35045.53846 | W9: ='Eq. UsageRate '!W9*$V9 ->  | X9: ='Eq. UsageRate '!X9*$V9 ->  | Y9: ='Eq. UsageRate '!Y9*$V9 ->  | Z9: ='Eq. UsageRate '!Z9*$V9 ->  | AA9: ='Eq. UsageRate '!AA9*$V9 ->  | AB9: ='Eq. UsageRate '!AB9*$V9 ->  | AC9: ='Eq. UsageRate '!AC9*$V9 ->  | AD9: ='Eq. UsageRate '!AD9*$V9 ->  | AE9: ='Eq. UsageRate '!AE9*$V9 ->  | AF9: ='Eq. UsageRate '!AF9*$V9 ->  | AG9: ='Eq. UsageRate '!AG9*$V9 ->  | AH9: ='Eq. UsageRate '!AH9*$V9 ->  | AI9: ='Eq. UsageRate '!AI9*$V9 ->  | AJ9: ='Eq. UsageRate '!AJ9*$V9 ->  | AK9: ='Eq. UsageRate '!AK9*$V9 ->  | AL9: ='Eq. UsageRate '!AL9*$V9 ->  | AM9: ='Eq. UsageRate '!AM9*$V9 ->  | AN9: ='Eq. UsageRate '!AN9*$V9 ->  | AO9: ='Eq. UsageRate '!AO9*$V9 ->  | AP9: ='Eq. UsageRate '!AP9*$V9 ->  | AQ9: ='Eq. UsageRate '!AQ9*$V9 ->  | AR9: ='Eq. UsageRate '!AR9*$V9 ->  | AS9: ='Eq. UsageRate '!AS9*$V9 ->  | AT9: ='Eq. UsageRate '!AT9*$V9 ->  | AU9: ='Eq. UsageRate '!AU9*$V9 ->  | AV9: ='Eq. UsageRate '!AV9*$V9 ->  | AW9: ='Eq. UsageRate '!AW9*$V9 ->  | AX9: ='Eq. UsageRate '!AX9*$V9 ->  | AY9: ='Eq. UsageRate '!AY9*$V9 ->  | AZ9: ='Eq. UsageRate '!AZ9*$V9 -> 0 | BB9: 0 | BC9: =IFERROR(($BB9*'Eq. UsageRate '!BT9),0) -> 0 | BD9: =IFERROR(($BB9*'Eq. UsageRate '!BU9),0) -> 0 | BE9: =IFERROR(($BB9*'Eq. UsageRate '!BV9),0) -> 0 | BF9: =IFERROR(($BB9*'Eq. UsageRate '!BW9),0) -> 0 | BG9: =IFERROR(($BB9*'Eq. UsageRate '!BX9),0) -> 0 | BH9: =IFERROR(($BB9*'Eq. UsageRate '!BY9),0) -> 0 | BI9: =IFERROR(($BB9*'Eq. UsageRate '!BZ9),0) -> 0 | BJ9: =IFERROR(($BB9*'Eq. UsageRate '!CA9),0) -> 0 | BK9: =IFERROR(($BB9*'Eq. UsageRate '!CB9),0) -> 0 | BL9: =IFERROR(($BB9*'Eq. UsageRate '!CC9),0) -> 0 | BM9: =IFERROR(($BB9*'Eq. UsageRate '!CD9),0) -> 0 | BN9: =IFERROR(($BB9*'Eq. UsageRate '!CE9),0) -> 0 | BO9: =IFERROR(($BB9*'Eq. UsageRate '!CF9),0) -> 0 | BP9: =IFERROR(($BB9*'Eq. UsageRate '!CG9),0) -> 0 | BQ9: =IFERROR(($BB9*'Eq. UsageRate '!CH9),0) -> 0 | BS9: 53729.72 | BT9: ='Eq. UsageRate '!E9*$BS$4 -> 12960.62 | BU9: ='Eq. UsageRate '!F9*$BS$4 -> 12716.08 | BV9: ='Eq. UsageRate '!G9*$BS$4 -> 12716.08 | BW9: ='Eq. UsageRate '!H9*$BS$4 -> 10026.14 | BX9: ='Eq. UsageRate '!I9*$BS$4 -> 2689.94 | BY9: ='Eq. UsageRate '!J9*$BS$4 -> 244.54 | BZ9: ='Eq. UsageRate '!K9*$BS$4 -> 489.08 | CA9: ='Eq. UsageRate '!L9*$BS$4 -> 0 | CB9: ='Eq. UsageRate '!M9*$BS$4 -> 244.54 | CC9: ='Eq. UsageRate '!N9*$BS$4 -> 733.62 | CD9: ='Eq. UsageRate '!O9*$BS$4 -> 489.08 | CE9: ='Eq. UsageRate '!P9*$CG$3 -> 0 | CF9: ='Eq. UsageRate '!Q9*$CG$3 -> 0 | CG9: ='Eq. UsageRate '!R9*$CG$3 -> 420 | CH9: ='Eq. UsageRate '!S9*$CH$4 -> 0 | CJ9: =SUM('Eq. UsageRate '!E9:R9)*$CJ$4 -> 27813 | CK9: 12237.72 | CL9: 5006.34 | CM9: 10568.94 | CN9: 12237.72 | CO9: 1835.658 | CP9: 7954.518 | CQ9: 2447.544 | CS9: 1835.658 | CT9: =IFERROR(($CS9*'Eq. UsageRate '!BC9),0) -> 72.53203891 | CU9: =IFERROR(($CS9*'Eq. UsageRate '!BD9),0) -> 106.7452648 | CV9: =IFERROR(($CS9*'Eq. UsageRate '!BE9),0) -> 355.8175494 | CW9: =IFERROR(($CS9*'Eq. UsageRate '!BF9),0) -> 526.0283482 | CX9: =IFERROR(($CS9*'Eq. UsageRate '!BG9),0) -> 301.0763879 | CY9: =IFERROR(($CS9*'Eq. UsageRate '!BH9),0) -> 1.315893304 | CZ9: =IFERROR(($CS9*'Eq. UsageRate '!BI9),0) -> 3.158143929 | DA9: =IFERROR(($CS9*'Eq. UsageRate '!BJ9),0) -> 0 | DB9: =IFERROR(($CS9*'Eq. UsageRate '!BK9),0) -> 3.158143929 | DC9: =IFERROR(($CS9*'Eq. UsageRate '!BL9),0) -> 23.68607947 | DD9: =IFERROR(($CS9*'Eq. UsageRate '!BM9),0) -> 10.52714643 | DE9: =IFERROR(($CS9*'Eq. UsageRate '!BN9),0) -> 0 | DF9: =IFERROR(($CS9*'Eq. UsageRate '!BO9),0) -> 0 | DG9: =IFERROR(($CS9*'Eq. UsageRate '!BP9),0) -> 0 | DH9: =IFERROR(($CS9*'Eq. UsageRate '!BQ9),0) -> 394.7679912 | DJ9: 7954.518 | DK9: =IFERROR(($DJ9*'Eq. UsageRate '!BT9),0) -> 0 | DL9: =IFERROR(($DJ9*'Eq. UsageRate '!BU9),0) -> 0 | DM9: =IFERROR(($DJ9*'Eq. UsageRate '!BV9),0) -> 0 | DN9: =IFERROR(($DJ9*'Eq. UsageRate '!BW9),0) -> 0 | DO9: =IFERROR(($DJ9*'Eq. UsageRate '!BX9),0) -> 0 | DP9: =IFERROR(($DJ9*'Eq. UsageRate '!BY9),0) -> 0 | DQ9: =IFERROR(($DJ9*'Eq. UsageRate '!BZ9),0) -> 0 | DR9: =IFERROR(($DJ9*'Eq. UsageRate '!CA9),0) -> 0 | DS9: =IFERROR(($DJ9*'Eq. UsageRate '!CB9),0) -> 0 | DT9: =IFERROR(($DJ9*'Eq. UsageRate '!CC9),0) -> 0 | DU9: =IFERROR(($DJ9*'Eq. UsageRate '!CD9),0) -> 0 | DV9: =IFERROR(($DJ9*'Eq. UsageRate '!CE9),0) -> 0 | DW9: =IFERROR(($DJ9*'Eq. UsageRate '!CF9),0) -> 0 | DX9: =IFERROR(($DJ9*'Eq. UsageRate '!CG9),0) -> 0 | DY9: =IFERROR(($DJ9*'Eq. UsageRate '!CH9),0) -> 0 | EA9: 2447.544 | EB9: =IFERROR(($EA9*'Eq. UsageRate '!BT9),0) -> 0 | EC9: =IFERROR(($EA9*'Eq. UsageRate '!BU9),0) -> 0 | ED9: =IFERROR(($EA9*'Eq. UsageRate '!BV9),0) -> 0 | EE9: =IFERROR(($EA9*'Eq. UsageRate '!BW9),0) -> 0 | EF9: =IFERROR(($EA9*'Eq. UsageRate '!BX9),0) -> 0 | EG9: =IFERROR(($EA9*'Eq. UsageRate '!BY9),0) -> 0 | EH9: =IFERROR(($EA9*'Eq. UsageRate '!BZ9),0) -> 0 | EI9: =IFERROR(($EA9*'Eq. UsageRate '!CA9),0) -> 0 | EJ9: =IFERROR(($EA9*'Eq. UsageRate '!CB9),0) -> 0 | EK9: =IFERROR(($EA9*'Eq. UsageRate '!CC9),0) -> 0 | EL9: =IFERROR(($EA9*'Eq. UsageRate '!CD9),0) -> 0 | EM9: =IFERROR(($EA9*'Eq. UsageRate '!CE9),0) -> 0 | EN9: =IFERROR(($EA9*'Eq. UsageRate '!CF9),0) -> 0 | EO9: =IFERROR(($EA9*'Eq. UsageRate '!CG9),0) -> 0 | EP9: =IFERROR(($EA9*'Eq. UsageRate '!CH9),0) -> 0 | ER9: 10568.94 | ES9: =IFERROR(($ER9*'Eq. UsageRate '!CK9),0) -> 0 | ET9: =IFERROR(($ER9*'Eq. UsageRate '!CL9),0) -> 0 | EU9: =IFERROR(($ER9*'Eq. UsageRate '!CM9),0) -> 0 | EV9: =IFERROR(($ER9*'Eq. UsageRate '!CN9),0) -> 0 | EW9: =IFERROR(($ER9*'Eq. UsageRate '!CO9),0) -> 0 | EX9: =IFERROR(($ER9*'Eq. UsageRate '!CP9),0) -> 0 | EY9: =IFERROR(($ER9*'Eq. UsageRate '!CQ9),0) -> 0 | EZ9: =IFERROR(($ER9*'Eq. UsageRate '!CR9),0) -> 0 | FA9: =IFERROR(($ER9*'Eq. UsageRate '!CS9),0) -> 0 | FB9: =IFERROR(($ER9*'Eq. UsageRate '!CT9),0) -> 0 | FC9: =IFERROR(($ER9*'Eq. UsageRate '!CU9),0) -> 0 | FD9: =IFERROR(($ER9*'Eq. UsageRate '!CV9),0) -> 0 | FE9: =IFERROR(($ER9*'Eq. UsageRate '!CW9),0) -> 0 | FF9: =IFERROR(($ER9*'Eq. UsageRate '!CX9),0) -> 0 | FG9: =IFERROR(($ER9*'Eq. UsageRate '!CY9),0) -> 0
B10: 6 | C10: 57 | D10: Makhurisi | E10: 7640.2 | F10: =IFERROR(($E10*'Eq. UsageRate '!BC10),0) -> 224.3342791 | G10: =IFERROR(($E10*'Eq. UsageRate '!BD10),0) -> 319.6763478 | H10: =IFERROR(($E10*'Eq. UsageRate '!BE10),0) -> 1458.172814 | I10: =IFERROR(($E10*'Eq. UsageRate '!BF10),0) -> 2208.29056 | J10: =IFERROR(($E10*'Eq. UsageRate '!BG10),0) -> 1121.671396 | K10: =IFERROR(($E10*'Eq. UsageRate '!BH10),0) -> 21.57060376 | L10: =IFERROR(($E10*'Eq. UsageRate '!BI10),0) -> 0 | M10: =IFERROR(($E10*'Eq. UsageRate '!BJ10),0) -> 0 | N10: =IFERROR(($E10*'Eq. UsageRate '!BK10),0) -> 0 | O10: =IFERROR(($E10*'Eq. UsageRate '!BL10),0) -> 194.1354339 | P10: =IFERROR(($E10*'Eq. UsageRate '!BM10),0) -> 43.14120753 | Q10: =IFERROR(($E10*'Eq. UsageRate '!BN10),0) -> 0 | R10: =IFERROR(($E10*'Eq. UsageRate '!BO10),0) -> 129.4236226 | S10: =IFERROR(($E10*'Eq. UsageRate '!BP10),0) -> 0 | T10: =IFERROR(($E10*'Eq. UsageRate '!BQ10),0) -> 1617.795282 | V10: 20967.53333 | W10: ='Eq. UsageRate '!W10*$V10 ->  | X10: ='Eq. UsageRate '!X10*$V10 ->  | Y10: ='Eq. UsageRate '!Y10*$V10 ->  | Z10: ='Eq. UsageRate '!Z10*$V10 ->  | AA10: ='Eq. UsageRate '!AA10*$V10 ->  | AB10: ='Eq. UsageRate '!AB10*$V10 ->  | AC10: ='Eq. UsageRate '!AC10*$V10 ->  | AD10: ='Eq. UsageRate '!AD10*$V10 ->  | AE10: ='Eq. UsageRate '!AE10*$V10 ->  | AF10: ='Eq. UsageRate '!AF10*$V10 ->  | AG10: ='Eq. UsageRate '!AG10*$V10 ->  | AH10: ='Eq. UsageRate '!AH10*$V10 ->  | AI10: ='Eq. UsageRate '!AI10*$V10 ->  | AJ10: ='Eq. UsageRate '!AJ10*$V10 ->  | AK10: ='Eq. UsageRate '!AK10*$V10 ->  | AL10: ='Eq. UsageRate '!AL10*$V10 ->  | AM10: ='Eq. UsageRate '!AM10*$V10 ->  | AN10: ='Eq. UsageRate '!AN10*$V10 ->  | AO10: ='Eq. UsageRate '!AO10*$V10 ->  | AP10: ='Eq. UsageRate '!AP10*$V10 ->  | AQ10: ='Eq. UsageRate '!AQ10*$V10 ->  | AR10: ='Eq. UsageRate '!AR10*$V10 ->  | AS10: ='Eq. UsageRate '!AS10*$V10 ->  | AT10: ='Eq. UsageRate '!AT10*$V10 ->  | AU10: ='Eq. UsageRate '!AU10*$V10 ->  | AV10: ='Eq. UsageRate '!AV10*$V10 ->  | AW10: ='Eq. UsageRate '!AW10*$V10 ->  | AX10: ='Eq. UsageRate '!AX10*$V10 ->  | AY10: ='Eq. UsageRate '!AY10*$V10 ->  | AZ10: ='Eq. UsageRate '!AZ10*$V10 -> 0 | BB10: 0 | BC10: =IFERROR(($BB10*'Eq. UsageRate '!BT10),0) -> 0 | BD10: =IFERROR(($BB10*'Eq. UsageRate '!BU10),0) -> 0 | BE10: =IFERROR(($BB10*'Eq. UsageRate '!BV10),0) -> 0 | BF10: =IFERROR(($BB10*'Eq. UsageRate '!BW10),0) -> 0 | BG10: =IFERROR(($BB10*'Eq. UsageRate '!BX10),0) -> 0 | BH10: =IFERROR(($BB10*'Eq. UsageRate '!BY10),0) -> 0 | BI10: =IFERROR(($BB10*'Eq. UsageRate '!BZ10),0) -> 0 | BJ10: =IFERROR(($BB10*'Eq. UsageRate '!CA10),0) -> 0 | BK10: =IFERROR(($BB10*'Eq. UsageRate '!CB10),0) -> 0 | BL10: =IFERROR(($BB10*'Eq. UsageRate '!CC10),0) -> 0 | BM10: =IFERROR(($BB10*'Eq. UsageRate '!CD10),0) -> 0 | BN10: =IFERROR(($BB10*'Eq. UsageRate '!CE10),0) -> 0 | BO10: =IFERROR(($BB10*'Eq. UsageRate '!CF10),0) -> 0 | BP10: =IFERROR(($BB10*'Eq. UsageRate '!CG10),0) -> 0 | BQ10: =IFERROR(($BB10*'Eq. UsageRate '!CH10),0) -> 0 | BS10: 24560.38 | BT10: ='Eq. UsageRate '!E10*$BS$4 -> 4890.8 | BU10: ='Eq. UsageRate '!F10*$BS$4 -> 4646.26 | BV10: ='Eq. UsageRate '!G10*$BS$4 -> 6358.04 | BW10: ='Eq. UsageRate '!H10*$BS$4 -> 5135.34 | BX10: ='Eq. UsageRate '!I10*$BS$4 -> 1222.7 | BY10: ='Eq. UsageRate '!J10*$BS$4 -> 489.08 | BZ10: ='Eq. UsageRate '!K10*$BS$4 -> 0 | CA10: ='Eq. UsageRate '!L10*$BS$4 -> 0 | CB10: ='Eq. UsageRate '!M10*$BS$4 -> 0 | CC10: ='Eq. UsageRate '!N10*$BS$4 -> 733.62 | CD10: ='Eq. UsageRate '!O10*$BS$4 -> 244.54 | CE10: ='Eq. UsageRate '!P10*$CG$3 -> 0 | CF10: ='Eq. UsageRate '!Q10*$CG$3 -> 420 | CG10: ='Eq. UsageRate '!R10*$CG$3 -> 420 | CH10: ='Eq. UsageRate '!S10*$CH$4 -> 0 | CJ10: =SUM('Eq. UsageRate '!E10:R10)*$CJ$4 -> 12573 | CK10: 5532.12 | CL10: 2263.14 | CM10: 4777.74 | CN10: 5532.12 | CO10: 829.818 | CP10: 3595.878 | CQ10: 1106.424 | CS10: 829.818 | CT10: =IFERROR(($CS10*'Eq. UsageRate '!BC10),0) -> 24.36541227 | CU10: =IFERROR(($CS10*'Eq. UsageRate '!BD10),0) -> 34.72071249 | CV10: =IFERROR(($CS10*'Eq. UsageRate '!BE10),0) -> 158.3751798 | CW10: =IFERROR(($CS10*'Eq. UsageRate '!BF10),0) -> 239.8470271 | CX10: =IFERROR(($CS10*'Eq. UsageRate '!BG10),0) -> 121.8270614 | CY10: =IFERROR(($CS10*'Eq. UsageRate '!BH10),0) -> 2.342828103 | CZ10: =IFERROR(($CS10*'Eq. UsageRate '!BI10),0) -> 0 | DA10: =IFERROR(($CS10*'Eq. UsageRate '!BJ10),0) -> 0 | DB10: =IFERROR(($CS10*'Eq. UsageRate '!BK10),0) -> 0 | DC10: =IFERROR(($CS10*'Eq. UsageRate '!BL10),0) -> 21.08545293 | DD10: =IFERROR(($CS10*'Eq. UsageRate '!BM10),0) -> 4.685656206 | DE10: =IFERROR(($CS10*'Eq. UsageRate '!BN10),0) -> 0 | DF10: =IFERROR(($CS10*'Eq. UsageRate '!BO10),0) -> 14.05696862 | DG10: =IFERROR(($CS10*'Eq. UsageRate '!BP10),0) -> 0 | DH10: =IFERROR(($CS10*'Eq. UsageRate '!BQ10),0) -> 175.7121077 | DJ10: 3595.878 | DK10: =IFERROR(($DJ10*'Eq. UsageRate '!BT10),0) -> 0 | DL10: =IFERROR(($DJ10*'Eq. UsageRate '!BU10),0) -> 0 | DM10: =IFERROR(($DJ10*'Eq. UsageRate '!BV10),0) -> 0 | DN10: =IFERROR(($DJ10*'Eq. UsageRate '!BW10),0) -> 0 | DO10: =IFERROR(($DJ10*'Eq. UsageRate '!BX10),0) -> 0 | DP10: =IFERROR(($DJ10*'Eq. UsageRate '!BY10),0) -> 0 | DQ10: =IFERROR(($DJ10*'Eq. UsageRate '!BZ10),0) -> 0 | DR10: =IFERROR(($DJ10*'Eq. UsageRate '!CA10),0) -> 0 | DS10: =IFERROR(($DJ10*'Eq. UsageRate '!CB10),0) -> 0 | DT10: =IFERROR(($DJ10*'Eq. UsageRate '!CC10),0) -> 0 | DU10: =IFERROR(($DJ10*'Eq. UsageRate '!CD10),0) -> 0 | DV10: =IFERROR(($DJ10*'Eq. UsageRate '!CE10),0) -> 0 | DW10: =IFERROR(($DJ10*'Eq. UsageRate '!CF10),0) -> 0 | DX10: =IFERROR(($DJ10*'Eq. UsageRate '!CG10),0) -> 0 | DY10: =IFERROR(($DJ10*'Eq. UsageRate '!CH10),0) -> 0 | EA10: 1106.424 | EB10: =IFERROR(($EA10*'Eq. UsageRate '!BT10),0) -> 0 | EC10: =IFERROR(($EA10*'Eq. UsageRate '!BU10),0) -> 0 | ED10: =IFERROR(($EA10*'Eq. UsageRate '!BV10),0) -> 0 | EE10: =IFERROR(($EA10*'Eq. UsageRate '!BW10),0) -> 0 | EF10: =IFERROR(($EA10*'Eq. UsageRate '!BX10),0) -> 0 | EG10: =IFERROR(($EA10*'Eq. UsageRate '!BY10),0) -> 0 | EH10: =IFERROR(($EA10*'Eq. UsageRate '!BZ10),0) -> 0 | EI10: =IFERROR(($EA10*'Eq. UsageRate '!CA10),0) -> 0 | EJ10: =IFERROR(($EA10*'Eq. UsageRate '!CB10),0) -> 0 | EK10: =IFERROR(($EA10*'Eq. UsageRate '!CC10),0) -> 0 | EL10: =IFERROR(($EA10*'Eq. UsageRate '!CD10),0) -> 0 | EM10: =IFERROR(($EA10*'Eq. UsageRate '!CE10),0) -> 0 | EN10: =IFERROR(($EA10*'Eq. UsageRate '!CF10),0) -> 0 | EO10: =IFERROR(($EA10*'Eq. UsageRate '!CG10),0) -> 0 | EP10: =IFERROR(($EA10*'Eq. UsageRate '!CH10),0) -> 0 | ER10: 4777.74 | ES10: =IFERROR(($ER10*'Eq. UsageRate '!CK10),0) -> 0 | ET10: =IFERROR(($ER10*'Eq. UsageRate '!CL10),0) -> 0 | EU10: =IFERROR(($ER10*'Eq. UsageRate '!CM10),0) -> 0 | EV10: =IFERROR(($ER10*'Eq. UsageRate '!CN10),0) -> 0 | EW10: =IFERROR(($ER10*'Eq. UsageRate '!CO10),0) -> 0 | EX10: =IFERROR(($ER10*'Eq. UsageRate '!CP10),0) -> 0 | EY10: =IFERROR(($ER10*'Eq. UsageRate '!CQ10),0) -> 0 | EZ10: =IFERROR(($ER10*'Eq. UsageRate '!CR10),0) -> 0 | FA10: =IFERROR(($ER10*'Eq. UsageRate '!CS10),0) -> 0 | FB10: =IFERROR(($ER10*'Eq. UsageRate '!CT10),0) -> 0 | FC10: =IFERROR(($ER10*'Eq. UsageRate '!CU10),0) -> 0 | FD10: =IFERROR(($ER10*'Eq. UsageRate '!CV10),0) -> 0 | FE10: =IFERROR(($ER10*'Eq. UsageRate '!CW10),0) -> 0 | FF10: =IFERROR(($ER10*'Eq. UsageRate '!CX10),0) -> 0 | FG10: =IFERROR(($ER10*'Eq. UsageRate '!CY10),0) -> 0
B11: 7 | C11: =Assumptions!C17 -> 61 + 95 + 96 | D11: =Assumptions!D17 -> Mumbaka + Mukhondo B + Mugonga | E11: 11150.93333 | F11: =IFERROR(($E11*'Eq. UsageRate '!BC11),0) -> 577.0733352 | G11: =IFERROR(($E11*'Eq. UsageRate '!BD11),0) -> 849.8716391 | H11: =IFERROR(($E11*'Eq. UsageRate '!BE11),0) -> 1678.758793 | I11: =IFERROR(($E11*'Eq. UsageRate '!BF11),0) -> 2262.38978 | J11: =IFERROR(($E11*'Eq. UsageRate '!BG11),0) -> 1888.603642 | K11: =IFERROR(($E11*'Eq. UsageRate '!BH11),0) -> 20.17738934 | L11: =IFERROR(($E11*'Eq. UsageRate '!BI11),0) -> 0 | M11: =IFERROR(($E11*'Eq. UsageRate '!BJ11),0) -> 0 | N11: =IFERROR(($E11*'Eq. UsageRate '!BK11),0) -> 0 | O11: =IFERROR(($E11*'Eq. UsageRate '!BL11),0) -> 363.1930082 | P11: =IFERROR(($E11*'Eq. UsageRate '!BM11),0) -> 80.70955737 | Q11: =IFERROR(($E11*'Eq. UsageRate '!BN11),0) -> 0 | R11: =IFERROR(($E11*'Eq. UsageRate '!BO11),0) -> 121.0643361 | S11: =IFERROR(($E11*'Eq. UsageRate '!BP11),0) -> 0 | T11: =IFERROR(($E11*'Eq. UsageRate '!BQ11),0) -> 3026.608401 | V11: 35045.53846 | W11: ='Eq. UsageRate '!W11*$V11 ->  | X11: ='Eq. UsageRate '!X11*$V11 ->  | Y11: ='Eq. UsageRate '!Y11*$V11 ->  | Z11: ='Eq. UsageRate '!Z11*$V11 ->  | AA11: ='Eq. UsageRate '!AA11*$V11 ->  | AB11: ='Eq. UsageRate '!AB11*$V11 ->  | AC11: ='Eq. UsageRate '!AC11*$V11 ->  | AD11: ='Eq. UsageRate '!AD11*$V11 ->  | AE11: ='Eq. UsageRate '!AE11*$V11 ->  | AF11: ='Eq. UsageRate '!AF11*$V11 ->  | AG11: ='Eq. UsageRate '!AG11*$V11 ->  | AH11: ='Eq. UsageRate '!AH11*$V11 ->  | AI11: ='Eq. UsageRate '!AI11*$V11 ->  | AJ11: ='Eq. UsageRate '!AJ11*$V11 ->  | AK11: ='Eq. UsageRate '!AK11*$V11 ->  | AL11: ='Eq. UsageRate '!AL11*$V11 ->  | AM11: ='Eq. UsageRate '!AM11*$V11 ->  | AN11: ='Eq. UsageRate '!AN11*$V11 ->  | AO11: ='Eq. UsageRate '!AO11*$V11 ->  | AP11: ='Eq. UsageRate '!AP11*$V11 ->  | AQ11: ='Eq. UsageRate '!AQ11*$V11 ->  | AR11: ='Eq. UsageRate '!AR11*$V11 ->  | AS11: ='Eq. UsageRate '!AS11*$V11 ->  | AT11: ='Eq. UsageRate '!AT11*$V11 ->  | AU11: ='Eq. UsageRate '!AU11*$V11 ->  | AV11: ='Eq. UsageRate '!AV11*$V11 ->  | AW11: ='Eq. UsageRate '!AW11*$V11 ->  | AX11: ='Eq. UsageRate '!AX11*$V11 ->  | AY11: ='Eq. UsageRate '!AY11*$V11 ->  | AZ11: ='Eq. UsageRate '!AZ11*$V11 -> 0 | BB11: 0 | BC11: =IFERROR(($BB11*'Eq. UsageRate '!BT11),0) -> 0 | BD11: =IFERROR(($BB11*'Eq. UsageRate '!BU11),0) -> 0 | BE11: =IFERROR(($BB11*'Eq. UsageRate '!BV11),0) -> 0 | BF11: =IFERROR(($BB11*'Eq. UsageRate '!BW11),0) -> 0 | BG11: =IFERROR(($BB11*'Eq. UsageRate '!BX11),0) -> 0 | BH11: =IFERROR(($BB11*'Eq. UsageRate '!BY11),0) -> 0 | BI11: =IFERROR(($BB11*'Eq. UsageRate '!BZ11),0) -> 0 | BJ11: =IFERROR(($BB11*'Eq. UsageRate '!CA11),0) -> 0 | BK11: =IFERROR(($BB11*'Eq. UsageRate '!CB11),0) -> 0 | BL11: =IFERROR(($BB11*'Eq. UsageRate '!CC11),0) -> 0 | BM11: =IFERROR(($BB11*'Eq. UsageRate '!CD11),0) -> 0 | BN11: =IFERROR(($BB11*'Eq. UsageRate '!CE11),0) -> 0 | BO11: =IFERROR(($BB11*'Eq. UsageRate '!CF11),0) -> 0 | BP11: =IFERROR(($BB11*'Eq. UsageRate '!CG11),0) -> 0 | BQ11: =IFERROR(($BB11*'Eq. UsageRate '!CH11),0) -> 0 | BS11: 45590.82 | BT11: ='Eq. UsageRate '!E11*$BS$4 -> 13449.7 | BU11: ='Eq. UsageRate '!F11*$BS$4 -> 13205.16 | BV11: ='Eq. UsageRate '!G11*$BS$4 -> 7825.28 | BW11: ='Eq. UsageRate '!H11*$BS$4 -> 5624.42 | BX11: ='Eq. UsageRate '!I11*$BS$4 -> 2200.86 | BY11: ='Eq. UsageRate '!J11*$BS$4 -> 489.08 | BZ11: ='Eq. UsageRate '!K11*$BS$4 -> 0 | CA11: ='Eq. UsageRate '!L11*$BS$4 -> 0 | CB11: ='Eq. UsageRate '!M11*$BS$4 -> 0 | CC11: ='Eq. UsageRate '!N11*$BS$4 -> 1467.24 | CD11: ='Eq. UsageRate '!O11*$BS$4 -> 489.08 | CE11: ='Eq. UsageRate '!P11*$CG$3 -> 0 | CF11: ='Eq. UsageRate '!Q11*$CG$3 -> 420 | CG11: ='Eq. UsageRate '!R11*$CG$3 -> 420 | CH11: ='Eq. UsageRate '!S11*$CH$4 -> 0 | CJ11: =SUM('Eq. UsageRate '!E11:R11)*$CJ$4 -> 23495 | CK11: 10337.8 | CL11: 4229.1 | CM11: 8928.1 | CN11: 10337.8 | CO11: 1550.67 | CP11: 6719.57 | CQ11: 2067.56 | CS11: 1550.67 | CT11: =IFERROR(($CS11*'Eq. UsageRate '!BC11),0) -> 80.24891567 | CU11: =IFERROR(($CS11*'Eq. UsageRate '!BD11),0) -> 118.1847667 | CV11: =IFERROR(($CS11*'Eq. UsageRate '!BE11),0) -> 233.451391 | CW11: =IFERROR(($CS11*'Eq. UsageRate '!BF11),0) -> 314.6122262 | CX11: =IFERROR(($CS11*'Eq. UsageRate '!BG11),0) -> 262.6328149 | CY11: =IFERROR(($CS11*'Eq. UsageRate '!BH11),0) -> 2.805906142 | CZ11: =IFERROR(($CS11*'Eq. UsageRate '!BI11),0) -> 0 | DA11: =IFERROR(($CS11*'Eq. UsageRate '!BJ11),0) -> 0 | DB11: =IFERROR(($CS11*'Eq. UsageRate '!BK11),0) -> 0 | DC11: =IFERROR(($CS11*'Eq. UsageRate '!BL11),0) -> 50.50631056 | DD11: =IFERROR(($CS11*'Eq. UsageRate '!BM11),0) -> 11.22362457 | DE11: =IFERROR(($CS11*'Eq. UsageRate '!BN11),0) -> 0 | DF11: =IFERROR(($CS11*'Eq. UsageRate '!BO11),0) -> 16.83543685 | DG11: =IFERROR(($CS11*'Eq. UsageRate '!BP11),0) -> 0 | DH11: =IFERROR(($CS11*'Eq. UsageRate '!BQ11),0) -> 420.8859213 | DJ11: 6719.57 | DK11: =IFERROR(($DJ11*'Eq. UsageRate '!BT11),0) -> 0 | DL11: =IFERROR(($DJ11*'Eq. UsageRate '!BU11),0) -> 0 | DM11: =IFERROR(($DJ11*'Eq. UsageRate '!BV11),0) -> 0 | DN11: =IFERROR(($DJ11*'Eq. UsageRate '!BW11),0) -> 0 | DO11: =IFERROR(($DJ11*'Eq. UsageRate '!BX11),0) -> 0 | DP11: =IFERROR(($DJ11*'Eq. UsageRate '!BY11),0) -> 0 | DQ11: =IFERROR(($DJ11*'Eq. UsageRate '!BZ11),0) -> 0 | DR11: =IFERROR(($DJ11*'Eq. UsageRate '!CA11),0) -> 0 | DS11: =IFERROR(($DJ11*'Eq. UsageRate '!CB11),0) -> 0 | DT11: =IFERROR(($DJ11*'Eq. UsageRate '!CC11),0) -> 0 | DU11: =IFERROR(($DJ11*'Eq. UsageRate '!CD11),0) -> 0 | DV11: =IFERROR(($DJ11*'Eq. UsageRate '!CE11),0) -> 0 | DW11: =IFERROR(($DJ11*'Eq. UsageRate '!CF11),0) -> 0 | DX11: =IFERROR(($DJ11*'Eq. UsageRate '!CG11),0) -> 0 | DY11: =IFERROR(($DJ11*'Eq. UsageRate '!CH11),0) -> 0 | EA11: 2067.56 | EB11: =IFERROR(($EA11*'Eq. UsageRate '!BT11),0) -> 0 | EC11: =IFERROR(($EA11*'Eq. UsageRate '!BU11),0) -> 0 | ED11: =IFERROR(($EA11*'Eq. UsageRate '!BV11),0) -> 0 | EE11: =IFERROR(($EA11*'Eq. UsageRate '!BW11),0) -> 0 | EF11: =IFERROR(($EA11*'Eq. UsageRate '!BX11),0) -> 0 | EG11: =IFERROR(($EA11*'Eq. UsageRate '!BY11),0) -> 0 | EH11: =IFERROR(($EA11*'Eq. UsageRate '!BZ11),0) -> 0 | EI11: =IFERROR(($EA11*'Eq. UsageRate '!CA11),0) -> 0 | EJ11: =IFERROR(($EA11*'Eq. UsageRate '!CB11),0) -> 0 | EK11: =IFERROR(($EA11*'Eq. UsageRate '!CC11),0) -> 0 | EL11: =IFERROR(($EA11*'Eq. UsageRate '!CD11),0) -> 0 | EM11: =IFERROR(($EA11*'Eq. UsageRate '!CE11),0) -> 0 | EN11: =IFERROR(($EA11*'Eq. UsageRate '!CF11),0) -> 0 | EO11: =IFERROR(($EA11*'Eq. UsageRate '!CG11),0) -> 0 | EP11: =IFERROR(($EA11*'Eq. UsageRate '!CH11),0) -> 0 | ER11: 8928.1 | ES11: =IFERROR(($ER11*'Eq. UsageRate '!CK11),0) -> 0 | ET11: =IFERROR(($ER11*'Eq. UsageRate '!CL11),0) -> 0 | EU11: =IFERROR(($ER11*'Eq. UsageRate '!CM11),0) -> 0 | EV11: =IFERROR(($ER11*'Eq. UsageRate '!CN11),0) -> 0 | EW11: =IFERROR(($ER11*'Eq. UsageRate '!CO11),0) -> 0 | EX11: =IFERROR(($ER11*'Eq. UsageRate '!CP11),0) -> 0 | EY11: =IFERROR(($ER11*'Eq. UsageRate '!CQ11),0) -> 0 | EZ11: =IFERROR(($ER11*'Eq. UsageRate '!CR11),0) -> 0 | FA11: =IFERROR(($ER11*'Eq. UsageRate '!CS11),0) -> 0 | FB11: =IFERROR(($ER11*'Eq. UsageRate '!CT11),0) -> 0 | FC11: =IFERROR(($ER11*'Eq. UsageRate '!CU11),0) -> 0 | FD11: =IFERROR(($ER11*'Eq. UsageRate '!CV11),0) -> 0 | FE11: =IFERROR(($ER11*'Eq. UsageRate '!CW11),0) -> 0 | FF11: =IFERROR(($ER11*'Eq. UsageRate '!CX11),0) -> 0 | FG11: =IFERROR(($ER11*'Eq. UsageRate '!CY11),0) -> 0
B12: 8 | C12: 99 | D12: Namagumba | E12: 7640.2 | F12: =IFERROR(($E12*'Eq. UsageRate '!BC12),0) -> 334.5838164 | G12: =IFERROR(($E12*'Eq. UsageRate '!BD12),0) -> 501.8757246 | H12: =IFERROR(($E12*'Eq. UsageRate '!BE12),0) -> 1282.571296 | I12: =IFERROR(($E12*'Eq. UsageRate '!BF12),0) -> 1568.361639 | J12: =IFERROR(($E12*'Eq. UsageRate '!BG12),0) -> 1561.391143 | K12: =IFERROR(($E12*'Eq. UsageRate '!BH12),0) -> 10.72384027 | L12: =IFERROR(($E12*'Eq. UsageRate '!BI12),0) -> 0 | M12: =IFERROR(($E12*'Eq. UsageRate '!BJ12),0) -> 0 | N12: =IFERROR(($E12*'Eq. UsageRate '!BK12),0) -> 0 | O12: =IFERROR(($E12*'Eq. UsageRate '!BL12),0) -> 386.0582497 | P12: =IFERROR(($E12*'Eq. UsageRate '!BM12),0) -> 85.79072216 | Q12: =IFERROR(($E12*'Eq. UsageRate '!BN12),0) -> 0 | R12: =IFERROR(($E12*'Eq. UsageRate '!BO12),0) -> 0 | S12: =IFERROR(($E12*'Eq. UsageRate '!BP12),0) -> 0 | T12: =IFERROR(($E12*'Eq. UsageRate '!BQ12),0) -> 1608.57604 | V12: 20967.53333 | W12: ='Eq. UsageRate '!W12*$V12 ->  | X12: ='Eq. UsageRate '!X12*$V12 ->  | Y12: ='Eq. UsageRate '!Y12*$V12 ->  | Z12: ='Eq. UsageRate '!Z12*$V12 ->  | AA12: ='Eq. UsageRate '!AA12*$V12 ->  | AB12: ='Eq. UsageRate '!AB12*$V12 ->  | AC12: ='Eq. UsageRate '!AC12*$V12 ->  | AD12: ='Eq. UsageRate '!AD12*$V12 ->  | AE12: ='Eq. UsageRate '!AE12*$V12 ->  | AF12: ='Eq. UsageRate '!AF12*$V12 ->  | AG12: ='Eq. UsageRate '!AG12*$V12 ->  | AH12: ='Eq. UsageRate '!AH12*$V12 ->  | AI12: ='Eq. UsageRate '!AI12*$V12 ->  | AJ12: ='Eq. UsageRate '!AJ12*$V12 ->  | AK12: ='Eq. UsageRate '!AK12*$V12 ->  | AL12: ='Eq. UsageRate '!AL12*$V12 ->  | AM12: ='Eq. UsageRate '!AM12*$V12 ->  | AN12: ='Eq. UsageRate '!AN12*$V12 ->  | AO12: ='Eq. UsageRate '!AO12*$V12 ->  | AP12: ='Eq. UsageRate '!AP12*$V12 ->  | AQ12: ='Eq. UsageRate '!AQ12*$V12 ->  | AR12: ='Eq. UsageRate '!AR12*$V12 ->  | AS12: ='Eq. UsageRate '!AS12*$V12 ->  | AT12: ='Eq. UsageRate '!AT12*$V12 ->  | AU12: ='Eq. UsageRate '!AU12*$V12 ->  | AV12: ='Eq. UsageRate '!AV12*$V12 ->  | AW12: ='Eq. UsageRate '!AW12*$V12 ->  | AX12: ='Eq. UsageRate '!AX12*$V12 ->  | AY12: ='Eq. UsageRate '!AY12*$V12 ->  | AZ12: ='Eq. UsageRate '!AZ12*$V12 -> 0 | BB12: 0 | BC12: =IFERROR(($BB12*'Eq. UsageRate '!BT12),0) -> 0 | BD12: =IFERROR(($BB12*'Eq. UsageRate '!BU12),0) -> 0 | BE12: =IFERROR(($BB12*'Eq. UsageRate '!BV12),0) -> 0 | BF12: =IFERROR(($BB12*'Eq. UsageRate '!BW12),0) -> 0 | BG12: =IFERROR(($BB12*'Eq. UsageRate '!BX12),0) -> 0 | BH12: =IFERROR(($BB12*'Eq. UsageRate '!BY12),0) -> 0 | BI12: =IFERROR(($BB12*'Eq. UsageRate '!BZ12),0) -> 0 | BJ12: =IFERROR(($BB12*'Eq. UsageRate '!CA12),0) -> 0 | BK12: =IFERROR(($BB12*'Eq. UsageRate '!CB12),0) -> 0 | BL12: =IFERROR(($BB12*'Eq. UsageRate '!CC12),0) -> 0 | BM12: =IFERROR(($BB12*'Eq. UsageRate '!CD12),0) -> 0 | BN12: =IFERROR(($BB12*'Eq. UsageRate '!CE12),0) -> 0 | BO12: =IFERROR(($BB12*'Eq. UsageRate '!CF12),0) -> 0 | BP12: =IFERROR(($BB12*'Eq. UsageRate '!CG12),0) -> 0 | BQ12: =IFERROR(($BB12*'Eq. UsageRate '!CH12),0) -> 0 | BS12: 28297.56 | BT12: ='Eq. UsageRate '!E12*$BS$4 -> 7336.2 | BU12: ='Eq. UsageRate '!F12*$BS$4 -> 7336.2 | BV12: ='Eq. UsageRate '!G12*$BS$4 -> 5624.42 | BW12: ='Eq. UsageRate '!H12*$BS$4 -> 3668.1 | BX12: ='Eq. UsageRate '!I12*$BS$4 -> 1711.78 | BY12: ='Eq. UsageRate '!J12*$BS$4 -> 244.54 | BZ12: ='Eq. UsageRate '!K12*$BS$4 -> 0 | CA12: ='Eq. UsageRate '!L12*$BS$4 -> 0 | CB12: ='Eq. UsageRate '!M12*$BS$4 -> 0 | CC12: ='Eq. UsageRate '!N12*$BS$4 -> 1467.24 | CD12: ='Eq. UsageRate '!O12*$BS$4 -> 489.08 | CE12: ='Eq. UsageRate '!P12*$CG$3 -> 0 | CF12: ='Eq. UsageRate '!Q12*$CG$3 -> 0 | CG12: ='Eq. UsageRate '!R12*$CG$3 -> 420 | CH12: ='Eq. UsageRate '!S12*$CH$4 -> 0 | CJ12: =SUM('Eq. UsageRate '!E12:R12)*$CJ$4 -> 14605 | CK12: 6426.2 | CL12: 2628.9 | CM12: 5549.9 | CN12: 6426.2 | CO12: 963.93 | CP12: 4177.03 | CQ12: 1285.24 | CS12: 963.93 | CT12: =IFERROR(($CS12*'Eq. UsageRate '!BC12),0) -> 42.21294968 | CU12: =IFERROR(($CS12*'Eq. UsageRate '!BD12),0) -> 63.31942452 | CV12: =IFERROR(($CS12*'Eq. UsageRate '!BE12),0) -> 161.8163071 | CW12: =IFERROR(($CS12*'Eq. UsageRate '!BF12),0) -> 197.8732016 | CX12: =IFERROR(($CS12*'Eq. UsageRate '!BG12),0) -> 196.9937652 | CY12: =IFERROR(($CS12*'Eq. UsageRate '!BH12),0) -> 1.352979156 | CZ12: =IFERROR(($CS12*'Eq. UsageRate '!BI12),0) -> 0 | DA12: =IFERROR(($CS12*'Eq. UsageRate '!BJ12),0) -> 0 | DB12: =IFERROR(($CS12*'Eq. UsageRate '!BK12),0) -> 0 | DC12: =IFERROR(($CS12*'Eq. UsageRate '!BL12),0) -> 48.70724963 | DD12: =IFERROR(($CS12*'Eq. UsageRate '!BM12),0) -> 10.82383325 | DE12: =IFERROR(($CS12*'Eq. UsageRate '!BN12),0) -> 0 | DF12: =IFERROR(($CS12*'Eq. UsageRate '!BO12),0) -> 0 | DG12: =IFERROR(($CS12*'Eq. UsageRate '!BP12),0) -> 0 | DH12: =IFERROR(($CS12*'Eq. UsageRate '!BQ12),0) -> 202.9468735 | DJ12: 4177.03 | DK12: =IFERROR(($DJ12*'Eq. UsageRate '!BT12),0) -> 0 | DL12: =IFERROR(($DJ12*'Eq. UsageRate '!BU12),0) -> 0 | DM12: =IFERROR(($DJ12*'Eq. UsageRate '!BV12),0) -> 0 | DN12: =IFERROR(($DJ12*'Eq. UsageRate '!BW12),0) -> 0 | DO12: =IFERROR(($DJ12*'Eq. UsageRate '!BX12),0) -> 0 | DP12: =IFERROR(($DJ12*'Eq. UsageRate '!BY12),0) -> 0 | DQ12: =IFERROR(($DJ12*'Eq. UsageRate '!BZ12),0) -> 0 | DR12: =IFERROR(($DJ12*'Eq. UsageRate '!CA12),0) -> 0 | DS12: =IFERROR(($DJ12*'Eq. UsageRate '!CB12),0) -> 0 | DT12: =IFERROR(($DJ12*'Eq. UsageRate '!CC12),0) -> 0 | DU12: =IFERROR(($DJ12*'Eq. UsageRate '!CD12),0) -> 0 | DV12: =IFERROR(($DJ12*'Eq. UsageRate '!CE12),0) -> 0 | DW12: =IFERROR(($DJ12*'Eq. UsageRate '!CF12),0) -> 0 | DX12: =IFERROR(($DJ12*'Eq. UsageRate '!CG12),0) -> 0 | DY12: =IFERROR(($DJ12*'Eq. UsageRate '!CH12),0) -> 0 | EA12: 1285.24 | EB12: =IFERROR(($EA12*'Eq. UsageRate '!BT12),0) -> 0 | EC12: =IFERROR(($EA12*'Eq. UsageRate '!BU12),0) -> 0 | ED12: =IFERROR(($EA12*'Eq. UsageRate '!BV12),0) -> 0 | EE12: =IFERROR(($EA12*'Eq. UsageRate '!BW12),0) -> 0 | EF12: =IFERROR(($EA12*'Eq. UsageRate '!BX12),0) -> 0 | EG12: =IFERROR(($EA12*'Eq. UsageRate '!BY12),0) -> 0 | EH12: =IFERROR(($EA12*'Eq. UsageRate '!BZ12),0) -> 0 | EI12: =IFERROR(($EA12*'Eq. UsageRate '!CA12),0) -> 0 | EJ12: =IFERROR(($EA12*'Eq. UsageRate '!CB12),0) -> 0 | EK12: =IFERROR(($EA12*'Eq. UsageRate '!CC12),0) -> 0 | EL12: =IFERROR(($EA12*'Eq. UsageRate '!CD12),0) -> 0 | EM12: =IFERROR(($EA12*'Eq. UsageRate '!CE12),0) -> 0 | EN12: =IFERROR(($EA12*'Eq. UsageRate '!CF12),0) -> 0 | EO12: =IFERROR(($EA12*'Eq. UsageRate '!CG12),0) -> 0 | EP12: =IFERROR(($EA12*'Eq. UsageRate '!CH12),0) -> 0 | ER12: 5549.9 | ES12: =IFERROR(($ER12*'Eq. UsageRate '!CK12),0) -> 0 | ET12: =IFERROR(($ER12*'Eq. UsageRate '!CL12),0) -> 0 | EU12: =IFERROR(($ER12*'Eq. UsageRate '!CM12),0) -> 0 | EV12: =IFERROR(($ER12*'Eq. UsageRate '!CN12),0) -> 0 | EW12: =IFERROR(($ER12*'Eq. UsageRate '!CO12),0) -> 0 | EX12: =IFERROR(($ER12*'Eq. UsageRate '!CP12),0) -> 0 | EY12: =IFERROR(($ER12*'Eq. UsageRate '!CQ12),0) -> 0 | EZ12: =IFERROR(($ER12*'Eq. UsageRate '!CR12),0) -> 0 | FA12: =IFERROR(($ER12*'Eq. UsageRate '!CS12),0) -> 0 | FB12: =IFERROR(($ER12*'Eq. UsageRate '!CT12),0) -> 0 | FC12: =IFERROR(($ER12*'Eq. UsageRate '!CU12),0) -> 0 | FD12: =IFERROR(($ER12*'Eq. UsageRate '!CV12),0) -> 0 | FE12: =IFERROR(($ER12*'Eq. UsageRate '!CW12),0) -> 0 | FF12: =IFERROR(($ER12*'Eq. UsageRate '!CX12),0) -> 0 | FG12: =IFERROR(($ER12*'Eq. UsageRate '!CY12),0) -> 0
B13: 9 | C13: 132 | D13: Akadetewai | E13: 7640.2 | F13: =IFERROR(($E13*'Eq. UsageRate '!BC13),0) -> 458.2423622 | G13: =IFERROR(($E13*'Eq. UsageRate '!BD13),0) -> 670.1794547 | H13: =IFERROR(($E13*'Eq. UsageRate '!BE13),0) -> 1088.32561 | I13: =IFERROR(($E13*'Eq. UsageRate '!BF13),0) -> 1396.207197 | J13: =IFERROR(($E13*'Eq. UsageRate '!BG13),0) -> 1603.848268 | K13: =IFERROR(($E13*'Eq. UsageRate '!BH13),0) -> 44.0617656 | L13: =IFERROR(($E13*'Eq. UsageRate '!BI13),0) -> 0 | M13: =IFERROR(($E13*'Eq. UsageRate '!BJ13),0) -> 0 | N13: =IFERROR(($E13*'Eq. UsageRate '!BK13),0) -> 0 | O13: =IFERROR(($E13*'Eq. UsageRate '!BL13),0) -> 66.09264839 | P13: =IFERROR(($E13*'Eq. UsageRate '!BM13),0) -> 352.4941248 | Q13: =IFERROR(($E13*'Eq. UsageRate '!BN13),0) -> 0 | R13: =IFERROR(($E13*'Eq. UsageRate '!BO13),0) -> 0 | S13: =IFERROR(($E13*'Eq. UsageRate '!BP13),0) -> 0 | T13: =IFERROR(($E13*'Eq. UsageRate '!BQ13),0) -> 1652.31621 | V13: 20967.53333 | W13: ='Eq. UsageRate '!W13*$V13 ->  | X13: ='Eq. UsageRate '!X13*$V13 ->  | Y13: ='Eq. UsageRate '!Y13*$V13 ->  | Z13: ='Eq. UsageRate '!Z13*$V13 ->  | AA13: ='Eq. UsageRate '!AA13*$V13 ->  | AB13: ='Eq. UsageRate '!AB13*$V13 ->  | AC13: ='Eq. UsageRate '!AC13*$V13 ->  | AD13: ='Eq. UsageRate '!AD13*$V13 ->  | AE13: ='Eq. UsageRate '!AE13*$V13 ->  | AF13: ='Eq. UsageRate '!AF13*$V13 ->  | AG13: ='Eq. UsageRate '!AG13*$V13 ->  | AH13: ='Eq. UsageRate '!AH13*$V13 ->  | AI13: ='Eq. UsageRate '!AI13*$V13 ->  | AJ13: ='Eq. UsageRate '!AJ13*$V13 ->  | AK13: ='Eq. UsageRate '!AK13*$V13 ->  | AL13: ='Eq. UsageRate '!AL13*$V13 ->  | AM13: ='Eq. UsageRate '!AM13*$V13 ->  | AN13: ='Eq. UsageRate '!AN13*$V13 ->  | AO13: ='Eq. UsageRate '!AO13*$V13 ->  | AP13: ='Eq. UsageRate '!AP13*$V13 ->  | AQ13: ='Eq. UsageRate '!AQ13*$V13 ->  | AR13: ='Eq. UsageRate '!AR13*$V13 ->  | AS13: ='Eq. UsageRate '!AS13*$V13 ->  | AT13: ='Eq. UsageRate '!AT13*$V13 ->  | AU13: ='Eq. UsageRate '!AU13*$V13 ->  | AV13: ='Eq. UsageRate '!AV13*$V13 ->  | AW13: ='Eq. UsageRate '!AW13*$V13 ->  | AX13: ='Eq. UsageRate '!AX13*$V13 ->  | AY13: ='Eq. UsageRate '!AY13*$V13 ->  | AZ13: ='Eq. UsageRate '!AZ13*$V13 -> 0 | BB13: 0 | BC13: =IFERROR(($BB13*'Eq. UsageRate '!BT13),0) -> 0 | BD13: =IFERROR(($BB13*'Eq. UsageRate '!BU13),0) -> 0 | BE13: =IFERROR(($BB13*'Eq. UsageRate '!BV13),0) -> 0 | BF13: =IFERROR(($BB13*'Eq. UsageRate '!BW13),0) -> 0 | BG13: =IFERROR(($BB13*'Eq. UsageRate '!BX13),0) -> 0 | BH13: =IFERROR(($BB13*'Eq. UsageRate '!BY13),0) -> 0 | BI13: =IFERROR(($BB13*'Eq. UsageRate '!BZ13),0) -> 0 | BJ13: =IFERROR(($BB13*'Eq. UsageRate '!CA13),0) -> 0 | BK13: =IFERROR(($BB13*'Eq. UsageRate '!CB13),0) -> 0 | BL13: =IFERROR(($BB13*'Eq. UsageRate '!CC13),0) -> 0 | BM13: =IFERROR(($BB13*'Eq. UsageRate '!CD13),0) -> 0 | BN13: =IFERROR(($BB13*'Eq. UsageRate '!CE13),0) -> 0 | BO13: =IFERROR(($BB13*'Eq. UsageRate '!CF13),0) -> 0 | BP13: =IFERROR(($BB13*'Eq. UsageRate '!CG13),0) -> 0 | BQ13: =IFERROR(($BB13*'Eq. UsageRate '!CH13),0) -> 0 | BS13: 32454.74 | BT13: ='Eq. UsageRate '!E13*$BS$4 -> 9781.6 | BU13: ='Eq. UsageRate '!F13*$BS$4 -> 9537.06 | BV13: ='Eq. UsageRate '!G13*$BS$4 -> 4646.26 | BW13: ='Eq. UsageRate '!H13*$BS$4 -> 3179.02 | BX13: ='Eq. UsageRate '!I13*$BS$4 -> 1711.78 | BY13: ='Eq. UsageRate '!J13*$BS$4 -> 978.16 | BZ13: ='Eq. UsageRate '!K13*$BS$4 -> 0 | CA13: ='Eq. UsageRate '!L13*$BS$4 -> 0 | CB13: ='Eq. UsageRate '!M13*$BS$4 -> 0 | CC13: ='Eq. UsageRate '!N13*$BS$4 -> 244.54 | CD13: ='Eq. UsageRate '!O13*$BS$4 -> 1956.32 | CE13: ='Eq. UsageRate '!P13*$CG$3 -> 0 | CF13: ='Eq. UsageRate '!Q13*$CG$3 -> 0 | CG13: ='Eq. UsageRate '!R13*$CG$3 -> 420 | CH13: ='Eq. UsageRate '!S13*$CH$4 -> 0 | CJ13: =SUM('Eq. UsageRate '!E13:R13)*$CJ$4 -> 16764 | CK13: 7376.16 | CL13: 3017.52 | CM13: 6370.32 | CN13: 7376.16 | CO13: 1106.424 | CP13: 4794.504 | CQ13: 1475.232 | CS13: 1106.424 | CT13: =IFERROR(($CS13*'Eq. UsageRate '!BC13),0) -> 66.36087372 | CU13: =IFERROR(($CS13*'Eq. UsageRate '!BD13),0) -> 97.05277781 | CV13: =IFERROR(($CS13*'Eq. UsageRate '!BE13),0) -> 157.6070751 | CW13: =IFERROR(($CS13*'Eq. UsageRate '!BF13),0) -> 202.1932871 | CX13: =IFERROR(($CS13*'Eq. UsageRate '!BG13),0) -> 232.263058 | CY13: =IFERROR(($CS13*'Eq. UsageRate '!BH13),0) -> 6.380853242 | CZ13: =IFERROR(($CS13*'Eq. UsageRate '!BI13),0) -> 0 | DA13: =IFERROR(($CS13*'Eq. UsageRate '!BJ13),0) -> 0 | DB13: =IFERROR(($CS13*'Eq. UsageRate '!BK13),0) -> 0 | DC13: =IFERROR(($CS13*'Eq. UsageRate '!BL13),0) -> 9.571279863 | DD13: =IFERROR(($CS13*'Eq. UsageRate '!BM13),0) -> 51.04682593 | DE13: =IFERROR(($CS13*'Eq. UsageRate '!BN13),0) -> 0 | DF13: =IFERROR(($CS13*'Eq. UsageRate '!BO13),0) -> 0 | DG13: =IFERROR(($CS13*'Eq. UsageRate '!BP13),0) -> 0 | DH13: =IFERROR(($CS13*'Eq. UsageRate '!BQ13),0) -> 239.2819966 | DJ13: 4794.504 | DK13: =IFERROR(($DJ13*'Eq. UsageRate '!BT13),0) -> 0 | DL13: =IFERROR(($DJ13*'Eq. UsageRate '!BU13),0) -> 0 | DM13: =IFERROR(($DJ13*'Eq. UsageRate '!BV13),0) -> 0 | DN13: =IFERROR(($DJ13*'Eq. UsageRate '!BW13),0) -> 0 | DO13: =IFERROR(($DJ13*'Eq. UsageRate '!BX13),0) -> 0 | DP13: =IFERROR(($DJ13*'Eq. UsageRate '!BY13),0) -> 0 | DQ13: =IFERROR(($DJ13*'Eq. UsageRate '!BZ13),0) -> 0 | DR13: =IFERROR(($DJ13*'Eq. UsageRate '!CA13),0) -> 0 | DS13: =IFERROR(($DJ13*'Eq. UsageRate '!CB13),0) -> 0 | DT13: =IFERROR(($DJ13*'Eq. UsageRate '!CC13),0) -> 0 | DU13: =IFERROR(($DJ13*'Eq. UsageRate '!CD13),0) -> 0 | DV13: =IFERROR(($DJ13*'Eq. UsageRate '!CE13),0) -> 0 | DW13: =IFERROR(($DJ13*'Eq. UsageRate '!CF13),0) -> 0 | DX13: =IFERROR(($DJ13*'Eq. UsageRate '!CG13),0) -> 0 | DY13: =IFERROR(($DJ13*'Eq. UsageRate '!CH13),0) -> 0 | EA13: 1475.232 | EB13: =IFERROR(($EA13*'Eq. UsageRate '!BT13),0) -> 0 | EC13: =IFERROR(($EA13*'Eq. UsageRate '!BU13),0) -> 0 | ED13: =IFERROR(($EA13*'Eq. UsageRate '!BV13),0) -> 0 | EE13: =IFERROR(($EA13*'Eq. UsageRate '!BW13),0) -> 0 | EF13: =IFERROR(($EA13*'Eq. UsageRate '!BX13),0) -> 0 | EG13: =IFERROR(($EA13*'Eq. UsageRate '!BY13),0) -> 0 | EH13: =IFERROR(($EA13*'Eq. UsageRate '!BZ13),0) -> 0 | EI13: =IFERROR(($EA13*'Eq. UsageRate '!CA13),0) -> 0 | EJ13: =IFERROR(($EA13*'Eq. UsageRate '!CB13),0) -> 0 | EK13: =IFERROR(($EA13*'Eq. UsageRate '!CC13),0) -> 0 | EL13: =IFERROR(($EA13*'Eq. UsageRate '!CD13),0) -> 0 | EM13: =IFERROR(($EA13*'Eq. UsageRate '!CE13),0) -> 0 | EN13: =IFERROR(($EA13*'Eq. UsageRate '!CF13),0) -> 0 | EO13: =IFERROR(($EA13*'Eq. UsageRate '!CG13),0) -> 0 | EP13: =IFERROR(($EA13*'Eq. UsageRate '!CH13),0) -> 0 | ER13: 6370.32 | ES13: =IFERROR(($ER13*'Eq. UsageRate '!CK13),0) -> 0 | ET13: =IFERROR(($ER13*'Eq. UsageRate '!CL13),0) -> 0 | EU13: =IFERROR(($ER13*'Eq. UsageRate '!CM13),0) -> 0 | EV13: =IFERROR(($ER13*'Eq. UsageRate '!CN13),0) -> 0 | EW13: =IFERROR(($ER13*'Eq. UsageRate '!CO13),0) -> 0 | EX13: =IFERROR(($ER13*'Eq. UsageRate '!CP13),0) -> 0 | EY13: =IFERROR(($ER13*'Eq. UsageRate '!CQ13),0) -> 0 | EZ13: =IFERROR(($ER13*'Eq. UsageRate '!CR13),0) -> 0 | FA13: =IFERROR(($ER13*'Eq. UsageRate '!CS13),0) -> 0 | FB13: =IFERROR(($ER13*'Eq. UsageRate '!CT13),0) -> 0 | FC13: =IFERROR(($ER13*'Eq. UsageRate '!CU13),0) -> 0 | FD13: =IFERROR(($ER13*'Eq. UsageRate '!CV13),0) -> 0 | FE13: =IFERROR(($ER13*'Eq. UsageRate '!CW13),0) -> 0 | FF13: =IFERROR(($ER13*'Eq. UsageRate '!CX13),0) -> 0 | FG13: =IFERROR(($ER13*'Eq. UsageRate '!CY13),0) -> 0
B14: 10 | C14: 145 | D14: Syamakanga / Imprezza | E14: 7640.2 | F14: =IFERROR(($E14*'Eq. UsageRate '!BC14),0) -> 286.6701302 | G14: =IFERROR(($E14*'Eq. UsageRate '!BD14),0) -> 412.8049874 | H14: =IFERROR(($E14*'Eq. UsageRate '!BE14),0) -> 1490.684677 | I14: =IFERROR(($E14*'Eq. UsageRate '!BF14),0) -> 2365.028574 | J14: =IFERROR(($E14*'Eq. UsageRate '!BG14),0) -> 688.0083124 | K14: =IFERROR(($E14*'Eq. UsageRate '!BH14),0) -> 11.02577424 | L14: =IFERROR(($E14*'Eq. UsageRate '!BI14),0) -> 0 | M14: =IFERROR(($E14*'Eq. UsageRate '!BJ14),0) -> 246.9773429 | N14: =IFERROR(($E14*'Eq. UsageRate '!BK14),0) -> 0 | O14: =IFERROR(($E14*'Eq. UsageRate '!BL14),0) -> 132.3092908 | P14: =IFERROR(($E14*'Eq. UsageRate '!BM14),0) -> 44.10309695 | Q14: =IFERROR(($E14*'Eq. UsageRate '!BN14),0) -> 0 | R14: =IFERROR(($E14*'Eq. UsageRate '!BO14),0) -> 0 | S14: =IFERROR(($E14*'Eq. UsageRate '!BP14),0) -> 0 | T14: =IFERROR(($E14*'Eq. UsageRate '!BQ14),0) -> 1653.866136 | V14: 20967.53333 | W14: ='Eq. UsageRate '!W14*$V14 ->  | X14: ='Eq. UsageRate '!X14*$V14 ->  | Y14: ='Eq. UsageRate '!Y14*$V14 ->  | Z14: ='Eq. UsageRate '!Z14*$V14 ->  | AA14: ='Eq. UsageRate '!AA14*$V14 ->  | AB14: ='Eq. UsageRate '!AB14*$V14 ->  | AC14: ='Eq. UsageRate '!AC14*$V14 ->  | AD14: ='Eq. UsageRate '!AD14*$V14 ->  | AE14: ='Eq. UsageRate '!AE14*$V14 ->  | AF14: ='Eq. UsageRate '!AF14*$V14 ->  | AG14: ='Eq. UsageRate '!AG14*$V14 ->  | AH14: ='Eq. UsageRate '!AH14*$V14 ->  | AI14: ='Eq. UsageRate '!AI14*$V14 ->  | AJ14: ='Eq. UsageRate '!AJ14*$V14 ->  | AK14: ='Eq. UsageRate '!AK14*$V14 ->  | AL14: ='Eq. UsageRate '!AL14*$V14 ->  | AM14: ='Eq. UsageRate '!AM14*$V14 ->  | AN14: ='Eq. UsageRate '!AN14*$V14 ->  | AO14: ='Eq. UsageRate '!AO14*$V14 ->  | AP14: ='Eq. UsageRate '!AP14*$V14 ->  | AQ14: ='Eq. UsageRate '!AQ14*$V14 ->  | AR14: ='Eq. UsageRate '!AR14*$V14 ->  | AS14: ='Eq. UsageRate '!AS14*$V14 ->  | AT14: ='Eq. UsageRate '!AT14*$V14 ->  | AU14: ='Eq. UsageRate '!AU14*$V14 ->  | AV14: ='Eq. UsageRate '!AV14*$V14 ->  | AW14: ='Eq. UsageRate '!AW14*$V14 ->  | AX14: ='Eq. UsageRate '!AX14*$V14 ->  | AY14: ='Eq. UsageRate '!AY14*$V14 ->  | AZ14: ='Eq. UsageRate '!AZ14*$V14 -> 0 | BB14: 0 | BC14: =IFERROR(($BB14*'Eq. UsageRate '!BT14),0) -> 0 | BD14: =IFERROR(($BB14*'Eq. UsageRate '!BU14),0) -> 0 | BE14: =IFERROR(($BB14*'Eq. UsageRate '!BV14),0) -> 0 | BF14: =IFERROR(($BB14*'Eq. UsageRate '!BW14),0) -> 0 | BG14: =IFERROR(($BB14*'Eq. UsageRate '!BX14),0) -> 0 | BH14: =IFERROR(($BB14*'Eq. UsageRate '!BY14),0) -> 0 | BI14: =IFERROR(($BB14*'Eq. UsageRate '!BZ14),0) -> 0 | BJ14: =IFERROR(($BB14*'Eq. UsageRate '!CA14),0) -> 0 | BK14: =IFERROR(($BB14*'Eq. UsageRate '!CB14),0) -> 0 | BL14: =IFERROR(($BB14*'Eq. UsageRate '!CC14),0) -> 0 | BM14: =IFERROR(($BB14*'Eq. UsageRate '!CD14),0) -> 0 | BN14: =IFERROR(($BB14*'Eq. UsageRate '!CE14),0) -> 0 | BO14: =IFERROR(($BB14*'Eq. UsageRate '!CF14),0) -> 0 | BP14: =IFERROR(($BB14*'Eq. UsageRate '!CG14),0) -> 0 | BQ14: =IFERROR(($BB14*'Eq. UsageRate '!CH14),0) -> 0 | BS14: 28844.66 | BT14: ='Eq. UsageRate '!E14*$BS$4 -> 6113.5 | BU14: ='Eq. UsageRate '!F14*$BS$4 -> 5868.96 | BV14: ='Eq. UsageRate '!G14*$BS$4 -> 6358.04 | BW14: ='Eq. UsageRate '!H14*$BS$4 -> 5379.88 | BX14: ='Eq. UsageRate '!I14*$BS$4 -> 733.62 | BY14: ='Eq. UsageRate '!J14*$BS$4 -> 244.54 | BZ14: ='Eq. UsageRate '!K14*$BS$4 -> 0 | CA14: =150+50*0.85+8*(6*50+100*0.5) -> 2992.5 | CB14: ='Eq. UsageRate '!M14*$BS$4 -> 0 | CC14: ='Eq. UsageRate '!N14*$BS$4 -> 489.08 | CD14: ='Eq. UsageRate '!O14*$BS$4 -> 244.54 | CE14: ='Eq. UsageRate '!P14*$CG$3 -> 0 | CF14: ='Eq. UsageRate '!Q14*$CG$3 -> 0 | CG14: ='Eq. UsageRate '!R14*$CG$3 -> 420 | CH14: ='Eq. UsageRate '!S14*$CH$4 -> 0 | CJ14: =SUM('Eq. UsageRate '!E14:R14)*$CJ$4 -> 13462 | CK14: 5923.28 | CL14: 2423.16 | CM14: 5115.56 | CN14: 5923.28 | CO14: 888.492 | CP14: 3850.132 | CQ14: 1184.656 | CS14: 888.492 | CT14: =IFERROR(($CS14*'Eq. UsageRate '!BC14),0) -> 33.33736254 | CU14: =IFERROR(($CS14*'Eq. UsageRate '!BD14),0) -> 48.00580206 | CV14: =IFERROR(($CS14*'Eq. UsageRate '!BE14),0) -> 173.3542852 | CW14: =IFERROR(($CS14*'Eq. UsageRate '!BF14),0) -> 275.033241 | CX14: =IFERROR(($CS14*'Eq. UsageRate '!BG14),0) -> 80.0096701 | CY14: =IFERROR(($CS14*'Eq. UsageRate '!BH14),0) -> 1.282206252 | CZ14: =IFERROR(($CS14*'Eq. UsageRate '!BI14),0) -> 0 | DA14: =IFERROR(($CS14*'Eq. UsageRate '!BJ14),0) -> 28.72142004 | DB14: =IFERROR(($CS14*'Eq. UsageRate '!BK14),0) -> 0 | DC14: =IFERROR(($CS14*'Eq. UsageRate '!BL14),0) -> 15.38647502 | DD14: =IFERROR(($CS14*'Eq. UsageRate '!BM14),0) -> 5.128825006 | DE14: =IFERROR(($CS14*'Eq. UsageRate '!BN14),0) -> 0 | DF14: =IFERROR(($CS14*'Eq. UsageRate '!BO14),0) -> 0 | DG14: =IFERROR(($CS14*'Eq. UsageRate '!BP14),0) -> 0 | DH14: =IFERROR(($CS14*'Eq. UsageRate '!BQ14),0) -> 192.3309377 | DJ14: 3850.132 | DK14: =IFERROR(($DJ14*'Eq. UsageRate '!BT14),0) -> 0 | DL14: =IFERROR(($DJ14*'Eq. UsageRate '!BU14),0) -> 0 | DM14: =IFERROR(($DJ14*'Eq. UsageRate '!BV14),0) -> 0 | DN14: =IFERROR(($DJ14*'Eq. UsageRate '!BW14),0) -> 0 | DO14: =IFERROR(($DJ14*'Eq. UsageRate '!BX14),0) -> 0 | DP14: =IFERROR(($DJ14*'Eq. UsageRate '!BY14),0) -> 0 | DQ14: =IFERROR(($DJ14*'Eq. UsageRate '!BZ14),0) -> 0 | DR14: =IFERROR(($DJ14*'Eq. UsageRate '!CA14),0) -> 0 | DS14: =IFERROR(($DJ14*'Eq. UsageRate '!CB14),0) -> 0 | DT14: =IFERROR(($DJ14*'Eq. UsageRate '!CC14),0) -> 0 | DU14: =IFERROR(($DJ14*'Eq. UsageRate '!CD14),0) -> 0 | DV14: =IFERROR(($DJ14*'Eq. UsageRate '!CE14),0) -> 0 | DW14: =IFERROR(($DJ14*'Eq. UsageRate '!CF14),0) -> 0 | DX14: =IFERROR(($DJ14*'Eq. UsageRate '!CG14),0) -> 0 | DY14: =IFERROR(($DJ14*'Eq. UsageRate '!CH14),0) -> 0 | EA14: 1184.656 | EB14: =IFERROR(($EA14*'Eq. UsageRate '!BT14),0) -> 0 | EC14: =IFERROR(($EA14*'Eq. UsageRate '!BU14),0) -> 0 | ED14: =IFERROR(($EA14*'Eq. UsageRate '!BV14),0) -> 0 | EE14: =IFERROR(($EA14*'Eq. UsageRate '!BW14),0) -> 0 | EF14: =IFERROR(($EA14*'Eq. UsageRate '!BX14),0) -> 0 | EG14: =IFERROR(($EA14*'Eq. UsageRate '!BY14),0) -> 0 | EH14: =IFERROR(($EA14*'Eq. UsageRate '!BZ14),0) -> 0 | EI14: =IFERROR(($EA14*'Eq. UsageRate '!CA14),0) -> 0 | EJ14: =IFERROR(($EA14*'Eq. UsageRate '!CB14),0) -> 0 | EK14: =IFERROR(($EA14*'Eq. UsageRate '!CC14),0) -> 0 | EL14: =IFERROR(($EA14*'Eq. UsageRate '!CD14),0) -> 0 | EM14: =IFERROR(($EA14*'Eq. UsageRate '!CE14),0) -> 0 | EN14: =IFERROR(($EA14*'Eq. UsageRate '!CF14),0) -> 0 | EO14: =IFERROR(($EA14*'Eq. UsageRate '!CG14),0) -> 0 | EP14: =IFERROR(($EA14*'Eq. UsageRate '!CH14),0) -> 0 | ER14: 5115.56 | ES14: =IFERROR(($ER14*'Eq. UsageRate '!CK14),0) -> 0 | ET14: =IFERROR(($ER14*'Eq. UsageRate '!CL14),0) -> 0 | EU14: =IFERROR(($ER14*'Eq. UsageRate '!CM14),0) -> 0 | EV14: =IFERROR(($ER14*'Eq. UsageRate '!CN14),0) -> 0 | EW14: =IFERROR(($ER14*'Eq. UsageRate '!CO14),0) -> 0 | EX14: =IFERROR(($ER14*'Eq. UsageRate '!CP14),0) -> 0 | EY14: =IFERROR(($ER14*'Eq. UsageRate '!CQ14),0) -> 0 | EZ14: =IFERROR(($ER14*'Eq. UsageRate '!CR14),0) -> 0 | FA14: =IFERROR(($ER14*'Eq. UsageRate '!CS14),0) -> 0 | FB14: =IFERROR(($ER14*'Eq. UsageRate '!CT14),0) -> 0 | FC14: =IFERROR(($ER14*'Eq. UsageRate '!CU14),0) -> 0 | FD14: =IFERROR(($ER14*'Eq. UsageRate '!CV14),0) -> 0 | FE14: =IFERROR(($ER14*'Eq. UsageRate '!CW14),0) -> 0 | FF14: =IFERROR(($ER14*'Eq. UsageRate '!CX14),0) -> 0 | FG14: =IFERROR(($ER14*'Eq. UsageRate '!CY14),0) -> 0
E15: =SUM(E5:E14) -> 109854.8 | F15: =SUM(F5:F14) -> 5663.158389 | G15: =SUM(G5:G14) -> 8360.954263 | H15: =SUM(H5:H14) -> 17818.53149 | I15: =SUM(I5:I14) -> 25385.86595 | J15: =SUM(J5:J14) -> 16653.60285 | K15: =SUM(K5:K14) -> 307.7773356 | L15: =SUM(L5:L14) -> 54.06654367 | M15: =SUM(M5:M14) -> 246.9773429 | N15: =SUM(N5:N14) -> 48.24101802 | O15: =SUM(O5:O14) -> 3670.294042 | P15: =SUM(P5:P14) -> 1544.710569 | Q15: =SUM(Q5:Q14) -> 94.91448481 | R15: =SUM(R5:R14) -> 742.9224883 | S15: =SUM(S5:S14) -> 0 | T15: =SUM(T5:T14) -> 25156.1564 | V15: =SUM(V5:V14) -> 318256.7128 | W15: =SUM(W5:W14) ->  | X15: =SUM(X5:X14) ->  | AM15: =SUM(AM5:AM14) ->  | AZ15: 0 | BB15: =SUM(BB5:BB14) -> 0 | BC15: =SUM(BC5:BC14) -> 0 | BD15: =SUM(BD5:BD14) -> 0 | BE15: =SUM(BE5:BE14) -> 0 | BF15: =SUM(BF5:BF14) -> 0 | BG15: =SUM(BG5:BG14) -> 0 | BH15: =SUM(BH5:BH14) -> 0 | BI15: =SUM(BI5:BI14) -> 0 | BJ15: =SUM(BJ5:BJ14) -> 0 | BK15: =SUM(BK5:BK14) -> 0 | BL15: =SUM(BL5:BL14) -> 0 | BM15: =SUM(BM5:BM14) -> 0 | BN15: =SUM(BN5:BN14) -> 0 | BO15: =SUM(BO5:BO14) -> 0 | BP15: =SUM(BP5:BP14) -> 0 | BQ15: =SUM(BQ5:BQ14) -> 0 | BS15: =SUM(BS5:BS14) -> 456141.68 | BT15: =SUM(BT5:BT14) -> 127160.8 | BU15: =SUM(BU5:BU14) -> 125204.48 | BV15: =SUM(BV5:BV14) -> 79964.58 | BW15: =SUM(BW5:BW14) -> 60645.92 | BX15: =SUM(BX5:BX14) -> 18829.58 | BY15: =SUM(BY5:BY14) -> 7336.2 | BZ15: =SUM(BZ5:BZ14) -> 978.16 | CA15: =SUM(CA5:CA14) -> 2992.5 | CB15: =SUM(CB5:CB14) -> 489.08 | CC15: =SUM(CC5:CC14) -> 14672.4 | CD15: =SUM(CD5:CD14) -> 9047.98 | CE15: =SUM(CE5:CE14) -> 420 | CF15: =SUM(CF5:CF14) -> 2520 | CG15: =SUM(CG5:CG14) -> 5880 | CH15: =SUM(CH5:CH14) -> 0 | CJ15: =SUM(CJ5:CJ14) -> 233553 | CK15: =SUM(CK5:CK14) -> 102763.32 | CL15: =SUM(CL5:CL14) -> 42039.54 | CM15: 88750.14 | CN15: =SUM(CN5:CN14) -> 102763.32 | CO15: =SUM(CO5:CO14) -> 15414.498 | CP15: =SUM(CP5:CP14) -> 66796.158 | CQ15: =SUM(CQ5:CQ14) -> 20552.664 | CS15: =SUM(CS5:CS14) -> 15414.498 | CT15: =SUM(CT5:CT14) -> 814.3752582 | CU15: =SUM(CU5:CU14) -> 1203.665823 | CV15: 2473.893582 | CW15: 3515.001313 | CX15: 2337.769539 | CY15: 45.38804827 | CZ15: 7.485517134 | DA15: 28.72142004 | DB15: 6.975350681 | DC15: 536.8693083 | DD15: 228.7884467 | DE15: 14.69725239 | DF15: 106.4360072 | DG15: 0 | DH15: 3514.515871 | DJ15: =SUM(DJ5:DJ14) -> 66796.158 | DK15: =SUM(DK5:DK14) -> 0 | DL15: =SUM(DL5:DL14) -> 0 | DM15: 0 | DN15: 0 | DO15: 0 | DP15: 0 | DQ15: 0 | DR15: 0 | DS15: 0 | DT15: 0 | DU15: 0 | DV15: 0 | DW15: 0 | DX15: 0 | DY15: 0 | EA15: =SUM(EA5:EA14) -> 20552.664 | EB15: =SUM(EB5:EB14) -> 0 | EC15: =SUM(EC5:EC14) -> 0 | ED15: 0 | EE15: 0 | EF15: 0 | EG15: 0 | EH15: 0 | EI15: 0 | EJ15: 0 | EK15: 0 | EL15: 0 | EM15: 0 | EN15: 0 | EO15: 0 | EP15: 0 | ER15: =SUM(ER5:ER14) -> 88750.14 | ES15: =SUM(ES5:ES14) -> 0 | ET15: =SUM(ET5:ET14) -> 0 | EU15: 0 | EV15: 0 | EW15: 0 | EX15: 0 | EY15: 0 | EZ15: 0 | FA15: 0 | FB15: 0 | FC15: 0 | FD15: 0 | FE15: 0 | FF15: 0 | FG15: 0
D16: % | F16: =F15/$BB$15 ->  | G16: =G15/$BB$15 ->  | H16: =H15/$BB$15 ->  | I16: =I15/$BB$15 ->  | J16: =J15/$BB$15 ->  | K16: =K15/$BB$15 ->  | L16: =L15/$BB$15 ->  | M16: =M15/$BB$15 ->  | N16: =N15/$BB$15 ->  | O16: =O15/$BB$15 ->  | P16: =P15/$BB$15 ->  | Q16: =Q15/$BB$15 ->  | R16: =R15/$BB$15 ->  | S16: =S15/$BB$15 ->  | T16: =T15/$BB$15 ->  | W16: =W15/$V$15 ->  | X16: =X15/$V$15 ->  | AL16: =AL15/$V$15 ->  | AM16: =AM15/$V$15 ->  | AZ16: 0 | BC16: =BC15/$BB$15 ->  | BD16: =BD15/$BB$15 ->  | BQ16: =BQ15/$BB$15 ->  | BT16: =BT15/$BS$15 -> 0.2787747877 | BU16: =BU15/$BS$15 -> 0.2744859448 | BV16: 0.175306453 | BW16: 0.1329541295 | BX16: 0.04128011279 | BY16: 0.01608316083 | BZ16: 0.002144421444 | CA16: 0.006560461653 | CB16: 0.001072210722 | CC16: 0.03216632166 | CD16: 0.01983589836 | CE16: 0.0009207665478 | CF16: 0.005524599287 | CG16: 0.01289073167 | CH16: 0 | CT16: =CT15/$BB$15 ->  | CU16: =CU15/$BB$15 ->  | DH16: =DH15/$BB$15 ->  | DK16: =DK15/$BB$15 ->  | DL16: =DL15/$BB$15 ->  | DY16: =DY15/$BB$15 ->  | EB16: =EB15/$BB$15 ->  | EC16: =EC15/$BB$15 ->  | EP16: =EP15/$BB$15 ->  | ES16: =ES15/$BB$15 ->  | ET16: =ET15/$BB$15 ->  | FG16: =FG15/$BB$15 -> 
F18: =SUM(F15:J15)/E15 -> 0.6725433294 | K18: =SUM(K15:O15)/E15 -> 0.03939159948 | P18: =SUM(P15:S15)/E15 -> 0.02168815147 | T18: =SUM(T15)/E15 -> 0.2289946037 | W18: =SUM(W15:AA15)/V15 ->  | AB18: =SUM(AB15:AF15)/V15 ->  | AG18: =SUM(AG15:AJ15)/V15 ->  | AK18: =SUM(AK15)/V15 ->  | AL18: =SUM(AL15:AP15)/V15 ->  | AQ18: =SUM(AQ15:AU15)/V15 ->  | AV18: =SUM(AV15:AZ15)/V15 ->  | BC18: =SUM(BC15:BG15)/BB15 ->  | BH18: =SUM(BH15:BL15)/BB15 ->  | BM18: =SUM(BM15:BP15)/BB15 ->  | BQ18: =SUM(BQ15)/BB15 ->  | BT18: =SUM(BT15:BX15)/BS15 -> 0.9028014278 | BY18: =SUM(BY15:CC15)/BS15 -> 0.0580265763 | CD18: =SUM(CD15:CG15)/BS15 -> 0.03917199586 | CT18: =SUM(CT15:CX15)/CS15 -> 0.6711023294 | CY18: =SUM(CY15:DC15)/CS15 -> 0.04057476568 | DD18: =SUM(DD15:DG15)/CS15 -> 0.02270081752 | DH18: =SUM(DH15)/CS15 -> 0.22800067 | DK18: =SUM(DK15:DO15)/DJ15 -> 0 | DP18: =SUM(DP15:DT15)/DJ15 -> 0 | DU18: =SUM(DU15:DX15)/DJ15 -> 0 | DY18: =SUM(DY15)/DJ15 -> 0 | EB18: =SUM(EB15:EF15)/EA15 -> 0 | EG18: =SUM(EG15:EK15)/EA15 -> 0 | EL18: =SUM(EL15:EO15)/EA15 -> 0 | EP18: =SUM(EP15)/EA15 -> 0 | ES18: =SUM(ES15:EW15)/ER15 -> 0 | EX18: =SUM(EX15:FB15)/ER15 -> 0 | FC18: =SUM(FC15:FF15)/ER15 -> 0 | FG18: =SUM(FG15)/ER15 -> 0
D19: PER CONSUMER TYPE | F19: =SUM(F15:J15)/SUM('Eq. UsageRate '!$E$15:$I$15) -> 43.87298868 | K19: =SUM(K15:O15)/SUM('Eq. UsageRate '!$J$15:$N$15) -> 44.61192044 | P19: =SUM(P15:S15)/SUM('Eq. UsageRate '!$O$5:$R$15) -> 20.53920295 | T19: =T15/'Eq. UsageRate '!$S$15 -> 78.61298873 | W19: =SUM(W15:AA15)/SUM('Eq. UsageRate '!$E$15:$I$15) ->  | AB19: =SUM(AB15:AF15)/SUM('Eq. UsageRate '!$J$15:$N$15) ->  | AG19: =SUM(AG15:AJ15)/SUM('Eq. UsageRate '!$O$5:$R$15) ->  | AK19: =AK15/'Eq. UsageRate '!$S$15 ->  | AL19: =SUM(AL15:AP15)/SUM('Eq. UsageRate '!$E$15:$I$15) ->  | AQ19: =SUM(AQ15:AU15)/SUM('Eq. UsageRate '!$E$15:$I$15) ->  | AV19: =SUM(AV15:AZ15)/SUM('Eq. UsageRate '!$E$15:$I$15) ->  | BC19: =SUM(BC15:BG15)/SUM('Eq. UsageRate '!$E$15:$I$15) -> 0 | BH19: =SUM(BH15:BL15)/SUM('Eq. UsageRate '!$J$15:$N$15) -> 0 | BM19: =SUM(BM15:BP15)/SUM('Eq. UsageRate '!$O$5:$R$15) -> 0 | BQ19: =BQ15/'Eq. UsageRate '!$S$15 -> 0 | BT19: =SUM(BT15:BX15)/SUM('Eq. UsageRate '!$E$15:$I$15) -> 244.54 | BY19: =SUM(BY15:CC15)/SUM('Eq. UsageRate '!$J$15:$N$15) -> 272.8694845 | CD19: =SUM(CD15:CG15)/SUM('Eq. UsageRate '!$O$5:$R$15) -> 154.0343103 | CT19: =SUM(CT15:CX15)/SUM('Eq. UsageRate '!$E$15:$I$15) -> 6.142936766 | CY19: =SUM(CY15:DC15)/SUM('Eq. UsageRate '!$J$15:$N$15) -> 6.447831386 | DD19: =SUM(DD15:DG15)/SUM('Eq. UsageRate '!$O$5:$R$15) -> 3.016566433 | DK19: =SUM(DK15:DO15)/SUM('Eq. UsageRate '!$E$15:$I$15) -> 0 | DP19: =SUM(DP15:DT15)/SUM('Eq. UsageRate '!$J$15:$N$15) -> 0 | DU19: =SUM(DU15:DX15)/SUM('Eq. UsageRate '!$O$5:$R$15) -> 0 | EB19: =SUM(EB15:EF15)/SUM('Eq. UsageRate '!$E$15:$I$15) -> 0 | EG19: =SUM(EG15:EK15)/SUM('Eq. UsageRate '!$J$15:$N$15) -> 0 | EL19: =SUM(EL15:EO15)/SUM('Eq. UsageRate '!$O$5:$R$15) -> 0 | ES19: =SUM(ES15:EW15)/SUM('Eq. UsageRate '!$E$15:$I$15) -> 0 | EX19: =SUM(EX15:FB15)/SUM('Eq. UsageRate '!$J$15:$N$15) -> 0 | FC19: =SUM(FC15:FF15)/SUM('Eq. UsageRate '!$O$5:$R$15) -> 0
D20: TOTAL FOR ALL CONS | F20: =SUM(F15:J15) -> 73882.11294 | K20: =SUM(K15:O15) -> 4327.356282 | P20: =SUM(P15:S15) -> 2382.547542 | T20: =T15 -> 25156.1564 | W20: =SUM(W15:AA15) ->  | AB20: =SUM(AB15:AF15) ->  | AG20: =SUM(AG15:AJ15) ->  | AK20: =AK15 ->  | AL20: =SUM(AL15:AP15) ->  | AQ20: =SUM(AQ15:AU15) ->  | AV20: =SUM(AV15:AZ15) ->  | BC20: =SUM(BC15:BG15) -> 0 | BH20: =SUM(BH15:BL15) -> 0 | BM20: =SUM(BM15:BP15) -> 0 | BQ20: =BQ15 -> 0 | BT20: =SUM(BT15:BX15) -> 411805.36 | BY20: =SUM(BY15:CC15) -> 26468.34 | CD20: =SUM(CD15:CG15) -> 17867.98 | CT20: =SUM(CT15:CX15) -> 10344.70551 | CY20: =SUM(CY15:DC15) -> 625.4396444 | DD20: =SUM(DD15:DG15) -> 349.9217063 | DH20: =DH15 -> 3514.515871 | DK20: =SUM(DK15:DO15) -> 0 | DP20: =SUM(DP15:DT15) -> 0 | DU20: =SUM(DU15:DX15) -> 0 | DY20: =DY15 -> 0 | EB20: =SUM(EB15:EF15) -> 0 | EG20: =SUM(EG15:EK15) -> 0 | EL20: =SUM(EL15:EO15) -> 0 | EP20: =EP15 -> 0 | ES20: =SUM(ES15:EW15) -> 0 | EX20: =SUM(EX15:FB15) -> 0 | FC20: =SUM(FC15:FF15) -> 0 | FG20: =FG15 -> 0

Sheet Eq. UsageRate (hidden)
E2: No of customer distributed by type | U2: Night time demand per site [kWh] | V2: Day time demand per site [kWh] | W2: Night time demand distributed by all types of customers (%) | AL2: Day time demand distributed by all types of customers (%) | BB2: Battery usage rate distributed by all types of customers (%) | BS2: Total energy demand distributed by all types of customers (%) | CJ2: Total power needed distributed by all types of customers (%)
C3: Site No. | D3: Site | E3: T1 | F3: T2 | G3: T3 | H3: T4 | I3: T5 | J3: Shop | K3: School | L3: Big School | M3: Clinic | N3: Public services | O3: Low PEU | P3: Wel. | Q3: Carp. | R3: Posho. | S3: Public Lighting | W3: T1 | X3: T2 | Y3: T3 | Z3: T4 | AA3: T5 | AB3: Shop | AC3: School | AD3: Big School | AE3: Clinic | AF3: Public services | AG3: Low PEU | AH3: Wel. | AI3: Carp. | AJ3: Posho. | AK3: Public Lighting | AL3: T1 | AM3: T2 | AN3: T3 | AO3: T4 | AP3: T5 | AQ3: Shop | AR3: School | AS3: Big School | AT3: Clinic | AU3: Public services | AV3: Low PEU | AW3: Wel. | AX3: Carp. | AY3: Posho. | AZ3: Public Lighting | BB3: Night time demand per site [kWh] | BC3: T1 | BD3: T2 | BE3: T3 | BF3: T4 | BG3: T5 | BH3: Shop | BI3: School | BJ3: Big School | BK3: Clinic | BL3: Public services | BM3: Low PEU | BN3: Wel. | BO3: Carp. | BP3: Posho. | BQ3: Public Lighting | BS3: Total energy demand | BT3: T1 | BU3: T2 | BV3: T3 | BW3: T4 | BX3: T5 | BY3: Shop | BZ3: School | CA3: Big School | CB3: Clinic | CC3: Public services | CD3: Low PEU | CE3: Wel. | CF3: Carp. | CG3: Posho. | CH3: Public Lighting | CJ3: Power needed per site kW | CK3: T1 | CL3: T2 | CM3: T3 | CN3: T4 | CO3: T5 | CP3: Shop | CQ3: School | CR3: Big School | CS3: Clinic | CT3: Public services | CU3: Low PEU | CV3: Wel. | CW3: Carp. | CX3: Posho. | CY3: Public Lighting
B5: 1 | C5: 45 + 59 + 60 | D5: Mudoriko + Bwiri A + Bwiri B | E5: ='Detailed Summary'!E5 -> 90 | F5: ='Detailed Summary'!F5 -> 90 | G5: ='Detailed Summary'!G5 -> 51 | H5: ='Detailed Summary'!H5 -> 36 | I5: ='Detailed Summary'!I5 -> 15 | J5: =Assumptions!E42 -> 6 | K5: =Assumptions!F42 -> 0 | L5: =Assumptions!G42 -> 0 | M5: =Assumptions!H42 -> 1 | N5: =Assumptions!I42 -> 16 | O5: =Assumptions!J42 -> 9 | P5: =Assumptions!K42 -> 0 | Q5: =Assumptions!L42 -> 1 | R5: =Assumptions!M42 -> 2 | S5: =Assumptions!P42 -> 40 | U5: ='Detailed Summary'!X5 ->  | V5: ='Detailed Summary'!W5 ->  | W5: =Assumptions!W6*0.8/($U5+$V5) ->  | X5: =Assumptions!X6*0.8/($U5+$V5) ->  | Y5: =Assumptions!Y6*0.8/($U5+$V5) ->  | Z5: =Assumptions!Z6*0.8/($U5+$V5) ->  | AA5: =Assumptions!AA6*0.8/($U5+$V5) ->  | AB5: =Assumptions!G66*0.2/($U5+$V5) ->  | AC5: =Assumptions!H66*0.2/($U5+$V5) ->  | AD5: =Assumptions!I66*0.2/($U5+$V5) ->  | AE5: =Assumptions!J66*0.2/($U5+$V5) ->  | AF5: =Assumptions!K66*0.2/($U5+$V5) ->  | AG5: =Assumptions!L66*0.2/($U5+$V5) ->  | AH5: =Assumptions!M66*0.2/($U5+$V5) ->  | AI5: =Assumptions!N66*0.2/($U5+$V5) ->  | AJ5: =Assumptions!O66*0.2/($U5+$V5) ->  | AK5: =Assumptions!Q66/($U5+$V5) ->  | AL5: =Assumptions!W6*0.2/($U5+$V5) ->  | AM5: =Assumptions!X6*0.2/($U5+$V5) ->  | AN5: =Assumptions!Y6*0.2/($U5+$V5) ->  | AO5: =Assumptions!Z6*0.2/($U5+$V5) ->  | AP5: =Assumptions!AA6*0.2/($U5+$V5) ->  | AQ5: =Assumptions!G66*0.8/($U5+$V5) ->  | AR5: =Assumptions!H66*0.8/($U5+$V5) ->  | AS5: =Assumptions!I66*0.8/($U5+$V5) ->  | AT5: =Assumptions!J66*0.8/($U5+$V5) ->  | AU5: =Assumptions!K66*0.8/($U5+$V5) ->  | AV5: =Assumptions!L66*0.8/($U5+$V5) ->  | AW5: =Assumptions!M66*0.8/($U5+$V5) ->  | AX5: =Assumptions!N66*0.8/($U5+$V5) ->  | AY5: =Assumptions!O66*0.8/($U5+$V5) ->  | AZ5: 0 | BB5: 66.824 | BC5: =Assumptions!W6*0.8/($BB5) -> 0.05602777445 | BD5: =Assumptions!X6*0.8/($BB5) -> 0.08404166168 | BE5: =Assumptions!Y6*0.8/($BB5) -> 0.1587453609 | BF5: =Assumptions!Z6*0.8/($BB5) -> 0.2101041542 | BG5: =Assumptions!AA6*0.8/($BB5) -> 0.1867592482 | BH5: =Assumptions!G66*0.2/($BB5) -> 0.003591524003 | BI5: =Assumptions!H66*0.2/($BB5) -> 0 | BJ5: =Assumptions!I66*0.2/($BB5) -> 0 | BK5: =Assumptions!J66*0.2/($BB5) -> 0.001436609601 | BL5: =Assumptions!K66*0.2/($BB5) -> 0.05746438405 | BM5: =Assumptions!L66*0.2/($BB5) -> 0.02154914402 | BN5: =Assumptions!M66*0.2/($BB5) -> 0 | BO5: =Assumptions!N66*0.2/($BB5) -> 0.007183048007 | BP5: =Assumptions!O66*0.2/($BB5) ->  | BQ5: =Assumptions!Q66/($BB5) -> 0.1795762002 | BS5: =U5+V5 ->  | BT5: =W5+AL5 ->  | BU5: =X5+AM5 ->  | CJ5: ='Detailed Summary'!P5 ->  | CK5: =Assumptions!Q6/$CJ5 ->  | CL5: =Assumptions!R6/$CJ5 ->  | CM5: =Assumptions!S6/$CJ5 ->  | CN5: =Assumptions!T6/$CJ5 ->  | CO5: =Assumptions!U6/$CJ5 ->  | CP5: =Assumptions!Q42/$CJ5 ->  | CQ5: =Assumptions!R42/$CJ5 ->  | CR5: =Assumptions!S42/$CJ5 ->  | CS5: =Assumptions!T42/$CJ5 ->  | CT5: =Assumptions!U42/$CJ5 ->  | CU5: =Assumptions!V42/$CJ5 ->  | CV5: =Assumptions!W42/$CJ5 ->  | CW5: =Assumptions!X42/$CJ5 ->  | CX5: =Assumptions!Y42/$CJ5 ->  | CY5: =Assumptions!Z42/$CJ5 -> 
B6: 2 | C6: 133 | D6: Buyende | E6: ='Detailed Summary'!E6 -> 58 | F6: ='Detailed Summary'!F6 -> 57 | G6: ='Detailed Summary'!G6 -> 34 | H6: ='Detailed Summary'!H6 -> 28 | I6: ='Detailed Summary'!I6 -> 6 | J6: =Assumptions!E46 -> 7 | K6: =Assumptions!F46 -> 0 | L6: =Assumptions!G46 -> 0 | M6: =Assumptions!H46 -> 0 | N6: =Assumptions!I46 -> 9 | O6: =Assumptions!J46 -> 3 | P6: =Assumptions!K46 -> 1 | Q6: =Assumptions!L46 -> 1 | R6: =Assumptions!M46 -> 2 | S6: =Assumptions!P46 -> 40 | U6: ='Detailed Summary'!X6 ->  | V6: ='Detailed Summary'!W6 ->  | W6: =Assumptions!W10*0.8/($U6+$V6) ->  | X6: =Assumptions!X10*0.8/($U6+$V6) ->  | Y6: =Assumptions!Y10*0.8/($U6+$V6) ->  | Z6: =Assumptions!Z10*0.8/($U6+$V6) ->  | AA6: =Assumptions!AA10*0.8/($U6+$V6) ->  | AB6: =Assumptions!G70*0.2/($U6+$V6) ->  | AC6: =Assumptions!H70*0.2/($U6+$V6) ->  | AD6: =Assumptions!I70*0.2/($U6+$V6) ->  | AE6: =Assumptions!J70*0.2/($U6+$V6) ->  | AF6: =Assumptions!K70*0.2/($U6+$V6) ->  | AG6: =Assumptions!L70*0.2/($U6+$V6) ->  | AH6: =Assumptions!M70*0.2/($U6+$V6) ->  | AI6: =Assumptions!N70*0.2/($U6+$V6) ->  | AJ6: =Assumptions!O70*0.2/($U6+$V6) ->  | AK6: =Assumptions!Q70/($U6+$V6) ->  | AL6: =Assumptions!W10*0.2/($U6+$V6) ->  | AM6: =Assumptions!X10*0.2/($U6+$V6) ->  | AN6: =Assumptions!Y10*0.2/($U6+$V6) ->  | AO6: =Assumptions!Z10*0.2/($U6+$V6) ->  | AP6: =Assumptions!AA10*0.2/($U6+$V6) ->  | AQ6: =Assumptions!G70*0.8/($U6+$V6) ->  | AR6: =Assumptions!H70*0.8/($U6+$V6) ->  | AS6: =Assumptions!I70*0.8/($U6+$V6) ->  | AT6: =Assumptions!J70*0.8/($U6+$V6) ->  | AU6: =Assumptions!K70*0.8/($U6+$V6) ->  | AV6: =Assumptions!L70*0.8/($U6+$V6) ->  | AW6: =Assumptions!M70*0.8/($U6+$V6) ->  | AX6: =Assumptions!N70*0.8/($U6+$V6) ->  | AY6: =Assumptions!O70*0.8/($U6+$V6) ->  | AZ6: 0 | BB6: 46.9936 | BC6: =Assumptions!W10*0.8/($BB6) -> 0.05134316162 | BD6: =Assumptions!X10*0.8/($BB6) -> 0.07568690205 | BE6: =Assumptions!Y10*0.8/($BB6) -> 0.1504885772 | BF6: =Assumptions!Z10*0.8/($BB6) -> 0.2323720677 | BG6: =Assumptions!AA10*0.8/($BB6) -> 0.1062272309 | BH6: =Assumptions!G70*0.2/($BB6) -> 0.005958258146 | BI6: =Assumptions!H70*0.2/($BB6) -> 0 | BJ6: =Assumptions!I70*0.2/($BB6) -> 0 | BK6: =Assumptions!J70*0.2/($BB6) -> 0 | BL6: =Assumptions!K70*0.2/($BB6) -> 0.0459637057 | BM6: =Assumptions!L70*0.2/($BB6) -> 0.01021415682 | BN6: =Assumptions!M70*0.2/($BB6) -> 0.008511797351 | BO6: =Assumptions!N70*0.2/($BB6) -> 0.01021415682 | BP6: =Assumptions!O70*0.2/($BB6) ->  | BQ6: =Assumptions!Q70/($BB6) -> 0.2553539205 | BS6: =U6+V6 ->  | BT6: =W6+AL6 ->  | BU6: =X6+AM6 ->  | BV6: =Y6+AN6 ->  | BW6: =Z6+AO6 ->  | BX6: =AA6+AP6 ->  | BY6: =AB6+AQ6 ->  | BZ6: =AC6+AR6 ->  | CA6: =AD6+AS6 ->  | CB6: =AE6+AT6 ->  | CC6: =AF6+AU6 ->  | CD6: =AG6+AV6 ->  | CE6: =AH6+AW6 ->  | CF6: =AI6+AX6 ->  | CG6: =AJ6+AY6 ->  | CH6: =AK6+AZ6 ->  | CJ6: ='Detailed Summary'!P6 ->  | CK6: =Assumptions!Q10/$CJ6 ->  | CL6: =Assumptions!R10/$CJ6 ->  | CM6: =Assumptions!S10/$CJ6 ->  | CN6: =Assumptions!T10/$CJ6 ->  | CO6: =Assumptions!U10/$CJ6 ->  | CP6: =Assumptions!Q46/$CJ6 ->  | CQ6: =Assumptions!R46/$CJ6 ->  | CR6: =Assumptions!S46/$CJ6 ->  | CS6: =Assumptions!T46/$CJ6 ->  | CT6: =Assumptions!U46/$CJ6 ->  | CU6: =Assumptions!V46/$CJ6 ->  | CV6: =Assumptions!W46/$CJ6 ->  | CW6: =Assumptions!X46/$CJ6 ->  | CX6: =Assumptions!Y46/$CJ6 ->  | CY6: =Assumptions!Z46/$CJ6 -> 
B7: 3 | C7: 20 + 62 | D7: Dirako + Rukada | E7: ='Detailed Summary'!E7 -> 93 | F7: ='Detailed Summary'!F7 -> 92 | G7: ='Detailed Summary'!G7 -> 39 | H7: ='Detailed Summary'!H7 -> 32 | I7: ='Detailed Summary'!I7 -> 6 | J7: =Assumptions!E47 -> 4 | K7: =Assumptions!F47 -> 2 | L7: =Assumptions!G47 -> 0 | M7: =Assumptions!H47 -> 0 | N7: =Assumptions!I47 -> 7 | O7: =Assumptions!J47 -> 6 | P7: =Assumptions!K47 -> 0 | Q7: =Assumptions!L47 -> 1 | R7: =Assumptions!M47 -> 2 | S7: =Assumptions!P47 -> 40 | U7: ='Detailed Summary'!X7 ->  | V7: ='Detailed Summary'!W7 ->  | W7: =Assumptions!W11*0.8/($U7+$V7) ->  | X7: =Assumptions!X11*0.8/($U7+$V7) ->  | Y7: =Assumptions!Y11*0.8/($U7+$V7) ->  | Z7: =Assumptions!Z11*0.8/($U7+$V7) ->  | AA7: =Assumptions!AA11*0.8/($U7+$V7) ->  | AB7: =Assumptions!G71*0.2/($U7+$V7) ->  | AC7: =Assumptions!H71*0.2/($U7+$V7) ->  | AD7: =Assumptions!I71*0.2/($U7+$V7) ->  | AE7: =Assumptions!J71*0.2/($U7+$V7) ->  | AF7: =Assumptions!K71*0.2/($U7+$V7) ->  | AG7: =Assumptions!L71*0.2/($U7+$V7) ->  | AH7: =Assumptions!M71*0.2/($U7+$V7) ->  | AI7: =Assumptions!N71*0.2/($U7+$V7) ->  | AJ7: =Assumptions!O71*0.2/($U7+$V7) ->  | AK7: =Assumptions!Q71/($U7+$V7) ->  | AL7: =Assumptions!W11*0.2/($U7+$V7) ->  | AM7: =Assumptions!X11*0.2/($U7+$V7) ->  | AN7: =Assumptions!Y11*0.2/($U7+$V7) ->  | AO7: =Assumptions!Z11*0.2/($U7+$V7) ->  | AP7: =Assumptions!AA11*0.2/($U7+$V7) ->  | AQ7: =Assumptions!G71*0.8/($U7+$V7) ->  | AR7: =Assumptions!H71*0.8/($U7+$V7) ->  | AS7: =Assumptions!I71*0.8/($U7+$V7) ->  | AT7: =Assumptions!J71*0.8/($U7+$V7) ->  | AU7: =Assumptions!K71*0.8/($U7+$V7) ->  | AV7: =Assumptions!L71*0.8/($U7+$V7) ->  | AW7: =Assumptions!M71*0.8/($U7+$V7) ->  | AX7: =Assumptions!N71*0.8/($U7+$V7) ->  | AY7: =Assumptions!O71*0.8/($U7+$V7) ->  | AZ7: 0 | BB7: 52.8096 | BC7: =Assumptions!W11*0.8/($BB7) -> 0.07325940738 | BD7: =Assumptions!X11*0.8/($BB7) -> 0.1087075077 | BE7: =Assumptions!Y11*0.8/($BB7) -> 0.1536084348 | BF7: =Assumptions!Z11*0.8/($BB7) -> 0.236320669 | BG7: =Assumptions!AA11*0.8/($BB7) -> 0.09452826759 | BH7: =Assumptions!G71*0.2/($BB7) -> 0.003029752166 | BI7: =Assumptions!H71*0.2/($BB7) -> 0.0018178513 | BJ7: =Assumptions!I71*0.2/($BB7) -> 0 | BK7: =Assumptions!J71*0.2/($BB7) -> 0 | BL7: =Assumptions!K71*0.2/($BB7) -> 0.03181239775 | BM7: =Assumptions!L71*0.2/($BB7) -> 0.018178513 | BN7: =Assumptions!M71*0.2/($BB7) -> 0 | BO7: =Assumptions!N71*0.2/($BB7) -> 0.009089256499 | BP7: =Assumptions!O71*0.2/($BB7) ->  | BQ7: =Assumptions!Q71/($BB7) -> 0.2272314125 | CJ7: ='Detailed Summary'!P7 ->  | CK7: =Assumptions!Q11/$CJ7 ->  | CL7: =Assumptions!R11/$CJ7 ->  | CM7: =Assumptions!S11/$CJ7 ->  | CN7: =Assumptions!T11/$CJ7 ->  | CO7: =Assumptions!U11/$CJ7 ->  | CP7: =Assumptions!Q47/$CJ7 ->  | CQ7: =Assumptions!R47/$CJ7 ->  | CR7: =Assumptions!S47/$CJ7 ->  | CS7: =Assumptions!T47/$CJ7 ->  | CT7: =Assumptions!U47/$CJ7 ->  | CU7: =Assumptions!V47/$CJ7 ->  | CV7: =Assumptions!W47/$CJ7 ->  | CW7: =Assumptions!X47/$CJ7 ->  | CX7: =Assumptions!Y47/$CJ7 ->  | CY7: =Assumptions!Z47/$CJ7 -> 
B8: 4 | C8: 102 | D8: Mukhwayo | E8: ='Detailed Summary'!E8 -> 56 | F8: ='Detailed Summary'!F8 -> 55 | G8: ='Detailed Summary'!G8 -> 25 | H8: ='Detailed Summary'!H8 -> 17 | I8: ='Detailed Summary'!I8 -> 8 | J8: =Assumptions!E50 -> 2 | K8: =Assumptions!F50 -> 0 | L8: =Assumptions!G50 -> 0 | M8: =Assumptions!H50 -> 0 | N8: =Assumptions!I50 -> 7 | O8: =Assumptions!J50 -> 3 | P8: =Assumptions!K50 -> 0 | Q8: =Assumptions!L50 -> 1 | R8: =Assumptions!M50 -> 2 | S8: =Assumptions!P50 -> 40 | U8: ='Detailed Summary'!X8 ->  | V8: ='Detailed Summary'!W8 ->  | W8: =Assumptions!W14*0.8/($U8+$V8) ->  | X8: =Assumptions!X14*0.8/($U8+$V8) ->  | Y8: =Assumptions!Y14*0.8/($U8+$V8) ->  | Z8: =Assumptions!Z14*0.8/($U8+$V8) ->  | AA8: =Assumptions!AA14*0.8/($U8+$V8) ->  | AB8: =Assumptions!G74*0.2/($U8+$V8) ->  | AC8: =Assumptions!H74*0.2/($U8+$V8) ->  | AD8: =Assumptions!I74*0.2/($U8+$V8) ->  | AE8: =Assumptions!J74*0.2/($U8+$V8) ->  | AF8: =Assumptions!K74*0.2/($U8+$V8) ->  | AG8: =Assumptions!L74*0.2/($U8+$V8) ->  | AH8: =Assumptions!M74*0.2/($U8+$V8) ->  | AI8: =Assumptions!N74*0.2/($U8+$V8) ->  | AJ8: =Assumptions!O74*0.2/($U8+$V8) ->  | AK8: =Assumptions!Q74/($U8+$V8) ->  | AL8: =Assumptions!W14*0.2/($U8+$V8) ->  | AM8: =Assumptions!X14*0.2/($U8+$V8) ->  | AN8: =Assumptions!Y14*0.2/($U8+$V8) ->  | AO8: =Assumptions!Z14*0.2/($U8+$V8) ->  | AP8: =Assumptions!AA14*0.2/($U8+$V8) ->  | AQ8: =Assumptions!G74*0.8/($U8+$V8) ->  | AR8: =Assumptions!H74*0.8/($U8+$V8) ->  | AS8: =Assumptions!I74*0.8/($U8+$V8) ->  | AT8: =Assumptions!J74*0.8/($U8+$V8) ->  | AU8: =Assumptions!K74*0.8/($U8+$V8) ->  | AV8: =Assumptions!L74*0.8/($U8+$V8) ->  | AW8: =Assumptions!M74*0.8/($U8+$V8) ->  | AX8: =Assumptions!N74*0.8/($U8+$V8) ->  | AY8: =Assumptions!O74*0.8/($U8+$V8) ->  | AZ8: 0 | BB8: 41.2076 | BC8: =Assumptions!W14*0.8/($BB8) -> 0.05653326085 | BD8: =Assumptions!X14*0.8/($BB8) -> 0.08328560751 | BE8: =Assumptions!Y14*0.8/($BB8) -> 0.1261903144 | BF8: =Assumptions!Z14*0.8/($BB8) -> 0.1608926509 | BG8: =Assumptions!AA14*0.8/($BB8) -> 0.1615236024 | BH8: =Assumptions!G74*0.2/($BB8) -> 0.001941389452 | BI8: =Assumptions!H74*0.2/($BB8) -> 0 | BJ8: =Assumptions!I74*0.2/($BB8) -> 0 | BK8: =Assumptions!J74*0.2/($BB8) -> 0 | BL8: =Assumptions!K74*0.2/($BB8) -> 0.0407691785 | BM8: =Assumptions!L74*0.2/($BB8) -> 0.01164833671 | BN8: =Assumptions!M74*0.2/($BB8) -> 0 | BO8: =Assumptions!N74*0.2/($BB8) -> 0.01164833671 | BP8: =Assumptions!O74*0.2/($BB8) ->  | BQ8: =Assumptions!Q74/($BB8) -> 0.2912084179 | CJ8: ='Detailed Summary'!P8 ->  | CK8: =Assumptions!Q14/$CJ8 ->  | CL8: =Assumptions!R14/$CJ8 ->  | CM8: =Assumptions!S14/$CJ8 ->  | CN8: =Assumptions!T14/$CJ8 ->  | CO8: =Assumptions!U14/$CJ8 ->  | CP8: =Assumptions!Q50/$CJ8 ->  | CQ8: =Assumptions!R50/$CJ8 ->  | CR8: =Assumptions!S50/$CJ8 ->  | CS8: =Assumptions!T50/$CJ8 ->  | CT8: =Assumptions!U50/$CJ8 ->  | CU8: =Assumptions!V50/$CJ8 ->  | CV8: =Assumptions!W50/$CJ8 ->  | CW8: =Assumptions!X50/$CJ8 ->  | CX8: =Assumptions!Y50/$CJ8 ->  | CY8: =Assumptions!Z50/$CJ8 -> 
B9: 5 | C9: 78 | D9: Mufumu | E9: ='Detailed Summary'!E10 -> 53 | F9: ='Detailed Summary'!F10 -> 52 | G9: ='Detailed Summary'!G10 -> 52 | H9: ='Detailed Summary'!H10 -> 41 | I9: ='Detailed Summary'!I10 -> 11 | J9: =Assumptions!E51 -> 1 | K9: =Assumptions!F51 -> 2 | L9: =Assumptions!G51 -> 0 | M9: =Assumptions!H51 -> 1 | N9: =Assumptions!I51 -> 3 | O9: =Assumptions!J51 -> 2 | P9: =Assumptions!K51 -> 0 | Q9: =Assumptions!L51 -> 0 | R9: =Assumptions!M51 -> 1 | S9: =Assumptions!P51 -> 40 | U9: ='Detailed Summary'!X10 ->  | V9: ='Detailed Summary'!W10 ->  | W9: =Assumptions!W15*0.8/($U9+$V9) ->  | X9: =Assumptions!X15*0.8/($U9+$V9) ->  | Y9: =Assumptions!Y15*0.8/($U9+$V9) ->  | Z9: =Assumptions!Z15*0.8/($U9+$V9) ->  | AA9: =Assumptions!AA15*0.8/($U9+$V9) ->  | AB9: =Assumptions!G75*0.2/($U9+$V9) ->  | AC9: =Assumptions!H75*0.2/($U9+$V9) ->  | AD9: =Assumptions!I75*0.2/($U9+$V9) ->  | AE9: =Assumptions!J75*0.2/($U9+$V9) ->  | AF9: =Assumptions!K75*0.2/($U9+$V9) ->  | AG9: =Assumptions!L75*0.2/($U9+$V9) ->  | AH9: =Assumptions!M75*0.2/($U9+$V9) ->  | AI9: =Assumptions!N75*0.2/($U9+$V9) ->  | AJ9: =Assumptions!O75*0.2/($U9+$V9) ->  | AK9: =Assumptions!Q75/($U9+$V9) ->  | AL9: =Assumptions!W15*0.2/($U9+$V9) ->  | AM9: =Assumptions!X15*0.2/($U9+$V9) ->  | AN9: =Assumptions!Y15*0.2/($U9+$V9) ->  | AO9: =Assumptions!Z15*0.2/($U9+$V9) ->  | AP9: =Assumptions!AA15*0.2/($U9+$V9) ->  | AQ9: =Assumptions!G75*0.8/($U9+$V9) ->  | AR9: =Assumptions!H75*0.8/($U9+$V9) ->  | AS9: =Assumptions!I75*0.8/($U9+$V9) ->  | AT9: =Assumptions!J75*0.8/($U9+$V9) ->  | AU9: =Assumptions!K75*0.8/($U9+$V9) ->  | AV9: =Assumptions!L75*0.8/($U9+$V9) ->  | AW9: =Assumptions!M75*0.8/($U9+$V9) ->  | AX9: =Assumptions!N75*0.8/($U9+$V9) ->  | AY9: =Assumptions!O75*0.8/($U9+$V9) ->  | AZ9: 0 | BB9: 55.7996 | BC9: =Assumptions!W15*0.8/($BB9) -> 0.03951282805 | BD9: =Assumptions!X15*0.8/($BB9) -> 0.05815095449 | BE9: =Assumptions!Y15*0.8/($BB9) -> 0.193836515 | BF9: =Assumptions!Z15*0.8/($BB9) -> 0.286561194 | BG9: =Assumptions!AA15*0.8/($BB9) -> 0.1640155127 | BH9: =Assumptions!G75*0.2/($BB9) -> 0.0007168510169 | BI9: =Assumptions!H75*0.2/($BB9) -> 0.00172044244 | BJ9: =Assumptions!I75*0.2/($BB9) -> 0 | BK9: =Assumptions!J75*0.2/($BB9) -> 0.00172044244 | BL9: =Assumptions!K75*0.2/($BB9) -> 0.0129033183 | BM9: =Assumptions!L75*0.2/($BB9) -> 0.005734808135 | BN9: =Assumptions!M75*0.2/($BB9) -> 0 | BO9: =Assumptions!N75*0.2/($BB9) -> 0 | BP9: =Assumptions!O75*0.2/($BB9) ->  | BQ9: =Assumptions!Q75/($BB9) -> 0.2150553051 | CJ9: ='Detailed Summary'!P10 ->  | CK9: =Assumptions!Q15/$CJ9 ->  | CL9: =Assumptions!R15/$CJ9 ->  | CM9: =Assumptions!S15/$CJ9 ->  | CN9: =Assumptions!T15/$CJ9 ->  | CO9: =Assumptions!U15/$CJ9 ->  | CP9: =Assumptions!Q51/$CJ9 ->  | CQ9: =Assumptions!R51/$CJ9 ->  | CR9: =Assumptions!S51/$CJ9 ->  | CS9: =Assumptions!T51/$CJ9 ->  | CT9: =Assumptions!U51/$CJ9 ->  | CU9: =Assumptions!V51/$CJ9 ->  | CV9: =Assumptions!W51/$CJ9 ->  | CW9: =Assumptions!X51/$CJ9 ->  | CX9: =Assumptions!Y51/$CJ9 ->  | CY9: =Assumptions!Z51/$CJ9 -> 
B10: 6 | C10: 57 | D10: Makhurisi | E10: ='Detailed Summary'!E11 -> 20 | F10: ='Detailed Summary'!F11 -> 19 | G10: ='Detailed Summary'!G11 -> 26 | H10: ='Detailed Summary'!H11 -> 21 | I10: ='Detailed Summary'!I11 -> 5 | J10: =Assumptions!E52 -> 2 | K10: =Assumptions!F52 -> 0 | L10: =Assumptions!G52 -> 0 | M10: =Assumptions!H52 -> 0 | N10: =Assumptions!I52 -> 3 | O10: =Assumptions!J52 -> 1 | P10: =Assumptions!K52 -> 0 | Q10: =Assumptions!L52 -> 1 | R10: =Assumptions!M52 -> 1 | S10: =Assumptions!P52 -> 20 | U10: ='Detailed Summary'!X11 ->  | V10: ='Detailed Summary'!W11 ->  | W10: =Assumptions!W16*0.8/($U10+$V10) ->  | X10: =Assumptions!X16*0.8/($U10+$V10) ->  | Y10: =Assumptions!Y16*0.8/($U10+$V10) ->  | Z10: =Assumptions!Z16*0.8/($U10+$V10) ->  | AA10: =Assumptions!AA16*0.8/($U10+$V10) ->  | AB10: =Assumptions!G76*0.2/($U10+$V10) ->  | AC10: =Assumptions!H76*0.2/($U10+$V10) ->  | AD10: =Assumptions!I76*0.2/($U10+$V10) ->  | AE10: =Assumptions!J76*0.2/($U10+$V10) ->  | AF10: =Assumptions!K76*0.2/($U10+$V10) ->  | AG10: =Assumptions!L76*0.2/($U10+$V10) ->  | AH10: =Assumptions!M76*0.2/($U10+$V10) ->  | AI10: =Assumptions!N76*0.2/($U10+$V10) ->  | AJ10: =Assumptions!O76*0.2/($U10+$V10) ->  | AK10: =Assumptions!Q76/($U10+$V10) ->  | AL10: =Assumptions!W16*0.2/($U10+$V10) ->  | AM10: =Assumptions!X16*0.2/($U10+$V10) ->  | AN10: =Assumptions!Y16*0.2/($U10+$V10) ->  | AO10: =Assumptions!Z16*0.2/($U10+$V10) ->  | AP10: =Assumptions!AA16*0.2/($U10+$V10) ->  | AQ10: =Assumptions!G76*0.8/($U10+$V10) ->  | AR10: =Assumptions!H76*0.8/($U10+$V10) ->  | AS10: =Assumptions!I76*0.8/($U10+$V10) ->  | AT10: =Assumptions!J76*0.8/($U10+$V10) ->  | AU10: =Assumptions!K76*0.8/($U10+$V10) ->  | AV10: =Assumptions!L76*0.8/($U10+$V10) ->  | AW10: =Assumptions!M76*0.8/($U10+$V10) ->  | AX10: =Assumptions!N76*0.8/($U10+$V10) ->  | AY10: =Assumptions!O76*0.8/($U10+$V10) ->  | AZ10: 0 | BB10: 28.3356 | BC10: =Assumptions!W16*0.8/($BB10) -> 0.02936235689 | BD10: =Assumptions!X16*0.8/($BB10) -> 0.04184135857 | BE10: =Assumptions!Y16*0.8/($BB10) -> 0.1908553198 | BF10: =Assumptions!Z16*0.8/($BB10) -> 0.2890357007 | BG10: =Assumptions!AA16*0.8/($BB10) -> 0.1468117845 | BH10: =Assumptions!G76*0.2/($BB10) -> 0.002823303547 | BI10: =Assumptions!H76*0.2/($BB10) -> 0 | BJ10: =Assumptions!I76*0.2/($BB10) -> 0 | BK10: =Assumptions!J76*0.2/($BB10) -> 0 | BL10: =Assumptions!K76*0.2/($BB10) -> 0.02540973193 | BM10: =Assumptions!L76*0.2/($BB10) -> 0.005646607095 | BN10: =Assumptions!M76*0.2/($BB10) -> 0 | BO10: =Assumptions!N76*0.2/($BB10) -> 0.01693982128 | BP10: =Assumptions!O76*0.2/($BB10) ->  | BQ10: =Assumptions!Q76/($BB10) -> 0.2117477661 | CJ10: ='Detailed Summary'!P11 ->  | CK10: =Assumptions!Q16/$CJ10 ->  | CL10: =Assumptions!R16/$CJ10 ->  | CM10: =Assumptions!S16/$CJ10 ->  | CN10: =Assumptions!T16/$CJ10 ->  | CO10: =Assumptions!U16/$CJ10 ->  | CP10: =Assumptions!Q52/$CJ10 ->  | CQ10: =Assumptions!R52/$CJ10 ->  | CR10: =Assumptions!S52/$CJ10 ->  | CS10: =Assumptions!T52/$CJ10 ->  | CT10: =Assumptions!U52/$CJ10 ->  | CU10: =Assumptions!V52/$CJ10 ->  | CV10: =Assumptions!W52/$CJ10 ->  | CW10: =Assumptions!X52/$CJ10 ->  | CX10: =Assumptions!Y52/$CJ10 ->  | CY10: =Assumptions!Z52/$CJ10 -> 
B11: 7 | C11: =Assumptions!C17 -> 61 + 95 + 96 | D11: =Assumptions!D17 -> Mumbaka + Mukhondo B + Mugonga | E11: ='Detailed Summary'!E12 -> 55 | F11: ='Detailed Summary'!F12 -> 54 | G11: ='Detailed Summary'!G12 -> 32 | H11: ='Detailed Summary'!H12 -> 23 | I11: ='Detailed Summary'!I12 -> 9 | J11: =Assumptions!E53 -> 2 | K11: =Assumptions!F53 -> 0 | L11: =Assumptions!G53 -> 0 | M11: =Assumptions!H53 -> 0 | N11: =Assumptions!I53 -> 6 | O11: =Assumptions!J53 -> 2 | P11: =Assumptions!K53 -> 0 | Q11: =Assumptions!L53 -> 1 | R11: =Assumptions!M53 -> 1 | S11: =Assumptions!P53 -> 40 | U11: ='Detailed Summary'!X12 ->  | V11: ='Detailed Summary'!W12 ->  | W11: =Assumptions!W17*0.8/($U11+$V11) ->  | X11: =Assumptions!X17*0.8/($U11+$V11) ->  | Y11: =Assumptions!Y17*0.8/($U11+$V11) ->  | Z11: =Assumptions!Z17*0.8/($U11+$V11) ->  | AA11: =Assumptions!AA17*0.8/($U11+$V11) ->  | AB11: =Assumptions!G77*0.2/($U11+$V11) ->  | AC11: =Assumptions!H77*0.2/($U11+$V11) ->  | AD11: =Assumptions!I77*0.2/($U11+$V11) ->  | AE11: =Assumptions!J77*0.2/($U11+$V11) ->  | AF11: =Assumptions!K77*0.2/($U11+$V11) ->  | AG11: =Assumptions!L77*0.2/($U11+$V11) ->  | AH11: =Assumptions!M77*0.2/($U11+$V11) ->  | AI11: =Assumptions!N77*0.2/($U11+$V11) ->  | AJ11: =Assumptions!O77*0.2/($U11+$V11) ->  | AK11: =Assumptions!Q77/($U11+$V11) ->  | AL11: =Assumptions!W17*0.2/($U11+$V11) ->  | AM11: =Assumptions!X17*0.2/($U11+$V11) ->  | AN11: =Assumptions!Y17*0.2/($U11+$V11) ->  | AO11: =Assumptions!Z17*0.2/($U11+$V11) ->  | AP11: =Assumptions!AA17*0.2/($U11+$V11) ->  | AQ11: =Assumptions!G77*0.8/($U11+$V11) ->  | AR11: =Assumptions!H77*0.8/($U11+$V11) ->  | AS11: =Assumptions!I77*0.8/($U11+$V11) ->  | AT11: =Assumptions!J77*0.8/($U11+$V11) ->  | AU11: =Assumptions!K77*0.8/($U11+$V11) ->  | AV11: =Assumptions!L77*0.8/($U11+$V11) ->  | AW11: =Assumptions!M77*0.8/($U11+$V11) ->  | AX11: =Assumptions!N77*0.8/($U11+$V11) ->  | AY11: =Assumptions!O77*0.8/($U11+$V11) ->  | AZ11: 0 | BB11: 44.2116 | BC11: =Assumptions!W17*0.8/($BB11) -> 0.05175112414 | BD11: =Assumptions!X17*0.8/($BB11) -> 0.07621529191 | BE11: =Assumptions!Y17*0.8/($BB11) -> 0.1505487248 | BF11: =Assumptions!Z17*0.8/($BB11) -> 0.2028879299 | BG11: =Assumptions!AA17*0.8/($BB11) -> 0.1693673154 | BH11: =Assumptions!G77*0.2/($BB11) -> 0.001809479865 | BI11: =Assumptions!H77*0.2/($BB11) -> 0 | BJ11: =Assumptions!I77*0.2/($BB11) -> 0 | BK11: =Assumptions!J77*0.2/($BB11) -> 0 | BL11: =Assumptions!K77*0.2/($BB11) -> 0.03257063757 | BM11: =Assumptions!L77*0.2/($BB11) -> 0.00723791946 | BN11: =Assumptions!M77*0.2/($BB11) -> 0 | BO11: =Assumptions!N77*0.2/($BB11) -> 0.01085687919 | BP11: =Assumptions!O77*0.2/($BB11) ->  | BQ11: =Assumptions!Q77/($BB11) -> 0.2714219798 | CJ11: ='Detailed Summary'!P12 ->  | CK11: =Assumptions!Q17/$CJ11 ->  | CL11: =Assumptions!R17/$CJ11 ->  | CM11: =Assumptions!S17/$CJ11 ->  | CN11: =Assumptions!T17/$CJ11 ->  | CO11: =Assumptions!U17/$CJ11 ->  | CP11: =Assumptions!Q53/$CJ11 ->  | CQ11: =Assumptions!R53/$CJ11 ->  | CR11: =Assumptions!S53/$CJ11 ->  | CS11: =Assumptions!T53/$CJ11 ->  | CT11: =Assumptions!U53/$CJ11 ->  | CU11: =Assumptions!V53/$CJ11 ->  | CV11: =Assumptions!W53/$CJ11 ->  | CW11: =Assumptions!X53/$CJ11 ->  | CX11: =Assumptions!Y53/$CJ11 ->  | CY11: =Assumptions!Z53/$CJ11 -> 
B12: 8 | C12: 99 | D12: Namagumba | E12: ='Detailed Summary'!E13 -> 30 | F12: ='Detailed Summary'!F13 -> 30 | G12: ='Detailed Summary'!G13 -> 23 | H12: ='Detailed Summary'!H13 -> 15 | I12: ='Detailed Summary'!I13 -> 7 | J12: =Assumptions!E57 -> 1 | K12: =Assumptions!F57 -> 0 | L12: =Assumptions!G57 -> 0 | M12: =Assumptions!H57 -> 0 | N12: =Assumptions!I57 -> 6 | O12: =Assumptions!J57 -> 2 | P12: =Assumptions!K57 -> 0 | Q12: =Assumptions!L57 -> 0 | R12: =Assumptions!M57 -> 1 | S12: =Assumptions!P57 -> 20 | U12: ='Detailed Summary'!X13 ->  | V12: ='Detailed Summary'!W13 ->  | W12: =Assumptions!W21*0.8/($U12+$V12) ->  | X12: =Assumptions!X21*0.8/($U12+$V12) ->  | Y12: =Assumptions!Y21*0.8/($U12+$V12) ->  | Z12: =Assumptions!Z21*0.8/($U12+$V12) ->  | AA12: =Assumptions!AA21*0.8/($U12+$V12) ->  | AB12: =Assumptions!G81*0.2/($U12+$V12) ->  | AC12: =Assumptions!H81*0.2/($U12+$V12) ->  | AD12: =Assumptions!I81*0.2/($U12+$V12) ->  | AE12: =Assumptions!J81*0.2/($U12+$V12) ->  | AF12: =Assumptions!K81*0.2/($U12+$V12) ->  | AG12: =Assumptions!L81*0.2/($U12+$V12) ->  | AH12: =Assumptions!M81*0.2/($U12+$V12) ->  | AI12: =Assumptions!N81*0.2/($U12+$V12) ->  | AJ12: =Assumptions!O81*0.2/($U12+$V12) ->  | AK12: =Assumptions!Q81/($U12+$V12) ->  | AL12: =Assumptions!W21*0.2/($U12+$V12) ->  | AM12: =Assumptions!X21*0.2/($U12+$V12) ->  | AN12: =Assumptions!Y21*0.2/($U12+$V12) ->  | AO12: =Assumptions!Z21*0.2/($U12+$V12) ->  | AP12: =Assumptions!AA21*0.2/($U12+$V12) ->  | AQ12: =Assumptions!G81*0.8/($U12+$V12) ->  | AR12: =Assumptions!H81*0.8/($U12+$V12) ->  | AS12: =Assumptions!I81*0.8/($U12+$V12) ->  | AT12: =Assumptions!J81*0.8/($U12+$V12) ->  | AU12: =Assumptions!K81*0.8/($U12+$V12) ->  | AV12: =Assumptions!L81*0.8/($U12+$V12) ->  | AW12: =Assumptions!M81*0.8/($U12+$V12) ->  | AX12: =Assumptions!N81*0.8/($U12+$V12) ->  | AY12: =Assumptions!O81*0.8/($U12+$V12) ->  | AZ12: 0 | BB12: 28.498 | BC12: =Assumptions!W21*0.8/($BB12) -> 0.04379254685 | BD12: =Assumptions!X21*0.8/($BB12) -> 0.06568882027 | BE12: =Assumptions!Y21*0.8/($BB12) -> 0.1678714296 | BF12: =Assumptions!Z21*0.8/($BB12) -> 0.2052775633 | BG12: =Assumptions!AA21*0.8/($BB12) -> 0.2043652186 | BH12: =Assumptions!G81*0.2/($BB12) -> 0.001403607271 | BI12: =Assumptions!H81*0.2/($BB12) -> 0 | BJ12: =Assumptions!I81*0.2/($BB12) -> 0 | BK12: =Assumptions!J81*0.2/($BB12) -> 0 | BL12: =Assumptions!K81*0.2/($BB12) -> 0.05052986174 | BM12: =Assumptions!L81*0.2/($BB12) -> 0.01122885817 | BN12: =Assumptions!M81*0.2/($BB12) -> 0 | BO12: =Assumptions!N81*0.2/($BB12) -> 0 | BP12: =Assumptions!O81*0.2/($BB12) ->  | BQ12: =Assumptions!Q81/($BB12) -> 0.2105410906 | CJ12: ='Detailed Summary'!P13 ->  | CK12: =Assumptions!Q21/$CJ12 ->  | CL12: =Assumptions!R21/$CJ12 ->  | CM12: =Assumptions!S21/$CJ12 ->  | CN12: =Assumptions!T21/$CJ12 ->  | CO12: =Assumptions!U21/$CJ12 ->  | CP12: =Assumptions!Q57/$CJ12 ->  | CQ12: =Assumptions!R57/$CJ12 ->  | CR12: =Assumptions!S57/$CJ12 ->  | CS12: =Assumptions!T57/$CJ12 ->  | CT12: =Assumptions!U57/$CJ12 ->  | CU12: =Assumptions!V57/$CJ12 ->  | CV12: =Assumptions!W57/$CJ12 ->  | CW12: =Assumptions!X57/$CJ12 ->  | CX12: =Assumptions!Y57/$CJ12 ->  | CY12: =Assumptions!Z57/$CJ12 -> 
B13: 9 | C13: 132 | D13: Akadetewai | E13: ='Detailed Summary'!E14 -> 40 | F13: ='Detailed Summary'!F14 -> 39 | G13: ='Detailed Summary'!G14 -> 19 | H13: ='Detailed Summary'!H14 -> 13 | I13: ='Detailed Summary'!I14 -> 7 | J13: =Assumptions!E58 -> 4 | K13: =Assumptions!F58 -> 0 | L13: =Assumptions!G58 -> 0 | M13: =Assumptions!H58 -> 0 | N13: =Assumptions!I58 -> 1 | O13: =Assumptions!J58 -> 8 | P13: =Assumptions!K58 -> 0 | Q13: =Assumptions!L58 -> 0 | R13: =Assumptions!M58 -> 1 | S13: =Assumptions!P58 -> 20 | U13: ='Detailed Summary'!X14 ->  | V13: ='Detailed Summary'!W14 ->  | W13: =Assumptions!W22*0.8/($U13+$V13) ->  | X13: =Assumptions!X22*0.8/($U13+$V13) ->  | Y13: =Assumptions!Y22*0.8/($U13+$V13) ->  | Z13: =Assumptions!Z22*0.8/($U13+$V13) ->  | AA13: =Assumptions!AA22*0.8/($U13+$V13) ->  | AB13: =Assumptions!G82*0.2/($U13+$V13) ->  | AC13: =Assumptions!H82*0.2/($U13+$V13) ->  | AD13: =Assumptions!I82*0.2/($U13+$V13) ->  | AE13: =Assumptions!J82*0.2/($U13+$V13) ->  | AF13: =Assumptions!K82*0.2/($U13+$V13) ->  | AG13: =Assumptions!L82*0.2/($U13+$V13) ->  | AH13: =Assumptions!M82*0.2/($U13+$V13) ->  | AI13: =Assumptions!N82*0.2/($U13+$V13) ->  | AJ13: =Assumptions!O82*0.2/($U13+$V13) ->  | AK13: =Assumptions!Q82/($U13+$V13) ->  | AL13: =Assumptions!W22*0.2/($U13+$V13) ->  | AM13: =Assumptions!X22*0.2/($U13+$V13) ->  | AN13: =Assumptions!Y22*0.2/($U13+$V13) ->  | AO13: =Assumptions!Z22*0.2/($U13+$V13) ->  | AP13: =Assumptions!AA22*0.2/($U13+$V13) ->  | AQ13: =Assumptions!G82*0.8/($U13+$V13) ->  | AR13: =Assumptions!H82*0.8/($U13+$V13) ->  | AS13: =Assumptions!I82*0.8/($U13+$V13) ->  | AT13: =Assumptions!J82*0.8/($U13+$V13) ->  | AU13: =Assumptions!K82*0.8/($U13+$V13) ->  | AV13: =Assumptions!L82*0.8/($U13+$V13) ->  | AW13: =Assumptions!M82*0.8/($U13+$V13) ->  | AX13: =Assumptions!N82*0.8/($U13+$V13) ->  | AY13: =Assumptions!O82*0.8/($U13+$V13) ->  | AZ13: 0 | BB13: 27.7436 | BC13: =Assumptions!W22*0.8/($BB13) -> 0.05997779668 | BD13: =Assumptions!X22*0.8/($BB13) -> 0.08771752765 | BE13: =Assumptions!Y22*0.8/($BB13) -> 0.1424472671 | BF13: =Assumptions!Z22*0.8/($BB13) -> 0.1827448493 | BG13: =Assumptions!AA22*0.8/($BB13) -> 0.2099222884 | BH13: =Assumptions!G82*0.2/($BB13) -> 0.005767095835 | BI13: =Assumptions!H82*0.2/($BB13) -> 0 | BJ13: =Assumptions!I82*0.2/($BB13) -> 0 | BK13: =Assumptions!J82*0.2/($BB13) -> 0 | BL13: =Assumptions!K82*0.2/($BB13) -> 0.008650643752 | BM13: =Assumptions!L82*0.2/($BB13) -> 0.04613676668 | BN13: =Assumptions!M82*0.2/($BB13) -> 0 | BO13: =Assumptions!N82*0.2/($BB13) -> 0 | BP13: =Assumptions!O82*0.2/($BB13) ->  | BQ13: =Assumptions!Q82/($BB13) -> 0.2162660938 | CJ13: ='Detailed Summary'!P14 ->  | CK13: =Assumptions!Q22/$CJ13 ->  | CL13: =Assumptions!R22/$CJ13 ->  | CM13: =Assumptions!S22/$CJ13 ->  | CN13: =Assumptions!T22/$CJ13 ->  | CO13: =Assumptions!U22/$CJ13 ->  | CP13: =Assumptions!Q58/$CJ13 ->  | CQ13: =Assumptions!R58/$CJ13 ->  | CR13: =Assumptions!S58/$CJ13 ->  | CS13: =Assumptions!T58/$CJ13 ->  | CT13: =Assumptions!U58/$CJ13 ->  | CU13: =Assumptions!V58/$CJ13 ->  | CV13: =Assumptions!W58/$CJ13 ->  | CW13: =Assumptions!X58/$CJ13 ->  | CX13: =Assumptions!Y58/$CJ13 ->  | CY13: =Assumptions!Z58/$CJ13 -> 
B14: 10 | C14: 145 | D14: Syamakanga / Imprezza | E14: ='Detailed Summary'!E15 -> 25 | F14: ='Detailed Summary'!F15 -> 24 | G14: ='Detailed Summary'!G15 -> 26 | H14: ='Detailed Summary'!H15 -> 22 | I14: ='Detailed Summary'!I15 -> 3 | J14: =Assumptions!E59 -> 1 | K14: =Assumptions!F59 -> 0 | L14: =Assumptions!G59 -> 1 | M14: =Assumptions!H59 -> 0 | N14: =Assumptions!I59 -> 2 | O14: =Assumptions!J59 -> 1 | P14: =Assumptions!K59 -> 0 | Q14: =Assumptions!L59 -> 0 | R14: =Assumptions!M59 -> 1 | S14: =Assumptions!P59 -> 20 | U14: ='Detailed Summary'!X15 ->  | V14: ='Detailed Summary'!W15 ->  | W14: =Assumptions!W23*0.8/($U14+$V14) ->  | X14: =Assumptions!X23*0.8/($U14+$V14) ->  | Y14: =Assumptions!Y23*0.8/($U14+$V14) ->  | Z14: =Assumptions!Z23*0.8/($U14+$V14) ->  | AA14: =Assumptions!AA23*0.8/($U14+$V14) ->  | AB14: =Assumptions!G83*0.2/($U14+$V14) ->  | AC14: =Assumptions!H83*0.2/($U14+$V14) ->  | AD14: =Assumptions!I83*0.2/($U14+$V14) ->  | AE14: =Assumptions!J83*0.2/($U14+$V14) ->  | AF14: =Assumptions!K83*0.2/($U14+$V14) ->  | AG14: =Assumptions!L83*0.2/($U14+$V14) ->  | AH14: =Assumptions!M83*0.2/($U14+$V14) ->  | AI14: =Assumptions!N83*0.2/($U14+$V14) ->  | AJ14: =Assumptions!O83*0.2/($U14+$V14) ->  | AK14: =Assumptions!Q83/($U14+$V14) ->  | AL14: =Assumptions!W23*0.2/($U14+$V14) ->  | AM14: =Assumptions!X23*0.2/($U14+$V14) ->  | AN14: =Assumptions!Y23*0.2/($U14+$V14) ->  | AO14: =Assumptions!Z23*0.2/($U14+$V14) ->  | AP14: =Assumptions!AA23*0.2/($U14+$V14) ->  | AQ14: =Assumptions!G83*0.8/($U14+$V14) ->  | AR14: =Assumptions!H83*0.8/($U14+$V14) ->  | AS14: =Assumptions!I83*0.8/($U14+$V14) ->  | AT14: =Assumptions!J83*0.8/($U14+$V14) ->  | AU14: =Assumptions!K83*0.8/($U14+$V14) ->  | AV14: =Assumptions!L83*0.8/($U14+$V14) ->  | AW14: =Assumptions!M83*0.8/($U14+$V14) ->  | AX14: =Assumptions!N83*0.8/($U14+$V14) ->  | AY14: =Assumptions!O83*0.8/($U14+$V14) ->  | AZ14: 0 | BB14: 27.7176 | BC14: =Assumptions!W23*0.8/($BB14) -> 0.03752128611 | BD14: =Assumptions!X23*0.8/($BB14) -> 0.054030652 | BE14: =Assumptions!Y23*0.8/($BB14) -> 0.1951106878 | BF14: =Assumptions!Z23*0.8/($BB14) -> 0.3095506104 | BG14: =Assumptions!AA23*0.8/($BB14) -> 0.09005108667 | BH14: =Assumptions!G83*0.2/($BB14) -> 0.001443126389 | BI14: =Assumptions!H83*0.2/($BB14) -> 0 | BJ14: =Assumptions!I83*0.2/($BB14) -> 0.03232603111 | BK14: =Assumptions!J83*0.2/($BB14) -> 0 | BL14: =Assumptions!K83*0.2/($BB14) -> 0.01731751667 | BM14: =Assumptions!L83*0.2/($BB14) -> 0.005772505556 | BN14: =Assumptions!M83*0.2/($BB14) -> 0 | BO14: =Assumptions!N83*0.2/($BB14) -> 0 | BP14: =Assumptions!O83*0.2/($BB14) ->  | BQ14: =Assumptions!Q83/($BB14) -> 0.2164689584 | CJ14: ='Detailed Summary'!P15 ->  | CK14: =Assumptions!Q23/$CJ14 ->  | CL14: =Assumptions!R23/$CJ14 ->  | CM14: =Assumptions!S23/$CJ14 ->  | CN14: =Assumptions!T23/$CJ14 ->  | CO14: =Assumptions!U23/$CJ14 ->  | CP14: =Assumptions!Q59/$CJ14 ->  | CQ14: =Assumptions!R59/$CJ14 ->  | CR14: =Assumptions!S59/$CJ14 ->  | CS14: =Assumptions!T59/$CJ14 ->  | CT14: =Assumptions!U59/$CJ14 ->  | CU14: =Assumptions!V59/$CJ14 ->  | CV14: =Assumptions!W59/$CJ14 ->  | CW14: =Assumptions!X59/$CJ14 ->  | CX14: =Assumptions!Y59/$CJ14 ->  | CY14: =Assumptions!Z59/$CJ14 -> 
D15: Total | E15: =SUM(E5:E14) -> 520 | F15: =SUM(F5:F14) -> 512 | G15: 327 | H15: 248 | I15: 77 | J15: =SUM(J5:J14) -> 30 | K15: =SUM(K5:K14) -> 4 | L15: =SUM(L5:L14) -> 1 | M15: =SUM(M5:M14) -> 2 | N15: =SUM(N5:N14) -> 60 | O15: =SUM(O5:O14) -> 37 | P15: =SUM(P5:P14) -> 1 | Q15: =SUM(Q5:Q14) -> 6 | R15: =SUM(R5:R14) -> 14 | S15: =SUM(S5:S14) -> 320 | U15: =SUM(U5:U14) ->  | V15: =SUM(V5:V14) ->  | W15: =AVERAGE(W5:W14) ->  | X15: =AVERAGE(X5:X14) ->  | AL15: =AVERAGE(AL5:AL14) ->  | AM15: =AVERAGE(AM5:AM14) ->  | AZ15: 0 | BB15: =SUM(BB5:BB14) -> 420.1408 | BC15: =SUM(BC5:BC14) -> 0.499081543 | BD15: =SUM(BD5:BD14) -> 0.7353662839 | BE15: =SUM(BE5:BE14) -> 1.629702631 | BF15: 2.315747389 | BG15: 1.533571555 | BH15: 0.02848438769 | BI15: 0.00353829374 | BJ15: 0.03232603111 | BK15: 0.003157052042 | BL15: 0.323391376 | BM15: 0.1433476156 | BN15: 0.008511797351 | BO15: 0.06593149852 | BQ15: 2.294871145 | BS15: =SUM(BS5:BS14) ->  | BT15: =AVERAGE(BT5:BT14) ->  | BU15: =AVERAGE(BU5:BU14) ->  | BV15: =AVERAGE(BV5:BV14) ->  | BW15: =AVERAGE(BW5:BW14) ->  | BX15: =AVERAGE(BX5:BX14) ->  | BY15: =AVERAGE(BY5:BY14) ->  | BZ15: =AVERAGE(BZ5:BZ14) ->  | CA15: =AVERAGE(CA5:CA14) ->  | CB15: =AVERAGE(CB5:CB14) ->  | CC15: =AVERAGE(CC5:CC14) ->  | CD15: =AVERAGE(CD5:CD14) ->  | CE15: =AVERAGE(CE5:CE14) ->  | CF15: =AVERAGE(CF5:CF14) ->  | CG15: =AVERAGE(CG5:CG14) ->  | CH15: =AVERAGE(CH5:CH14) ->  | CJ15: =SUM(CJ5:CJ14) ->  | CK15: =AVERAGE(CK5:CK14) ->  | CL15: =AVERAGE(CL5:CL14) -> 
E16: =E15/SUM($E$15:$R$15) -> 0.2827623709 | F16: =F15/SUM($E$15:$R$15) -> 0.2784121805 | G16: 0.1778140294 | H16: 0.1348558999 | I16: 0.04187058184 | J16: 0.0163132137 | K16: 0.00217509516 | L16: 0.0005437737901 | M16: 0.00108754758 | N16: 0.03262642741 | O16: 0.02011963023 | P16: 0.0005437737901 | Q16: 0.003262642741 | R16: 0.007612833061

Sheet Detailed Summary (hidden)
E2: HH Data (Qty) | K2: Total HH | L2: Total Biz | M2: Public Lighting | N2: Estimated Power Peak [kWp] | O2: Estimated Power Peak [kWp] | P2: Power [kWp] | Q2: Estimated Daily Power Consumption [kWh] | R2: Estimated Daily Power Consumption [kWh] | S2: Estimated Daily Power Consumption [kWh] | T2: Daily Demand [kWh] | U2: Monthly Cons. [kWh] | V2: Yearly Cons. [MWh] | W2: Daily Energy consumption (Expected) [kWh] | Y2: Nighttime Capacity required [Ah] | Z2: Capacity required [Ah] (60% DoD) | AA2: Storage | AG2: PV System | AM2: Excluding Public Lighting | AP2: Wp per connection (including Public Lighting) | AQ2: Genset
C3: Site No. | D3: Site | E3: T1 | F3: T2 | G3: T3 | H3: T4 | I3: T5 | J3: Total HH | AA3: No. of Modules Storage | AB3: Type | AC3: Max. Capacity [Ah] | AD3: Extra capacity [Ah] | AE3: Max. Capacity [kWh] | AF3: Cost | AG3: Nominal power (Calculated) [kW] | AH3: No. of Modules | AI3: Type | AJ3: Grid Power [kW] | AK3: PV Power [kWp] | AL3: Cost | AM3: DAILY Cons. per connection [wh] | AN3: W grid per connection | AO3: Wp per connection (PV panels) | AQ3: kVA | AR3: Cost
N4: HH | O4: Biz | P4: Total | Q4: HH | R4: Biz | S4: Public Lighting | T4: Total | W4: Day Time | X4: Night Time
B5: 1 | C5: 45 + 59 + 60 | D5: Mudoriko + Bwiri A + Bwiri B | E5: =Assumptions!I6 -> 90 | F5: =Assumptions!J6 -> 90 | G5: =Assumptions!K6 -> 51 | H5: =Assumptions!L6 -> 36 | I5: =Assumptions!M6 -> 15 | J5: =SUM(E5:I5) -> 282 | K5: =SUM(E5:I5) -> 282 | L5: =Assumptions!O42 -> 35 | M5: =Assumptions!P42 -> 40 | N5: =Assumptions!V6 -> 11.6805 | O5: =Assumptions!S66 ->  | P5: =SUM(N5:O5) ->  | Q5: =Assumptions!AB6 -> 58.11 | R5: =Assumptions!R66 ->  | S5: =Assumptions!Q66 -> 12 | T5: =SUM(Q5:S5) ->  | U5: =T5*30 ->  | V5: =(U5*12)/1000 ->  | W5: =Q5*0.2+R5*0.8 ->  | X5: =Q5*0.8+R5*0.2+S5 ->  | Y5: =(X5*1000)/48 ->  | Z5: =ROUNDUP(Y5+(Y5*0.4),-1) ->  | AA5: 2 | AB5: Storage 1000Ah | AC5: 2000 | AD5: =AC5-Z5 ->  | AE5: =(AC5*48)/1000 -> 96 | AF5: 15280.4 | AG5: =CEILING(P5,5) ->  | AH5: 2 | AI5: Module 15kWp | AJ5: 30 | AK5: 35 | AL5: 41935.06667 | AM5: =((Q5+R5)/(J5+L5))*1000 ->  | AN5: =(AJ5/(J5+L5))*1000 -> 94.63722397 | AO5: =(AK5/(J5+L5))*1000 -> 110.4100946 | AP5: =(AK5/(J5+L5+M5))*1000 -> 98.03921569 | AQ5: Genset 33kVA | AR5: 9378
B6: 2 | C6: 133 | D6: Buyende | E6: =Assumptions!I10 -> 58 | F6: =Assumptions!J10 -> 57 | G6: =Assumptions!K10 -> 34 | H6: =Assumptions!L10 -> 28 | I6: =Assumptions!M10 -> 6 | J6: =SUM(E6:I6) -> 183 | K6: =SUM(E6:I6) -> 183 | L6: =Assumptions!O46 -> 23 | M6: =Assumptions!P46 -> 40 | N6: =Assumptions!V10 -> 7.3125 | O6: =Assumptions!S70 ->  | P6: =SUM(N6:O6) ->  | Q6: =Assumptions!AB10 -> 36.192 | R6: =Assumptions!R70 ->  | S6: =Assumptions!Q70 -> 12 | T6: =SUM(Q6:S6) ->  | U6: =T6*30 ->  | V6: =(U6*12)/1000 ->  | W6: =Q6*0.2+R6*0.8 ->  | X6: =Q6*0.8+R6*0.2+S6 ->  | Y6: =(X6*1000)/48 ->  | Z6: =ROUNDUP(Y6+(Y6*0.4),-1) ->  | AA6: 1 | AB6: Storage 1500Ah | AC6: 1500 | AD6: =AC6-Z6 ->  | AE6: =(AC6*48)/1000 -> 72 | AF6: 11150.93333 | AG6: =CEILING(P6,5) ->  | AH6: 2 | AI6: Module 15kWp | AJ6: 30 | AK6: 35 | AL6: 41935.06667 | AM6: =((Q6+R6)/(J6+L6))*1000 ->  | AN6: =(AJ6/(J6+L6))*1000 -> 145.631068 | AO6: =(AK6/(J6+L6))*1000 -> 169.9029126 | AP6: =(AK6/(J6+L6+M6))*1000 -> 142.2764228 | AQ6: Genset 33kVA | AR6: 9378
B7: 3 | C7: 20 + 62 | D7: Dirako + Rukada | E7: =Assumptions!I11 -> 93 | F7: =Assumptions!J11 -> 92 | G7: =Assumptions!K11 -> 39 | H7: =Assumptions!L11 -> 32 | I7: =Assumptions!M11 -> 6 | J7: =SUM(E7:I7) -> 262 | K7: 262 | L7: =Assumptions!O47 -> 22 | M7: =Assumptions!P47 -> 40 | N7: =Assumptions!V11 -> 9.0675 | O7: =Assumptions!S71 ->  | Q7: =Assumptions!AB11 -> 43.992 | R7: =Assumptions!R71 ->  | S7: =Assumptions!Q71 -> 12 | T7: =SUM(Q7:S7) ->  | W7: =Q7*0.2+R7*0.8 ->  | X7: =Q7*0.8+R7*0.2+S7 ->  | Y7: =(X7*1000)/48 ->  | Z7: =ROUNDUP(Y7+(Y7*0.4),-1) ->  | AA7: 2 | AB7: Storage 1000Ah | AC7: 2000 | AD7: =AC7-Z7 ->  | AE7: 96 | AF7: 15280.4 | AG7: =CEILING(P7,5) ->  | AH7: 2 | AI7: Module 15kWp | AJ7: 30 | AK7: 35 | AL7: 41935.06667 | AM7: =((Q7+R7)/(J7+L7))*1000 ->  | AN7: =(AJ7/(J7+L7))*1000 -> 105.6338028 | AO7: =(AK7/(J7+L7))*1000 -> 123.2394366 | AP7: =(AK7/(J7+L7+M7))*1000 -> 108.0246914 | AQ7: Genset 33kVA | AR7: 9378
B8: 4 | C8: 102 | D8: Mukhwayo | E8: =Assumptions!I14 -> 56 | F8: =Assumptions!J14 -> 55 | G8: =Assumptions!K14 -> 25 | H8: =Assumptions!L14 -> 17 | I8: =Assumptions!M14 -> 8 | J8: =SUM(E8:I9) -> 161 | K8: 161 | L8: =Assumptions!O50 -> 15 | M8: =Assumptions!P50 -> 40 | N8: =Assumptions!V14 -> 6.1555 | O8: =Assumptions!S74 ->  | Q8: =Assumptions!AB14 -> 30.3095 | R8: =Assumptions!R74 ->  | S8: =Assumptions!Q74 -> 12 | T8: =SUM(Q8:S9) ->  | W8: =Q8*0.2+R8*0.8 ->  | X8: =Q8*0.8+R8*0.2+S8 ->  | Y8: =(X8*1000)/48 ->  | Z8: =ROUNDUP(Y8+(Y8*0.4),-1) ->  | AA8: 1 | AB8: Storage 1500Ah | AC8: 1500 | AE8: 72 | AF8: 11150.93333 | AG8: =CEILING(P8,5) ->  | AH8: 1 | AI8: Module 15kWp | AJ8: 15 | AK8: 18 | AL8: 20967.53333 | AM8: =((Q8+R8)/(J8+L8))*1000 ->  | AN8: =((AJ8+AJ9)/(J8+L8+M8))*1000 -> 115.7407407 | AO8: =((AK8+AK9)/(J8+L8))*1000 -> 170.4545455 | AP8: =((AK8+AK9)/(J8+L8+M8))*1000 -> 138.8888889 | AQ8: Genset 33kVA | AR8: 9378
K9: 0 | U9: 0 | AH9: 1 | AI9: Module 10kWp | AJ9: 10 | AK9: 12 | AL9: 17522.76923
B10: 5 | C10: 78 | D10: Mufumu | E10: =Assumptions!I15 -> 53 | F10: =Assumptions!J15 -> 52 | G10: =Assumptions!K15 -> 52 | H10: =Assumptions!L15 -> 41 | I10: =Assumptions!M15 -> 11 | J10: =SUM(E10:I10) -> 209 | K10: 209 | L10: =Assumptions!O51 -> 10 | M10: =Assumptions!P51 -> 40 | N10: =Assumptions!V15 -> 10.2115 | O10: =Assumptions!S75 ->  | Q10: =Assumptions!AB15 -> 51.7595 | R10: =Assumptions!R75 ->  | S10: =Assumptions!Q75 -> 12 | T10: =SUM(Q10:S10) ->  | W10: =Q10*0.2+R10*0.8 ->  | X10: =Q10*0.8+R10*0.2+S10 ->  | Y10: =(X10*1000)/48 ->  | Z10: =ROUNDUP(Y10+(Y10*0.4),-1) ->  | AA10: 2 | AB10: Storage 1000Ah | AC10: 2000 | AE10: 96 | AF10: 15280.4 | AG10: =CEILING(P10,5) ->  | AH10: 2 | AI10: Module 10kWp | AJ10: 20 | AK10: 24 | AL10: 35045.53846 | AM10: =((Q10+R10)/(J10+L10))*1000 ->  | AN10: =(AJ10/(J10+L10))*1000 -> 91.32420091 | AO10: =(AK10/(J10+L10))*1000 -> 109.5890411 | AP10: =(AK10/(J10+L10+M10))*1000 -> 92.66409266 | AQ10: Genset 33kVA | AR10: 9378
B11: 6 | C11: 57 | D11: Makhurisi | E11: =Assumptions!I16 -> 20 | F11: =Assumptions!J16 -> 19 | G11: =Assumptions!K16 -> 26 | H11: =Assumptions!L16 -> 21 | I11: =Assumptions!M16 -> 5 | J11: 91 | K11: 91 | L11: =Assumptions!O52 -> 8 | M11: =Assumptions!P52 -> 20 | N11: =Assumptions!V16 -> 4.836 | O11: =Assumptions!S76 ->  | Q11: =Assumptions!AB16 -> 24.7195 | R11: =Assumptions!R76 ->  | S11: =Assumptions!Q76 -> 6 | T11: =SUM(Q11:S11) ->  | AA11: 1 | AB11: Storage 1000Ah | AC11: 1000 | AE11: 48 | AF11: 7640.2 | AH11: 1 | AI11: Module 15kWp | AJ11: 15 | AK11: 18 | AL11: 20967.53333 | AN11: 151.5151515 | AO11: 181.8181818 | AP11: 151.2605042 | AQ11: Genset 22kVA | AR11: 8875
B12: 7 | C12: 61 + 95 + 96 | D12: Mumbaka + Mukhondo B + Mugonga | E12: =Assumptions!I17 -> 55 | F12: =Assumptions!J17 -> 54 | G12: =Assumptions!K17 -> 32 | H12: =Assumptions!L17 -> 23 | I12: =Assumptions!M17 -> 9 | J12: 173 | K12: 173 | L12: =Assumptions!O53 -> 12 | M12: =Assumptions!P53 -> 40 | N12: =Assumptions!V17 -> 7.2215 | O12: =Assumptions!S77 ->  | Q12: =Assumptions!AB17 -> 35.9645 | R12: =Assumptions!R77 ->  | S12: =Assumptions!Q77 -> 12 | AA12: 1 | AB12: Storage 1500Ah | AC12: 1500 | AE12: 72 | AF12: 11150.93333 | AH12: 2 | AI12: Module 10kWp | AJ12: 20 | AK12: 24 | AL12: 35045.53846 | AN12: 108.1081081 | AO12: 129.7297297 | AP12: 106.6666667 | AQ12: Genset 33kVA | AR12: 9378
B13: 8 | C13: 99 | D13: Namagumba | E13: =Assumptions!I21 -> 30 | F13: =Assumptions!J21 -> 30 | G13: =Assumptions!K21 -> 23 | H13: =Assumptions!L21 -> 15 | I13: =Assumptions!M21 -> 7 | J13: 105 | K13: 105 | L13: =Assumptions!O57 -> 10 | M13: =Assumptions!P57 -> 20 | N13: =Assumptions!V21 -> 4.849 | O13: =Assumptions!S81 ->  | Q13: =Assumptions!AB21 -> 24.4725 | R13: =Assumptions!R81 ->  | S13: =Assumptions!Q81 -> 6 | AA13: 1 | AB13: Storage 1000Ah | AC13: 1000 | AE13: 48 | AF13: 7640.2 | AH13: 1 | AI13: Module 15kWp | AJ13: 15 | AK13: 18 | AL13: 20967.53333 | AN13: 130.4347826 | AO13: 156.5217391 | AP13: 133.3333333 | AQ13: Genset 22kVA | AR13: 8875
B14: 9 | C14: 132 | D14: Akadetewai | E14: =Assumptions!I22 -> 40 | F14: =Assumptions!J22 -> 39 | G14: =Assumptions!K22 -> 19 | H14: =Assumptions!L22 -> 13 | I14: =Assumptions!M22 -> 7 | J14: 118 | K14: 118 | L14: =Assumptions!O58 -> 14 | M14: =Assumptions!P58 -> 20 | N14: =Assumptions!V22 -> 4.7775 | O14: =Assumptions!S82 ->  | Q14: =Assumptions!AB22 -> 23.6795 | R14: =Assumptions!R82 ->  | S14: =Assumptions!Q82 -> 6 | AA14: 1 | AB14: Storage 1000Ah | AC14: 1000 | AE14: 48 | AF14: 7640.2 | AH14: 1 | AI14: Module 15kWp | AJ14: 15 | AK14: 18 | AL14: 20967.53333 | AN14: 113.6363636 | AO14: 136.3636364 | AP14: 118.4210526 | AQ14: Genset 22kVA | AR14: 8875
B15: 10 | C15: 145 | D15: Syamakanga / Imprezza | E15: =Assumptions!I23 -> 25 | F15: =Assumptions!J23 -> 24 | G15: =Assumptions!K23 -> 26 | H15: =Assumptions!L23 -> 22 | I15: =Assumptions!M23 -> 3 | J15: 100 | K15: 100 | L15: =Assumptions!O59 -> 6 | M15: =Assumptions!P59 -> 20 | N15: =Assumptions!V23 -> 4.706 | O15: =Assumptions!S83 ->  | Q15: =Assumptions!AB23 -> 23.777 | R15: =Assumptions!R83 ->  | S15: =Assumptions!Q83 -> 6 | AA15: 1 | AB15: Storage 1000Ah | AC15: 1000 | AE15: 48 | AF15: 7640.2 | AH15: 1 | AI15: Module 15kWp | AJ15: 15 | AK15: 18 | AL15: 20967.53333 | AN15: 141.509434 | AO15: 169.8113208 | AP15: 142.8571429 | AQ15: Genset 22kVA | AR15: 8875
D16: Total Phase 4 | E16: =SUM(E5:E15) -> 520 | F16: 512 | G16: 327 | H16: 248 | I16: 77 | J16: 1684 | K16: =SUM(K5:K15) -> 1684 | L16: 155 | M16: 320 | N16: 70.8175 | Q16: 352.976 | S16: 96 | Y16: =SUM(Y5:Y15) ->  | Z16: =SUM(Z5:Z15) ->  | AA16: =SUM(AA5:AA15) -> 13 | AC16: =SUM(AC5:AC15) -> 14500 | AD16: =SUM(AD5:AD15) ->  | AE16: =SUM(AE5:AE15) -> 696 | AF16: =SUM(AF5:AF15) -> 109854.8 | AG16: =SUM(AG5:AG15) ->  | AJ16: =SUM(AJ5:AJ15) -> 215 | AK16: =SUM(AK5:AK15) -> 255 | AL16: =SUM(AL5:AL15) -> 318256.7128 | AM16: =AVERAGE(AM5:AM15) ->  | AN16: =AVERAGE(AN5:AN15) -> 119.8170876 | AO16: =AVERAGE(AO5:AO15) -> 145.7840638 | AP16: =AVERAGE(AP5:AP15) -> 123.2432011 | AR16: =SUM(AR5:AR15) -> 91768
AD17: Effective cost per kWh | AF17: =AF16/SUM(AE16) -> 157.8373563 | AJ17: Effective cost per kWp | AL17: =AL16/SUM(AJ16) -> 1480.263781
AD18: Excess Capacity @ 60% DoD | AF18: =AC16/Z16-1 ->  | AJ18: Excess Capacity | AL18: =AJ16/P16-1 -> 
AF20: =AF5/AE5 -> 159.1708333 | AG20: kWh | AL20: =AL5/22 -> 1906.139394 | AM20: kWp

Sheet Assumptions (hidden)
D2: Site Name | E2: HH Assumptions
E3: HH Data (Qty) | Q3: Power Peak (kWp) with | T3: =Info!C6 -> 0.65 | U3: of Diversity factor | W3: kWh/day with | Y3: =Info!C6 -> 0.65 | Z3: of Diversity factor
C4: Site No. | E4: HH Type | I4: HH per type of Tariff | N4: T3 | O4: rest T5 | P4: Total HH | Q4: T1 | R4: T2 | S4: T3 | T4: T4 | U4: T5 | V4: Total [kWp] | W4: T1 | X4: T2 | Y4: T3 | Z4: T4 | AA4: T5 | AB4: Daily Cons. [kWh]
E5: Low Income | F5: Middle Income | G5: High Income | H5: % | I5: T1 | J5: T2 | K5: T3 | L5: T4 | M5: T5 | Q5: 0.02 | R5: 0.03 | S5: 0.07 | T5: 0.15 | U5: 0.3 | W5: 0.08 | X5: 0.12 | Y5: 0.4 | Z5: 0.75 | AA5: 1.6
B6: 1 | C6: 45 + 59 + 60 | D6: Mudoriko + Bwiri A + Bwiri B | E6: =ROUND(SUM(E7:E9)*$D$26,0) -> 180 | F6: =ROUND(SUM(F7:F9)*$D$26,0) -> 72 | G6: =ROUND(SUM(G7:G9)*$D$26,0) -> 30 | I6: =ROUNDUP(E6*0.5,0) -> 90 | J6: =E6-I6 -> 90 | K6: =N6+O6 -> 51 | L6: =F6-N6 -> 36 | M6: =ROUNDUP(G6*0.5,0) -> 15 | N6: =ROUNDUP(F6*0.5,0) -> 36 | O6: =G6-M6 -> 15 | P6: =SUM(I6:M6) -> 282 | Q6: =I6*$Q$5*$T$3 -> 1.17 | R6: =J6*$R$5*$T$3 -> 1.755 | S6: =K6*$S$5*$T$3 -> 2.3205 | T6: =L6*$T$5*$T$3 -> 3.51 | U6: =M6*$U$5*$T$3 -> 2.925 | V6: =SUM(Q6:U6) -> 11.6805 | W6: =I6*$W$5*$Y$3 -> 4.68 | X6: =J6*$X$5*$Y$3 -> 7.02 | Y6: =K6*$Y$5*$Y$3 -> 13.26 | Z6: =L6*$Z$5*$Y$3 -> 17.55 | AA6: =M6*$AA$5*$Y$3 -> 15.6 | AB6: =SUM(W6:AA6) -> 58.11
C7: 45 | D7: Mudoriko | E7: ='-'!G6 -> 50 | F7: ='-'!H6 -> 22 | G7: ='-'!I6 -> 9 | H7: =ROUND(SUM(E7:G7)/(SUM(E7:G9)),1) -> 0.3 | I7: =I6*$H$7 -> 27 | J7: =J6*$H$7 -> 27 | K7: 15.3 | L7: 10.8 | M7: 4.5 | P7: =SUM(I7:M7) -> 84.6 | Q7: 0.351 | R7: 0.5265 | S7: 0.69615 | T7: 1.053 | U7: 0.8775 | V7: =SUM(Q7:U7) -> 3.50415 | W7: 1.404 | X7: 2.106 | Y7: 3.978 | Z7: 5.265 | AA7: 4.68 | AB7: =SUM(W7:AA7) -> 17.433
C8: 59 | D8: Bwiri A | E8: ='-'!G9 -> 84 | F8: ='-'!H9 -> 31 | G8: ='-'!I9 -> 11 | H8: =ROUND(SUM(E8:G8)/(SUM(E7:G9)),1) -> 0.4 | I8: =I6*$H$8 -> 36 | J8: =J6*$H$8 -> 36 | K8: 20.4 | L8: 14.4 | M8: 6 | P8: =SUM(I8:M8) -> 112.8 | Q8: 0.468 | R8: 0.702 | S8: 0.9282 | T8: 1.404 | U8: 1.17 | V8: 4.6722 | W8: 1.872 | X8: 2.808 | Y8: 5.304 | Z8: 7.02 | AA8: 6.24 | AB8: 23.244
C9: 60 | D9: Bwiri B | E9: ='-'!G10 -> 54 | F9: ='-'!H10 -> 22 | G9: ='-'!I10 -> 11 | H9: =ROUND(SUM(E9:G9)/(SUM(E7:G9)),1) -> 0.3 | I9: =I6*$H$9 -> 27 | J9: =J6*$H$9 -> 27 | K9: 15.3 | L9: 10.8 | M9: 4.5 | P9: 84.6 | Q9: 0.351 | R9: 0.5265 | S9: 0.69615 | T9: 1.053 | U9: 0.8775 | V9: 3.50415 | W9: 1.404 | X9: 2.106 | Y9: 3.978 | Z9: 5.265 | AA9: 4.68 | AB9: 17.433
B10: 2 | C10: 133 | D10: Buyende | E10: =ROUND('-'!G24*$D$26,0) -> 115 | F10: =ROUND('-'!H24*$D$26,0) -> 57 | G10: =ROUND('-'!I24*$D$26,0) -> 11 | I10: =ROUNDUP(E10*0.5,0) -> 58 | J10: =E10-I10 -> 57 | K10: =N10+O10 -> 34 | L10: =F10-N10 -> 28 | M10: =ROUNDUP(G10*0.5,0) -> 6 | N10: =ROUNDUP(F10*0.5,0) -> 29 | O10: =G10-M10 -> 5 | P10: =SUM(I10:M10) -> 183 | Q10: 0.754 | R10: 1.1115 | S10: 1.547 | T10: 2.73 | U10: 1.17 | V10: 7.3125 | W10: 3.016 | X10: 4.446 | Y10: 8.84 | Z10: 13.65 | AA10: 6.24 | AB10: 36.192
B11: 3 | C11: 20 + 62 | D11: Dirako + Rukada | E11: =ROUND(SUM(E12:E13)*$D$26,0) -> 185 | F11: =ROUND(SUM(F12:F13)*$D$26,0) -> 65 | G11: =ROUND(SUM(G12:G13)*$D$26,0) -> 12 | I11: =ROUNDUP(E11*0.5,0) -> 93 | J11: =E11-I11 -> 92 | K11: 39 | L11: =F11-N11 -> 32 | M11: =ROUNDUP(G11*0.5,0) -> 6 | N11: =ROUNDUP(F11*0.5,0) -> 33 | O11: =G11-M11 -> 6 | P11: =SUM(I11:M11) -> 262 | Q11: 1.209 | R11: 1.794 | S11: 1.7745 | T11: 3.12 | U11: 1.17 | V11: =SUM(Q11:U11) -> 9.0675 | W11: 4.836 | X11: 7.176 | Y11: 10.14 | Z11: 15.6 | AA11: 6.24 | AB11: =SUM(W11:AA11) -> 43.992
C12: 20 | D12: Dirako | E12: ='-'!G5 -> 114 | F12: ='-'!H5 -> 41 | G12: ='-'!I5 -> 9 | H12: =ROUND(SUM(E12:G12)/(SUM(E12:G13)),1) -> 0.6 | I12: =I11*$H$12 -> 55.8 | J12: =J11*$H$12 -> 55.2 | K12: 23.4 | L12: 19.2 | M12: 3.6 | P12: =SUM(I12:M12) -> 157.2 | Q12: =I12*$Q$5*$T$3 -> 0.7254 | R12: =J12*$R$5*$T$3 -> 1.0764 | S12: =K12*$S$5*$T$3 -> 1.0647 | T12: =L12*$T$5*$T$3 -> 1.872 | U12: =M12*$U$5*$T$3 -> 0.702 | V12: =SUM(Q12:U12) -> 5.4405 | W12: =I12*$W$5*$Y$3 -> 2.9016 | X12: =J12*$X$5*$Y$3 -> 4.3056 | Y12: =K12*$Y$5*$Y$3 -> 6.084 | Z12: =L12*$Z$5*$Y$3 -> 9.36 | AA12: =M12*$AA$5*$Y$3 -> 3.744 | AB12: =SUM(W12:AA12) -> 26.3952
C13: 62 | D13: Rukada | E13: ='-'!G12 -> 79 | F13: ='-'!H12 -> 27 | G13: ='-'!I12 -> 4 | H13: =ROUND(SUM(E13:G13)/(SUM(E12:G13)),1) -> 0.4 | I13: =I11*$H$13 -> 37.2 | J13: =J11*$H$13 -> 36.8 | K13: 15.6 | L13: 12.8 | M13: 2.4 | P13: =SUM(I13:M13) -> 104.8 | Q13: 0.4836 | R13: 0.7176 | S13: 0.7098 | T13: 1.248 | U13: 0.468 | V13: 3.627 | W13: 1.9344 | X13: 2.8704 | Y13: 4.056 | Z13: 6.24 | AA13: 2.496 | AB13: 17.5968
B14: 4 | C14: 102 | D14: Mukhwayo | E14: =ROUND('-'!G21*$D$26,0) -> 111 | F14: =ROUND('-'!H21*$D$26,0) -> 35 | G14: =ROUND('-'!I21*$D$26,0) -> 15 | I14: =ROUNDUP(E14*0.5,0) -> 56 | J14: =E14-I14 -> 55 | K14: 25 | L14: =F14-N14 -> 17 | M14: =ROUNDUP(G14*0.5,0) -> 8 | N14: =ROUNDUP(F14*0.5,0) -> 18 | O14: =G14-M14 -> 7 | P14: =SUM(I14:M14) -> 161 | Q14: =I14*$Q$5*$T$3 -> 0.728 | R14: =J14*$R$5*$T$3 -> 1.0725 | S14: =K14*$S$5*$T$3 -> 1.1375 | T14: =L14*$T$5*$T$3 -> 1.6575 | U14: =M14*$U$5*$T$3 -> 1.56 | V14: 6.1555 | W14: =I14*$W$5*$Y$3 -> 2.912 | X14: =J14*$X$5*$Y$3 -> 4.29 | Y14: =K14*$Y$5*$Y$3 -> 6.5 | Z14: =L14*$Z$5*$Y$3 -> 8.2875 | AA14: =M14*$AA$5*$Y$3 -> 8.32 | AB14: 30.3095
B15: 5 | C15: 78 | D15: Mufumu | E15: =ROUND('-'!G16*$D$26,0) -> 105 | F15: =ROUND('-'!H16*$D$26,0) -> 82 | G15: =ROUND('-'!I16*$D$26,0) -> 22 | I15: =ROUNDUP(E15*0.5,0) -> 53 | J15: =E15-I15 -> 52 | K15: 52 | L15: =F15-N15 -> 41 | M15: =ROUNDUP(G15*0.5,0) -> 11 | N15: =ROUNDUP(F15*0.5,0) -> 41 | O15: =G15-M15 -> 11 | P15: =SUM(I15:M15) -> 209 | Q15: =I15*$Q$5*$T$3 -> 0.689 | R15: =J15*$R$5*$T$3 -> 1.014 | S15: =K15*$S$5*$T$3 -> 2.366 | T15: =L15*$T$5*$T$3 -> 3.9975 | U15: =M15*$U$5*$T$3 -> 2.145 | V15: 10.2115 | W15: =I15*$W$5*$Y$3 -> 2.756 | X15: =J15*$X$5*$Y$3 -> 4.056 | Y15: =K15*$Y$5*$Y$3 -> 13.52 | Z15: =L15*$Z$5*$Y$3 -> 19.9875 | AA15: =M15*$AA$5*$Y$3 -> 11.44 | AB15: 51.7595
B16: 6 | C16: 57 | D16: Makhurisi | E16: =ROUND('-'!G7*$D$26,0) -> 39 | F16: =ROUND('-'!H7*$D$26,0) -> 43 | G16: =ROUND('-'!I7*$D$26,0) -> 9 | I16: =ROUNDUP(E16*0.5,0) -> 20 | J16: =E16-I16 -> 19 | K16: =N16+O16 -> 26 | L16: =F16-N16 -> 21 | M16: =ROUNDUP(G16*0.5,0) -> 5 | N16: =ROUNDUP(F16*0.5,0) -> 22 | O16: =G16-M16 -> 4 | P16: =SUM(I16:M16) -> 91 | Q16: =I16*$Q$5*$T$3 -> 0.26 | R16: =J16*$R$5*$T$3 -> 0.3705 | S16: =K16*$S$5*$T$3 -> 1.183 | T16: =L16*$T$5*$T$3 -> 2.0475 | U16: =M16*$U$5*$T$3 -> 0.975 | V16: 4.836 | W16: =I16*$W$5*$Y$3 -> 1.04 | X16: =J16*$X$5*$Y$3 -> 1.482 | Y16: =K16*$Y$5*$Y$3 -> 6.76 | Z16: =L16*$Z$5*$Y$3 -> 10.2375 | AA16: =M16*$AA$5*$Y$3 -> 5.2 | AB16: 24.7195
B17: 7 | C17: 61 + 95 + 96 | D17: Mumbaka + Mukhondo B + Mugonga | E17: =ROUND(SUM(E18:E20)*$D$26,0) -> 109 | F17: =ROUND(SUM(F18:F20)*$D$26,0) -> 47 | G17: =ROUND(SUM(G18:G20)*$D$26,0) -> 17 | I17: =ROUNDUP(E17*0.5,0) -> 55 | J17: =E17-I17 -> 54 | K17: =N17+O17 -> 32 | L17: =F17-N17 -> 23 | M17: =ROUNDUP(G17*0.5,0) -> 9 | N17: =ROUNDUP(F17*0.5,0) -> 24 | O17: =G17-M17 -> 8 | P17: =SUM(I17:M17) -> 173 | Q17: =I17*$Q$5*$T$3 -> 0.715 | R17: =J17*$R$5*$T$3 -> 1.053 | S17: =K17*$S$5*$T$3 -> 1.456 | T17: =L17*$T$5*$T$3 -> 2.2425 | U17: =M17*$U$5*$T$3 -> 1.755 | V17: =SUM(Q17:U17) -> 7.2215 | W17: =I17*$W$5*$Y$3 -> 2.86 | X17: =J17*$X$5*$Y$3 -> 4.212 | Y17: =K17*$Y$5*$Y$3 -> 8.32 | Z17: =L17*$Z$5*$Y$3 -> 11.2125 | AA17: =M17*$AA$5*$Y$3 -> 9.36 | AB17: =SUM(W17:AA17) -> 35.9645
C18: 61 | D18: Mumbaka | E18: ='-'!G11 -> 35 | F18: ='-'!H11 -> 13 | G18: ='-'!I11 -> 11 | H18: =ROUND(SUM(E18:G18)/(SUM(E18:G20)),1) -> 0.3 | I18: =I17*$H$18 -> 16.5 | J18: =J17*$H$18 -> 16.2 | K18: 9.6 | L18: 6.9 | M18: 2.7 | P18: =SUM(I18:M18) -> 51.9 | Q18: =I18*$Q$5*$T$3 -> 0.2145 | R18: =J18*$R$5*$T$3 -> 0.3159 | S18: =K18*$S$5*$T$3 -> 0.4368 | T18: =L18*$T$5*$T$3 -> 0.67275 | U18: =M18*$U$5*$T$3 -> 0.5265 | V18: =SUM(Q18:U18) -> 2.16645 | W18: =I18*$W$5*$Y$3 -> 0.858 | X18: =J18*$X$5*$Y$3 -> 1.2636 | Y18: =K18*$Y$5*$Y$3 -> 2.496 | Z18: =L18*$Z$5*$Y$3 -> 3.36375 | AA18: =M18*$AA$5*$Y$3 -> 2.808 | AB18: =SUM(W18:AA18) -> 10.78935
C19: 95 | D19: Mukhondo B | E19: ='-'!G18 -> 38 | F19: ='-'!H18 -> 20 | G19: ='-'!I18 -> 6 | H19: =ROUND(SUM(E19:G19)/(SUM(E18:G20)),1) -> 0.4 | I19: =I17*$H$19 -> 22 | J19: =J17*$H$19 -> 21.6 | K19: 12.8 | L19: 9.2 | M19: 3.6 | P19: =SUM(I19:M19) -> 69.2 | Q19: 0.286 | R19: 0.4212 | S19: 0.5824 | T19: 0.897 | U19: 0.702 | V19: 2.8886 | W19: 1.144 | X19: 1.6848 | Y19: 3.328 | Z19: 4.485 | AA19: 3.744 | AB19: 14.3858
C20: 96 | D20: Mugonga | E20: ='-'!G19 -> 41 | F20: ='-'!H19 -> 16 | G20: ='-'!I19 -> 1 | H20: =ROUND(SUM(E20:G20)/(SUM(E18:G20)),1) -> 0.3 | I20: =I17*$H$20 -> 16.5 | J20: =J17*$H$20 -> 16.2 | K20: 9.6 | L20: 6.9 | M20: 2.7 | P20: 51.9 | Q20: 0.2145 | R20: 0.3159 | S20: 0.4368 | T20: 0.67275 | U20: 0.5265 | V20: 2.16645 | W20: 0.858 | X20: 1.2636 | Y20: 2.496 | Z20: 3.36375 | AA20: 2.808 | AB20: 10.78935
B21: 8 | C21: 99 | D21: Namagumba | E21: =ROUND('-'!G20*$D$26,0) -> 60 | F21: =ROUND('-'!H20*$D$26,0) -> 31 | G21: =ROUND('-'!I20*$D$26,0) -> 14 | I21: =ROUNDUP(E21*0.5,0) -> 30 | J21: =E21-I21 -> 30 | K21: 23 | L21: =F21-N21 -> 15 | M21: =ROUNDUP(G21*0.5,0) -> 7 | N21: =ROUNDUP(F21*0.5,0) -> 16 | O21: =G21-M21 -> 7 | P21: =SUM(I21:M21) -> 105 | Q21: =I21*$Q$5*$T$3 -> 0.39 | R21: =J21*$R$5*$T$3 -> 0.585 | S21: =K21*$S$5*$T$3 -> 1.0465 | T21: =L21*$T$5*$T$3 -> 1.4625 | U21: =M21*$U$5*$T$3 -> 1.365 | V21: 4.849 | W21: =I21*$W$5*$Y$3 -> 1.56 | X21: =J21*$X$5*$Y$3 -> 2.34 | Y21: =K21*$Y$5*$Y$3 -> 5.98 | Z21: =L21*$Z$5*$Y$3 -> 7.3125 | AA21: =M21*$AA$5*$Y$3 -> 7.28 | AB21: 24.4725
B22: 9 | C22: 132 | D22: Akadetewai | E22: =ROUND('-'!G23*$D$26,0) -> 79 | F22: =ROUND('-'!H23*$D$26,0) -> 26 | G22: =ROUND('-'!I23*$D$26,0) -> 13 | I22: =ROUNDUP(E22*0.5,0) -> 40 | J22: =E22-I22 -> 39 | K22: 19 | L22: =F22-N22 -> 13 | M22: =ROUNDUP(G22*0.5,0) -> 7 | N22: =ROUNDUP(F22*0.5,0) -> 13 | O22: =G22-M22 -> 6 | P22: =SUM(I22:M22) -> 118 | Q22: =I22*$Q$5*$T$3 -> 0.52 | R22: =J22*$R$5*$T$3 -> 0.7605 | S22: =K22*$S$5*$T$3 -> 0.8645 | T22: =L22*$T$5*$T$3 -> 1.2675 | U22: =M22*$U$5*$T$3 -> 1.365 | V22: 4.7775 | W22: =I22*$W$5*$Y$3 -> 2.08 | X22: =J22*$X$5*$Y$3 -> 3.042 | Y22: =K22*$Y$5*$Y$3 -> 4.94 | Z22: =L22*$Z$5*$Y$3 -> 6.3375 | AA22: =M22*$AA$5*$Y$3 -> 7.28 | AB22: 23.6795
B23: 10 | C23: 145 | D23: Syamakanga / Imprezza | E23: =ROUND('-'!G26*$D$26,0) -> 49 | F23: =ROUND('-'!H26*$D$26,0) -> 45 | G23: =ROUND('-'!I26*$D$26,0) -> 6 | I23: =ROUNDUP(E23*0.5,0) -> 25 | J23: =E23-I23 -> 24 | K23: 26 | L23: =F23-N23 -> 22 | M23: =ROUNDUP(G23*0.5,0) -> 3 | N23: =ROUNDUP(F23*0.5,0) -> 23 | O23: =G23-M23 -> 3 | P23: =SUM(I23:M23) -> 100 | Q23: =I23*$Q$5*$T$3 -> 0.325 | R23: =J23*$R$5*$T$3 -> 0.468 | S23: =K23*$S$5*$T$3 -> 1.183 | T23: =L23*$T$5*$T$3 -> 2.145 | U23: =M23*$U$5*$T$3 -> 0.585 | V23: 4.706 | W23: =I23*$W$5*$Y$3 -> 1.3 | X23: =J23*$X$5*$Y$3 -> 1.872 | Y23: =K23*$Y$5*$Y$3 -> 6.76 | Z23: =L23*$Z$5*$Y$3 -> 10.725 | AA23: =M23*$AA$5*$Y$3 -> 3.12 | AB23: 23.777
D24: Total Phase 4 | E24: =SUM(E6,E10:E11,E14:E17,E21:E23) -> 1032 | F24: 503 | G24: 149 | H24: 0 | I24: =SUM(I6,I10:I11,I14:I17,I21:I23) -> 520 | J24: =SUM(J6,J10:J11,J14:J17,J21:J23) -> 512 | K24: 327 | L24: 248 | M24: 77 | N24: 255 | O24: 72 | P24: =SUM(P6,P10:P11,P14:P17,P21:P23) -> 1684 | V24: =SUM(V6,V10:V11,V14:V17,V21:V23) -> 70.8175 | AB24: =SUM(AB6,AB10:AB11,AB14:AB17,AB21:AB23) -> 352.976
U25: kWh/Month | W25: =(W5*30) -> 2.4 | X25: =(X5*30) -> 3.6 | Y25: 12 | Z25: 22.5 | AA25: 48
C26: Eletrification rate (HH%) | D26: =Info!C4 -> 0.96 | W26: =W5*30 -> 2.4 | X26: =X5*30 -> 3.6 | Y26: =Y5*30 -> 12 | Z26: =Z5*30 -> 22.5 | AA26: =AA5*30 -> 48
W27: =W6/$AB$6 -> 0.08053691275 | X27: =X6/$AB$6 -> 0.1208053691 | Y27: 0.2281879195 | Z27: 0.3020134228 | AA27: 0.2684563758
W28: =W7/$AB$6 -> 0.02416107383 | X28: =X7/$AB$6 -> 0.03624161074 | Y28: 0.06845637584 | Z28: 0.09060402685 | AA28: 0.08053691275
W29: 0.0322147651 | X29: =X8/$AB$6 -> 0.04832214765 | Y29: 0.09127516779 | Z29: 0.1208053691 | AA29: 0.1073825503
W30: 0.02416107383 | X30: =X9/$AB$6 -> 0.03624161074 | Y30: 0.06845637584 | Z30: 0.09060402685 | AA30: 0.08053691275
W31: 0.051901566 | X31: =X10/$AB$6 -> 0.07651006711 | Y31: 0.1521252796 | Z31: 0.2348993289 | AA31: 0.1073825503
W32: 0.08322147651 | X32: =X11/$AB$6 -> 0.1234899329 | Y32: 0.1744966443 | Z32: 0.2684563758 | AA32: 0.1073825503
W33: 0.04993288591 | X33: =X12/$AB$6 -> 0.07409395973 | Y33: 0.1046979866 | Z33: 0.1610738255 | AA33: 0.0644295302
W34: 0.0332885906 | X34: =X13/$AB$6 -> 0.04939597315 | Y34: 0.06979865772 | Z34: 0.1073825503 | AA34: 0.04295302013
W35: 0.05011185682 | X35: =X14/$AB$6 -> 0.07382550336 | Y35: 0.1118568233 | Z35: 0.1426174497 | AA35: 0.1431767338
D38: Site Name | E38: Biz Assumptions - quantities | Q38: Biz Assumptions - Energy Demand
E39: Biz (Qty) | O39: Total | P39: Public Lighting | Q39: kWp [@ | T39: =Info!C7 -> 0.8 | U39: Diversity factor] | Z39: Public Lighting
C40: Site No. | E40: Shop | F40: School | G40: Big School | H40: Clinic | I40: Public services | J40: Low PEU | K40: HighPEU | Q40: Shop | R40: School | S40: Big School | T40: Clinic | U40: Public services | V40: Low PEU | W40: Wel. | X40: Carp. | Y40: Posho.
K41: Wel. | L41: Carp. | M41: Posho. | N41: Total | Q41: 0.03 | R41: 0.2 | S41: =8*0.25 -> 2 | T41: 0.15 | U41: 0.5 | V41: 0.3 | W41: 1.2 | X41: 1.5 | Y41: =(#REF!*#REF!*#REF!)/M42 ->  | Z41: 0.03
B42: 1 | C42: 45 + 59 + 60 | D42: Mudoriko + Bwiri A + Bwiri B | E42: 6 | F42: 0 | G42: 0 | H42: 1 | I42: 16 | J42: 9 | K42: 0 | L42: 1 | M42: 2 | N42: =SUM(K42:M42) -> 3 | O42: =SUM(E42:M42) -> 35 | P42: 40 | Q42: =E42*Q$41*$T$39 -> 0.144 | R42: =F42*R$41*$T$39 -> 0 | S42: 0 | T42: =H42*T$41*$T$39 -> 0.12 | U42: 6.4 | V42: 2.16 | W42: 0 | X42: 1.2 | Z42: =P42*Z$41 -> 1.2
C43: 45 | D43: Mudoriko
C44: 59 | D44: Bwiri A
C45: 60 | D45: Bwiri B
B46: 2 | C46: 133 | D46: Buyende | E46: 7 | F46: 0 | G46: 0 | H46: 0 | I46: 9 | J46: 3 | K46: 1 | L46: 1 | M46: 2 | N46: =SUM(K46:M46) -> 4 | O46: =SUM(E46:M46) -> 23 | P46: 40 | Q46: =E46*Q$41*$T$39 -> 0.168 | R46: =F46*R$41*$T$39 -> 0 | S46: 0 | T46: =H46*T$41*$T$39 -> 0 | U46: 3.6 | V46: 0.72 | W46: 0.96 | X46: 1.2 | Z46: =P46*Z$41 -> 1.2
B47: 3 | C47: 20 + 62 | D47: Dirako + Rukada | E47: 4 | F47: 2 | G47: 0 | H47: 0 | I47: 7 | J47: 6 | K47: 0 | L47: 1 | M47: 2 | N47: 3 | O47: =SUM(E47:M47) -> 22 | P47: 40 | Q47: =E47*Q$41*$T$39 -> 0.096 | R47: =F47*R$41*$T$39 -> 0.32 | S47: 0 | T47: 0 | U47: 2.8 | V47: 1.44 | W47: 0 | X47: 1.2 | Z47: =P47*Z$41 -> 1.2
C48: 20 | D48: Dirako
C49: 62 | D49: Rukada
B50: 4 | C50: 102 | D50: Mukhwayo | E50: 2 | F50: 0 | G50: 0 | H50: 0 | I50: 7 | J50: 3 | K50: 0 | L50: 1 | M50: 2 | N50: 3 | O50: =SUM(E50:M50) -> 15 | P50: 40 | Q50: =E50*Q$41*$T$39 -> 0.048 | R50: 0 | S50: 0 | T50: =H50*T$41*$T$39 -> 0 | U50: 2.8 | V50: 0.72 | W50: 0 | X50: 1.2 | Z50: =P50*Z$41 -> 1.2
B51: 5 | C51: 78 | D51: Mufumu | E51: 1 | F51: 2 | G51: 0 | H51: 1 | I51: 3 | J51: 2 | K51: 0 | L51: 0 | M51: 1 | N51: 1 | O51: =SUM(E51:M51) -> 10 | P51: 40 | Q51: 0.024 | R51: 0.32 | S51: 0 | T51: 0.12 | U51: 1.2 | V51: 0.48 | W51: 0 | X51: 0 | Z51: =P51*Z$41 -> 1.2
B52: 6 | C52: 57 | D52: Makhurisi | E52: 2 | F52: 0 | G52: 0 | H52: 0 | I52: 3 | J52: 1 | K52: 0 | L52: 1 | M52: 1 | N52: =SUM(K52:M52) -> 2 | O52: =SUM(E52:M52) -> 8 | P52: 20 | Q52: 0.048 | R52: 0 | S52: =G52*S$41*$T$39 -> 0 | T52: 0 | U52: 1.2 | V52: 0.24 | W52: 0 | X52: 1.2 | Z52: =P52*Z$41 -> 0.6
B53: 7 | C53: 61 + 95 + 96 | D53: Mumbaka + Mukhondo B + Mugonga | E53: 2 | F53: 0 | G53: 0 | H53: 0 | I53: 6 | J53: 2 | K53: 0 | L53: 1 | M53: 1 | N53: 2 | O53: =SUM(E53:M53) -> 12 | P53: 40 | Q53: 0.048 | R53: 0 | S53: =G53*S$41*$T$39 -> 0 | T53: 0 | U53: 2.4 | V53: 0.48 | W53: 0 | X53: 1.2 | Z53: =P53*Z$41 -> 1.2
C54: 61 | D54: Mumbaka
C55: 95 | D55: Mukhondo B
C56: 96 | D56: Mugonga
B57: 8 | C57: 99 | D57: Namagumba | E57: 1 | F57: 0 | G57: 0 | H57: 0 | I57: 6 | J57: 2 | K57: 0 | L57: 0 | M57: 1 | N57: 1 | O57: =SUM(E57:M57) -> 10 | P57: 20 | Q57: =E57*Q$41*$T$39 -> 0.024 | R57: 0 | S57: 0 | T57: 0 | U57: 2.4 | V57: 0.48 | W57: 0 | X57: 0 | Z57: =P57*Z$41 -> 0.6
B58: 9 | C58: 132 | D58: Akadetewai | E58: 4 | F58: 0 | G58: 0 | H58: 0 | I58: 1 | J58: 8 | K58: 0 | L58: 0 | M58: 1 | N58: 1 | O58: =SUM(E58:M58) -> 14 | P58: 20 | Q58: 0.096 | R58: 0 | S58: 0 | T58: 0 | U58: 0.4 | V58: 1.92 | W58: 0 | X58: 0 | Z58: =P58*Z$41 -> 0.6
B59: 10 | C59: 145 | D59: Syamakanga / Imprezza | E59: 1 | F59: 0 | G59: 1 | H59: 0 | I59: 2 | J59: 1 | K59: 0 | L59: 0 | M59: 1 | N59: 1 | O59: =SUM(E59:M59) -> 6 | P59: 20 | Q59: 0.024 | R59: 0 | S59: 1.6 | T59: 0 | U59: 0.8 | V59: 0.24 | W59: 0 | X59: 0 | Z59: =P59*Z$41 -> 0.6
D60: Total Phase 4 | E60: =SUM(E42,E46:E47,E50:E53,E57:E59) -> 30 | F60: =SUM(F42,F46:F47,F50:F53,F57:F59) -> 4 | G60: 1 | H60: 2 | I60: 60 | J60: 37 | K60: 1 | L60: 6 | M60: 14 | N60: 21 | O60: =SUM(O42,O46:O47,O50:O53,O57:O59) -> 155 | P60: 320 | Q60: 0.72 | R60: 0.64 | S60: 1.6 | T60: 0.24 | U60: 24 | V60: 8.88 | W60: 0.96 | X60: 7.2 | Y60: =SUM(Y42,Y46:Y47,Y50:Y53,Y57:Y59) ->  | Z60: =SUM(Z42,Z46:Z47,Z50:Z53,Z57:Z59) -> 9.6
D62: Site Name | E62: Biz assumptions - energy demand
E63: Total | F63: Public Lighting | G63: kWh/day [@ | J63: =Info!C7 -> 0.8 | K63: Diversity factor] | M63: Hi PEU | Q63: Public Lighting | R63: Daily Cons. [kWh] | S63: Total [kWp]
C64: Site No. | G64: Shop | H64: School | I64: Big School | J64: Clinic | K64: Public services | L64: Low PEU | M64: Wel. | N64: Carp. | O64: Posho. | P64: TOTAL
G65: 0.25 | H65: 0.3 | I65: =8*0.2*3.5 -> 5.6 | J65: 0.6 | K65: 1.5 | L65: 1 | M65: 2.5 | N65: 3 | O65: =Y41 ->  | P65: =SUM(M65:O65) ->  | Q65: =0.03*10 -> 0.3
B66: 1 | C66: 45 + 59 + 60 | D66: Mudoriko + Bwiri A + Bwiri B | E66: =O42 -> 35 | F66: 40 | G66: =E42*G$65*$J$63 -> 1.2 | H66: =F42*H$65*$J$63 -> 0 | I66: 0 | J66: =H42*J$65*$J$63 -> 0.48 | K66: 19.2 | L66: 7.2 | M66: 0 | N66: 2.4 | Q66: =P42*Q$65 -> 12 | R66: =SUM(G66:O66) ->  | S66: =SUM(Q42:Z42) -> 
C67: 45 | D67: Mudoriko | P67: 0
C68: 59 | D68: Bwiri A | P68: 0
C69: 60 | D69: Bwiri B | P69: 0
B70: 2 | C70: 133 | D70: Buyende | E70: =O46 -> 23 | F70: 40 | G70: =E46*G$65*$J$63 -> 1.4 | H70: =F46*H$65*$J$63 -> 0 | I70: 0 | J70: =H46*J$65*$J$63 -> 0 | K70: 10.8 | L70: 2.4 | M70: 2 | N70: 2.4 | Q70: =P46*Q$65 -> 12 | R70: =SUM(G70:O70) ->  | S70: =SUM(Q46:Z46) -> 
B71: 3 | C71: 20 + 62 | D71: Dirako + Rukada | E71: 22 | F71: 40 | G71: =E47*G$65*$J$63 -> 0.8 | H71: =F47*H$65*$J$63 -> 0.48 | I71: 0 | J71: 0 | K71: 8.4 | L71: 4.8 | M71: 0 | N71: 2.4 | Q71: =P47*Q$65 -> 12 | R71: =SUM(G71:O71) ->  | S71: =SUM(Q47:Z47) -> 
C72: 20 | D72: Dirako | E72: 0 | P72: 0
C73: 62 | D73: Rukada | E73: 0 | P73: 0
B74: 4 | C74: 102 | D74: Mukhwayo | E74: 15 | F74: 40 | G74: =E50*G$65*$J$63 -> 0.4 | H74: 0 | I74: 0 | J74: =H50*J$65*$J$63 -> 0 | K74: 8.4 | L74: 2.4 | M74: 0 | N74: 2.4 | Q74: =P50*Q$65 -> 12 | R74: =SUM(G74:O74) ->  | S74: =SUM(Q50:Z50) -> 
B75: 5 | C75: 78 | D75: Mufumu | E75: 10 | F75: 40 | G75: 0.2 | H75: 0.48 | I75: 0 | J75: 0.48 | K75: 3.6 | L75: 1.6 | M75: 0 | N75: 0 | Q75: =P51*Q$65 -> 12 | R75: =SUM(G75:O75) ->  | S75: =SUM(Q51:Z51) -> 
B76: 6 | C76: 57 | D76: Makhurisi | E76: 8 | F76: 20 | G76: 0.4 | H76: 0 | I76: 0 | J76: 0 | K76: 3.6 | L76: 0.8 | M76: 0 | N76: 2.4 | Q76: =P52*Q$65 -> 6 | R76: =SUM(G76:O76) ->  | S76: =SUM(Q52:Z52) -> 
B77: 7 | C77: 61 + 95 + 96 | D77: Mumbaka + Mukhondo B + Mugonga | E77: 12 | F77: 40 | G77: 0.4 | H77: 0 | I77: 0 | J77: 0 | K77: 7.2 | L77: 1.6 | M77: 0 | N77: 2.4 | Q77: =P53*Q$65 -> 12 | R77: =SUM(G77:O77) ->  | S77: =SUM(Q53:Z53) -> 
C78: 61 | D78: Mumbaka | E78: 0 | P78: 0
C79: 95 | D79: Mukhondo B | E79: 0 | P79: 0
C80: 96 | D80: Mugonga | E80: 0 | P80: 0
B81: 8 | C81: 99 | D81: Namagumba | E81: 10 | F81: 20 | G81: =E57*G$65*$J$63 -> 0.2 | H81: 0 | I81: 0 | J81: =H57*J$65*$J$63 -> 0 | K81: 7.2 | L81: 1.6 | M81: 0 | N81: 0 | Q81: =P57*Q$65 -> 6 | R81: =SUM(G81:O81) ->  | S81: =SUM(Q57:Z57) -> 
B82: 9 | C82: 132 | D82: Akadetewai | E82: 14 | F82: 20 | G82: 0.8 | H82: 0 | I82: 0 | J82: 0 | K82: 1.2 | L82: 6.4 | M82: 0 | N82: 0 | Q82: =P58*Q$65 -> 6 | R82: =SUM(G82:O82) ->  | S82: =SUM(Q58:Z58) -> 
B83: 10 | C83: 145 | D83: Syamakanga / Imprezza | E83: 6 | F83: 20 | G83: 0.2 | H83: 0 | I83: =G59*I$65*$J$63 -> 4.48 | J83: 0 | K83: 2.4 | L83: 0.8 | M83: 0 | N83: 0 | Q83: =P59*Q$65 -> 6 | R83: =SUM(G83:O83) ->  | S83: =SUM(Q59:Z59) -> 
D84: Total Phase 4 - daily | E84: 155 | F84: =SUM(F66,F70:F71,F74:F77,F81:F83) -> 320 | G84: =SUM(G66,G70:G71,G74:G77,G81:G83) -> 6 | H84: 0.96 | I84: 4.48 | J84: 0.96 | K84: 72 | L84: 29.6 | M84: 2 | N84: 14.4 | Q84: 96 | S84: =SUM(S66,T70:T71,T74:T77,T81:T83) -> 
D85: kWh/Month per consumer type | G85: =(G65*30) -> 7.5 | H85: 9 | I85: 168 | J85: 18 | K85: 45 | L85: 30 | M85: 75 | N85: 90 | Q85: 9

Sheet Consumer Profiles (hidden)
C2: Monthly amount [EUR] | D2: Fixed fee | E2: kWh / month (Max.) | F2: [EUR] / kWh | G2: Connection fee [EUR]
B4: T1 | C4: 1.5 | D4: 1 | E4: 2 | F4: 0.25 | G4: 25
B5: T2 | C5: 2 | D5: 1 | E5: 4 | F5: 0.25 | G5: 25
B6: T3 | C6: 4.75 | D6: 1.75 | E6: 12 | F6: 0.25 | G6: 35
B7: T4 | C7: 9.6875 | D7: 3.5 | E7: 22.5 | F7: 0.275 | G7: 50
B8: T5 | C8: 21.8 | D8: 5 | E8: 48 | F8: 0.35 | G8: 75
B9: Tier 6 (Business) | C9: 20.7625 | D9: 7.083333333 | E9: 39.08333333 | F9: 0.35 | G9: 79.16666667
B10: Hi PEU | C10: 51.25 | D10: 7.5 | E10: 125 | F10: 0.35 | G10: 150
B11: Posho. | C11: =1.2*C10 -> 61.5
B12: Welding | C12: =1*C10 -> 51.25
B13: Carpentry | C13: =0.75*C10 -> 38.4375
B14: Low PEU | C14: 18 | D14: 7.5 | E14: 30 | F14: 0.35 | G14: 50
B15: Social/Public | C15: 15.9 | D15: 7.5 | E15: 24 | F15: 0.35 | G15: 75
B16: Public services | C16: 23.25 | D16: 7.5 | E16: 45 | F16: 0.35 | G16: 75
B17: Clinic | C17: 13.8 | D17: 7.5 | E17: 18 | F17: 0.35 | G17: 75
B18: School | C18: 10.65 | D18: 7.5 | E18: 9 | F18: 0.35 | G18: 75
B19: Shop | C19: 7.625 | D19: 5 | E19: 7.5 | F19: 0.35 | G19: 50
B20: Public Lighting | C20: 2.475 | E20: 9 | F20: 0.275 | G20: 0

Sheet Info (hidden)
B2: Input table | F2: Notes & considerations:
B3: Description | C3: Phase 4 | G3: 1 - | H3: Reduction the number of poles with public lighting (Considering 40 poles w/ lighting for the main 5 sites and 20 poles w/ lighting for the remaining 20 sites)
B4: HH Eletrification rate (%) | C4: 0.96 | G4: 2 - | H4: Considering 10 hours of public lighting per night (instead of 12h considered initially)
B5: Biz Eletrification rate (%) | C5: 1 | G5: 3 - | H5: Day time demand consist in 20% of total household demand plus 80% of total business demand
B6: HH Diversity factor (%) | C6: 0.65 | G6: 4 - | H6: Night time demand consist in 20% of total business demand plus 80% of total household demand and 100% of public lighting demand
B7: Biz Diversity factor (%) | C7: 0.8 | G7: 5 - | H7: Reducing capacity of generation and storage systems by ~40%
G8: 6 - | H8: Diversity factor ~ Simultaneous demand
B9: Output table
B10: Variable | C10: Phase 4
B11: HH Connections (Qty) | C11: =Assumptions!P24 -> 1684
B12: Biz Connections (Qty) | C12: =Assumptions!O60 -> 155
B13: Total Connections (Qty)
B16: Phase | C16: RVE.SOL CAPEX Investment | D16: Grant Ask | E16: % Grant | F16: TOTAL CAPEX
B18: Phase 3 | C18: =61183-D18 -> 33683 | D18: =550*50 -> 27500 | E18: =D18/F18 -> 0.4494712584 | F18: =SUM(C18:D18) -> 61183
B19: Phase 4 | C19: =Summary_v2!U16-D19 ->  | D19: 1011450 | E19: =D19/F19 ->  | F19: =SUM(C19:D19) -> 
B20: Tech Assistance 002 | D20: 75000
C21: =SUM(C18:C20) ->  | D21: 1113950 | F21: =SUM(F18:F20) -> 

Sheet - (hidden)
G2: 2017 | K2: 2018 | N2: 2019 | Q2: 2020 | T2: 2021 | W2: 2022 | Z2: 2023 | AC2: 2024 | AF2: 2025 | AI2: 2026 | AL2: 2027
D3: Percentage from Surveys (until year 10) | G3: Year 0 | K3: Year 1 | N3: Year 2 | Q3: Year 3 | T3: Year 4 | W3: Year 5 | Z3: Year 6 | AC3: Year 7 | AF3: Year 8 | AI3: Year 9 | AL3: Year 10
B4: Site No. | C4: Site | D4: Low Income HH [%] | E4: Middle Income HH [%] | F4: High Income HH [%] | G4: No. Of Low Income HH [units] | H4: Middle Income HH [units] | I4: High Income HH [units] | J4: Total | K4: No. Of Low Income HH [units] | L4: Middle Income HH [units] | M4: High Income HH [units] | N4: No. Of Low Income HH [units] | O4: Middle Income HH [units] | P4: High Income HH [units] | Q4: No. Of Low Income HH [units] | R4: Middle Income HH [units] | S4: High Income HH [units] | T4: No. Of Low Income HH [units] | U4: Middle Income HH [units] | V4: High Income HH [units] | W4: No. Of Low Income HH [units] | X4: Middle Income HH [units] | Y4: High Income HH [units] | Z4: No. Of Low Income HH [units] | AA4: Middle Income HH [units] | AB4: High Income HH [units] | AC4: No. Of Low Income HH [units] | AD4: Middle Income HH [units] | AE4: High Income HH [units] | AF4: No. Of Low Income HH [units] | AG4: Middle Income HH [units] | AH4: High Income HH [units] | AI4: No. Of Low Income HH [units] | AJ4: Middle Income HH [units] | AK4: High Income HH [units] | AL4: No. Of Low Income HH [units] | AM4: Middle Income HH [units] | AN4: High Income HH [units]
B5: 20 | C5: Dirako | D5: 0.69 | E5: 0.25 | F5: 0.06 | G5: =ROUNDUP(H31*D5,0) -> 114 | H5: =ROUNDUP(H31*E5,0) -> 41 | I5: =ROUNDDOWN(H31*F5,0) -> 9 | J5: =SUM(G5:I5) -> 164 | K5: =ROUNDUP(K31*$D5,0) -> 117 | L5: =ROUNDUP(K31*$E5,0) -> 43 | M5: =ROUNDUP(K31*$F5,0) -> 11 | N5: =ROUNDUP(M31*$D5,0) -> 121 | O5: =ROUNDUP(M31*$E5,0) -> 44 | P5: =ROUNDUP(M31*$F5,0) -> 11 | Q5: =ROUNDUP(O31*$D5,0) -> 124 | R5: =ROUNDUP(O31*$E5,0) -> 45 | S5: =ROUNDUP(O31*$F5,0) -> 11 | T5: =ROUNDUP(Q31*$D5,0) -> 127 | U5: =ROUNDUP(Q31*$E5,0) -> 46 | V5: =ROUNDUP(Q31*$F5,0) -> 12 | W5: =ROUNDUP(S31*$D5,0) -> 132 | X5: =ROUNDUP(S31*$E5,0) -> 48 | Y5: =ROUNDUP(S31*$F5,0) -> 12 | Z5: =ROUNDUP(U31*$D5,0) -> 135 | AA5: =ROUNDUP(U31*$E5,0) -> 49 | AB5: =ROUNDUP(U31*$F5,0) -> 12 | AC5: =ROUNDUP(W31*$D5,0) -> 139 | AD5: =ROUNDUP(W31*$E5,0) -> 51 | AE5: =ROUNDUP(W31*$F5,0) -> 13 | AF5: =ROUNDUP(Y31*$D5,0) -> 143 | AG5: =ROUNDUP(Y31*$E5,0) -> 52 | AH5: =ROUNDUP(Y31*$F5,0) -> 13 | AI5: =ROUNDUP(AA31*$D5,0) -> 147 | AJ5: =ROUNDUP(AA31*$E5,0) -> 54 | AK5: =ROUNDUP(AA31*$F5,0) -> 13 | AL5: =ROUNDUP(AC31*$D5,0) -> 152 | AM5: =ROUNDUP(AC31*$E5,0) -> 55 | AN5: =ROUNDUP(AC31*$F5,0) -> 14
B6: 45 | C6: Mudoriko | D6: 0.61 | E6: 0.27 | F6: 0.12 | G6: =ROUNDUP(H32*D6,0) -> 50 | H6: =ROUNDUP(H32*E6,0) -> 22 | I6: =ROUNDDOWN(H32*F6,0) -> 9 | J6: =SUM(G6:I6) -> 81 | K6: =ROUNDUP(K32*$D6,0) -> 51 | L6: =ROUNDUP(K32*$E6,0) -> 23 | M6: =ROUNDUP(K32*$F6,0) -> 10 | N6: =ROUNDUP(M32*$D6,0) -> 53 | O6: =ROUNDUP(M32*$E6,0) -> 24 | P6: =ROUNDUP(M32*$F6,0) -> 11 | Q6: =ROUNDUP(O32*$D6,0) -> 54 | R6: =ROUNDUP(O32*$E6,0) -> 24 | S6: =ROUNDUP(O32*$F6,0) -> 11 | T6: =ROUNDUP(S32*$D6,0) -> 58 | U6: =ROUNDUP(S32*$E6,0) -> 26 | V6: =ROUNDUP(Q32*$F6,0) -> 11 | W6: =ROUNDUP(S32*$D6,0) -> 58 | X6: =ROUNDUP(S32*$E6,0) -> 26 | Y6: =ROUNDUP(S32*$F6,0) -> 12 | Z6: =ROUNDUP(U32*$D6,0) -> 59 | AA6: =ROUNDUP(U32*$E6,0) -> 26 | AB6: =ROUNDUP(U32*$F6,0) -> 12 | AC6: =ROUNDUP(W32*$D6,0) -> 61 | AD6: =ROUNDUP(W32*$E6,0) -> 27 | AE6: =ROUNDUP(W32*$F6,0) -> 12 | AF6: =ROUNDUP(Y32*$D6,0) -> 63 | AG6: =ROUNDUP(Y32*$E6,0) -> 28 | AH6: =ROUNDUP(Y32*$F6,0) -> 13 | AI6: =ROUNDUP(AA32*$D6,0) -> 65 | AJ6: =ROUNDUP(AA32*$E6,0) -> 29 | AK6: =ROUNDUP(AA32*$F6,0) -> 13 | AL6: =ROUNDUP(AC32*$D6,0) -> 66 | AM6: =ROUNDUP(AC32*$E6,0) -> 30 | AN6: =ROUNDUP(AC32*$F6,0) -> 13
B7: 57 | C7: Makhurisi | D7: 0.43 | E7: 0.47 | F7: 0.1 | G7: 41 | H7: 45 | I7: 9 | J7: 95 | K7: 43 | L7: 47 | M7: 10 | N7: 44 | O7: 48 | P7: 11 | Q7: 45 | R7: 49 | S7: 11 | T7: 48 | U7: 52 | V7: 11 | W7: 48 | X7: 52 | Y7: 11 | Z7: 49 | AA7: 54 | AB7: 12 | AC7: 50 | AD7: 55 | AE7: 12 | AF7: 52 | AG7: 56 | AH7: 12 | AI7: 53 | AJ7: 58 | AK7: 13 | AL7: 55 | AM7: 60 | AN7: 13
B8: 58 | C8: Matavi | D8: 0.45 | E8: 0.45 | F8: 0.1 | G8: 43 | H8: 43 | I8: 9 | J8: 95 | K8: 45 | L8: 45 | M8: 10 | N8: 46 | O8: 46 | P8: 11 | Q8: 47 | R8: 47 | S8: 11 | T8: 50 | U8: 50 | V8: 11 | W8: 50 | X8: 50 | Y8: 11 | Z8: 51 | AA8: 51 | AB8: 12 | AC8: 53 | AD8: 53 | AE8: 12 | AF8: 54 | AG8: 54 | AH8: 12 | AI8: 56 | AJ8: 56 | AK8: 13 | AL8: 57 | AM8: 57 | AN8: 13
B9: 59 | C9: Bwiri A | D9: 0.66 | E9: 0.25 | F9: 0.09 | G9: 84 | H9: =ROUNDDOWN(H35*E9,0) -> 31 | I9: 11 | J9: 126 | K9: 86 | L9: 33 | M9: 12 | N9: 88 | O9: 34 | P9: 12 | Q9: 91 | R9: 35 | S9: 13 | T9: 96 | U9: 37 | V9: 13 | W9: 96 | X9: 37 | Y9: 14 | Z9: 99 | AA9: 38 | AB9: 14 | AC9: 102 | AD9: 39 | AE9: 14 | AF9: 105 | AG9: 40 | AH9: 15 | AI9: 108 | AJ9: 41 | AK9: 15 | AL9: 111 | AM9: 42 | AN9: 16
B10: 60 | C10: Bwiri B | D10: 0.62 | E10: 0.25 | F10: 0.13 | G10: 54 | H10: 22 | I10: 11 | J10: 87 | K10: 56 | L10: 23 | M10: 12 | N10: 58 | O10: 23 | P10: 12 | Q10: 59 | R10: 24 | S10: 13 | T10: 62 | U10: 25 | V10: 13 | W10: 62 | X10: 25 | Y10: 13 | Z10: 64 | AA10: 26 | AB10: 14 | AC10: 66 | AD10: 27 | AE10: 14 | AF10: 68 | AG10: 28 | AH10: 15 | AI10: 70 | AJ10: 28 | AK10: 15 | AL10: 72 | AM10: 29 | AN10: 16
B11: 61 | C11: Mumbaka | D11: 0.59 | E11: 0.21 | F11: 0.2 | G11: 35 | H11: 13 | I11: 11 | J11: 59 | K11: 36 | L11: 13 | M11: 13 | N11: 38 | O11: 14 | P11: 13 | Q11: 38 | R11: 14 | S11: 13 | T11: 41 | U11: 15 | V11: 14 | W11: 41 | X11: 15 | Y11: 14 | Z11: 42 | AA11: 15 | AB11: 14 | AC11: 43 | AD11: 16 | AE11: 15 | AF11: 44 | AG11: 16 | AH11: 15 | AI11: 45 | AJ11: 16 | AK11: 16 | AL11: 47 | AM11: 17 | AN11: 16
B12: 62 | C12: Rukada | D12: 0.71 | E12: 0.25 | F12: 0.04 | G12: 79 | H12: =ROUNDDOWN(H38*E12,0) -> 27 | I12: 4 | J12: 110 | K12: 81 | L12: 29 | M12: 5 | N12: 84 | O12: 30 | P12: 5 | Q12: 86 | R12: 30 | S12: 5 | T12: 91 | U12: 32 | V12: 5 | W12: 91 | X12: 32 | Y12: 6 | Z12: 94 | AA12: 33 | AB12: 6 | AC12: 96 | AD12: 34 | AE12: 6 | AF12: 98 | AG12: 35 | AH12: 6 | AI12: 101 | AJ12: 36 | AK12: 6 | AL12: 105 | AM12: 37 | AN12: 6
B13: 64 | C13: Alemu Obekai | D13: 0.58 | E13: 0.34 | F13: 0.08 | G13: 71 | H13: =ROUNDDOWN(H39*E13,0) -> 41 | I13: 9 | J13: 121 | K13: 72 | L13: 43 | M13: 10 | N13: 75 | O13: 44 | P13: 11 | Q13: 77 | R13: 45 | S13: 11 | T13: 82 | U13: 48 | V13: 11 | W13: 82 | X13: 48 | Y13: 12 | Z13: 84 | AA13: 49 | AB13: 12 | AC13: 86 | AD13: 51 | AE13: 12 | AF13: 89 | AG13: 52 | AH13: 13 | AI13: 92 | AJ13: 54 | AK13: 13 | AL13: 94 | AM13: 55 | AN13: 13
B14: 70 | C14: Oburi | D14: 0.62 | E14: 0.35 | F14: 0.03 | G14: 78 | H14: 44 | I14: 3 | J14: 125 | K14: 80 | L14: 46 | M14: 4 | N14: 82 | O14: 47 | P14: 4 | Q14: 85 | R14: 48 | S14: 5 | T14: 90 | U14: 51 | V14: 5 | W14: 90 | X14: 51 | Y14: 5 | Z14: 92 | AA14: 52 | AB14: 5 | AC14: 95 | AD14: 54 | AE14: 5 | AF14: 98 | AG14: 55 | AH14: 5 | AI14: 101 | AJ14: 57 | AK14: 5 | AL14: 104 | AM14: 59 | AN14: 6
B15: 77 | C15: Angolek | D15: 0.71 | E15: 0.21 | F15: 0.08 | G15: 74 | H15: 22 | I15: 8 | J15: 104 | K15: 76 | L15: 23 | M15: 9 | N15: 79 | O15: 24 | P15: 9 | Q15: 81 | R15: 24 | S15: 10 | T15: 86 | U15: 26 | V15: 10 | W15: 86 | X15: 26 | Y15: 10 | Z15: 88 | AA15: 26 | AB15: 10 | AC15: 91 | AD15: 27 | AE15: 11 | AF15: 94 | AG15: 28 | AH15: 11 | AI15: 96 | AJ15: 29 | AK15: 11 | AL15: 98 | AM15: 29 | AN15: 12
B16: 78 | C16: Mufumu | D16: 0.5 | E16: 0.39 | F16: 0.11 | G16: 109 | H16: 85 | I16: 23 | J16: 217 | K16: 112 | L16: 87 | M16: 25 | N16: 115 | O16: 90 | P16: 26 | Q16: 118 | R16: 93 | S16: 26 | T16: 125 | U16: 98 | V16: 27 | W16: 125 | X16: 98 | Y16: 28 | Z16: 129 | AA16: 101 | AB16: 29 | AC16: 133 | AD16: 104 | AE16: 30 | AF16: 137 | AG16: 107 | AH16: 31 | AI16: 141 | AJ16: 110 | AK16: 31 | AL16: 145 | AM16: 113 | AN16: 32
B17: 94 | C17: Hakati | D17: 0.58 | E17: 0.38 | F17: 0.04 | G17: 35 | H17: 23 | I17: 2 | J17: 60 | K17: 36 | L17: 24 | M17: 3 | N17: 38 | O17: 25 | P17: 3 | Q17: 38 | R17: 25 | S17: 3 | T17: 41 | U17: 27 | V17: 3 | W17: 41 | X17: 27 | Y17: 3 | Z17: 42 | AA17: 27 | AB17: 3 | AC17: 43 | AD17: 28 | AE17: 3 | AF17: 44 | AG17: 29 | AH17: 3 | AI17: 46 | AJ17: 30 | AK17: 4 | AL17: 47 | AM17: 31 | AN17: 4
B18: 95 | C18: Mukhondo B | D18: 0.59 | E18: 0.31 | F18: 0.1 | G18: 38 | H18: 20 | I18: 6 | J18: 64 | K18: 39 | L18: 21 | M18: 7 | N18: 41 | O18: 22 | P18: 7 | Q18: 42 | R18: 22 | S18: 7 | T18: 44 | U18: 23 | V18: 8 | W18: 44 | X18: 23 | Y18: 8 | Z18: 45 | AA18: 24 | AB18: 8 | AC18: 47 | AD18: 25 | AE18: 8 | AF18: 48 | AG18: 25 | AH18: 8 | AI18: 49 | AJ18: 26 | AK18: 9 | AL18: 51 | AM18: 27 | AN18: 9
B19: 96 | C19: Mugonga | D19: 0.7 | E19: 0.28 | F19: 0.02 | G19: 41 | H19: =ROUNDDOWN(H45*E19,0) -> 16 | I19: 1 | J19: 58 | K19: 42 | L19: 17 | M19: 2 | N19: 43 | O19: 18 | P19: 2 | Q19: 45 | R19: 18 | S19: 2 | T19: 47 | U19: 19 | V19: 2 | W19: 47 | X19: 19 | Y19: 2 | Z19: 49 | AA19: 20 | AB19: 2 | AC19: 50 | AD19: 20 | AE19: 2 | AF19: 52 | AG19: 21 | AH19: 2 | AI19: 53 | AJ19: 21 | AK19: 2 | AL19: 54 | AM19: 22 | AN19: 2
B20: 99 | C20: Namagumba | D20: 0.56 | E20: 0.3 | F20: 0.14 | G20: 62 | H20: =ROUNDDOWN(H46*E20,0) -> 32 | I20: 15 | J20: 109 | K20: 63 | L20: 34 | M20: 16 | N20: 65 | O20: 35 | P20: 17 | Q20: 67 | R20: 36 | S20: 17 | T20: 71 | U20: 38 | V20: 18 | W20: 71 | X20: 38 | Y20: 18 | Z20: 73 | AA20: 39 | AB20: 19 | AC20: 75 | AD20: 40 | AE20: 19 | AF20: 77 | AG20: 42 | AH20: 20 | AI20: 79 | AJ20: 43 | AK20: 20 | AL20: 82 | AM20: 44 | AN20: 21
B21: 102 | C21: Mukhwayo | D21: 0.69 | E21: 0.21 | F21: 0.1 | G21: 116 | H21: 36 | I21: 16 | J21: 168 | K21: 120 | L21: 37 | M21: 18 | N21: 123 | O21: 38 | P21: 18 | Q21: 127 | R21: 39 | S21: 19 | T21: 134 | U21: 41 | V21: 19 | W21: 134 | X21: 41 | Y21: 20 | Z21: 138 | AA21: 42 | AB21: 20 | AC21: 142 | AD21: 44 | AE21: 21 | AF21: 146 | AG21: 45 | AH21: 22 | AI21: 150 | AJ21: 46 | AK21: 22 | AL21: 155 | AM21: 48 | AN21: 23
B22: 129 | C22: Muguli | D22: 0.51 | E22: 0.41 | F22: 0.08 | G22: 50 | H22: 40 | I22: 7 | J22: 97 | K22: 51 | L22: 41 | M22: 8 | N22: 53 | O22: 43 | P22: 9 | Q22: 55 | R22: 44 | S22: 9 | T22: 58 | U22: 46 | V22: 9 | W22: 58 | X22: 46 | Y22: 9 | Z22: 59 | AA22: 48 | AB22: 10 | AC22: 61 | AD22: 49 | AE22: 10 | AF22: 63 | AG22: 51 | AH22: 10 | AI22: 64 | AJ22: 52 | AK22: 10 | AL22: 66 | AM22: 53 | AN22: 11
B23: 132 | C23: Akadetewai | D23: 0.66 | E23: 0.22 | F23: 0.12 | G23: 82 | H23: =ROUNDDOWN(H49*E23,0) -> 27 | I23: 14 | J23: 123 | K23: 84 | L23: 28 | M23: 16 | N23: 86 | O23: 29 | P23: 16 | Q23: 89 | R23: 30 | S23: 17 | T23: 94 | U23: 32 | V23: 17 | W23: 94 | X23: 32 | Y23: 18 | Z23: 97 | AA23: 33 | AB23: 18 | AC23: 99 | AD23: 33 | AE23: 18 | AF23: 103 | AG23: 35 | AH23: 19 | AI23: 105 | AJ23: 35 | AK23: 20 | AL23: 109 | AM23: 37 | AN23: 20
B24: 133 | C24: Buyende | D24: 0.63 | E24: 0.31 | F24: 0.06 | G24: 120 | H24: 59 | I24: 11 | J24: 190 | K24: 124 | L24: 61 | M24: 12 | N24: 127 | O24: 63 | P24: 13 | Q24: 131 | R24: 65 | S24: 13 | T24: 138 | U24: 68 | V24: 13 | W24: 138 | X24: 68 | Y24: 14 | Z24: 143 | AA24: 71 | AB24: 14 | AC24: 147 | AD24: 72 | AE24: 14 | AF24: 151 | AG24: 75 | AH24: 15 | AI24: 155 | AJ24: 77 | AK24: 15 | AL24: 160 | AM24: 79 | AN24: 16
B25: 136 | C25: Mudembi | D25: 0.63 | E25: 0.34 | F25: 0.03 | G25: 48 | H25: 26 | I25: 2 | J25: 76 | K25: 50 | L25: 27 | M25: 3 | N25: 51 | O25: 28 | P25: 3 | Q25: 53 | R25: 29 | S25: 3 | T25: 56 | U25: 30 | V25: 3 | W25: 56 | X25: 30 | Y25: 3 | Z25: 57 | AA25: 31 | AB25: 3 | AC25: 59 | AD25: 32 | AE25: 3 | AF25: 60 | AG25: 33 | AH25: 3 | AI25: 62 | AJ25: 34 | AK25: 3 | AL25: 64 | AM25: 35 | AN25: 4
B26: 155 | C26: Imprezza | D26: 0.49 | E26: 0.45 | F26: 0.06 | G26: 51 | H26: 47 | I26: 6 | J26: 104 | K26: 52 | L26: 48 | M26: 7 | N26: 54 | O26: 50 | P26: 7 | Q26: 55 | R26: 51 | S26: 7 | T26: 59 | U26: 54 | V26: 7 | W26: 59 | X26: 54 | Y26: 8 | Z26: 60 | AA26: 55 | AB26: 8 | AC26: 62 | AD26: 57 | AE26: 8 | AF26: 64 | AG26: 59 | AH26: 8 | AI26: 66 | AJ26: 60 | AK26: 8 | AL26: 68 | AM26: 62 | AN26: 9
F27: =SUM(G27:I27) -> 2433 | G27: =SUM(G5:G26) -> 1475 | H27: =SUM(H5:H26) -> 762 | I27: 196 | J27: =SUM(J5:J26) -> 2433
G29: Year 0 | H29: 2017 | I29: Year 1 | K29: 2018 | L29: Year 2 | M29: 2019 | N29: Year 3 | O29: 2020 | P29: Year 4 | Q29: 2021 | R29: Year 5 | S29: 2022 | T29: Year 6 | U29: 2023 | V29: Year 7 | W29: 2024 | X29: Year 8 | Y29: 2025 | Z29: Year 9 | AA29: 2026 | AB29: Year 10 | AC29: 2027
B30: Site No. | C30: Site | D30: No. Inhabitants | E30: Inhabitants per HH | F30: Population Growth [%] | G30: No. Inhabitants | H30: No. Of HH | I30: No. Inhabitants | K30: No. Of HH | L30: No. Inhabitants | M30: No. Of HH | N30: No. Inhabitants | O30: No. Of HH | P30: No. Inhabitants | Q30: No. Of HH | R30: No. Inhabitants | S30: No. Of HH | T30: No. Inhabitants | U30: No. Of HH | V30: No. Inhabitants | W30: No. Of HH | X30: No. Inhabitants | Y30: No. Of HH | Z30: No. Inhabitants | AA30: No. Of HH | AB30: No. Inhabitants | AC30: No. Of HH
B31: 20 | C31: Dirako | D31: 1098 | E31: 6.69 | F31: 0.029 | G31: =D31 -> 1098 | H31: =ROUND(D31/E31,0) -> 164 | I31: =ROUND(D31+(D31*$F$31),0) -> 1130 | K31: =ROUND(I31/E31,0) -> 169 | L31: =ROUND(I31+(I31*F31),0) -> 1163 | M31: =ROUND(L31/E31,0) -> 174 | N31: =ROUND(L31+(L31*F31),0) -> 1197 | O31: =ROUND(N31/E31,0) -> 179 | P31: =ROUND(N31+(N31*F31),0) -> 1232 | Q31: =ROUND(P31/E31,0) -> 184 | R31: =ROUND(P31+(P31*F31),0) -> 1268 | S31: =ROUND(R31/E31,0) -> 190 | T31: =ROUND(R31+(R31*F31),0) -> 1305 | U31: =ROUND(T31/E31,0) -> 195 | V31: =ROUND(T31+(T31*F31),0) -> 1343 | W31: =ROUND(V31/E31,0) -> 201 | X31: =ROUND(V31+(V31*F31),0) -> 1382 | Y31: =ROUND(X31/E31,0) -> 207 | Z31: =ROUND(X31+(X31*F31),0) -> 1422 | AA31: =ROUND(Z31/E31,0) -> 213 | AB31: =ROUND(Z31+(Z31*F31),0) -> 1463 | AC31: =ROUND(AB31/E31,0) -> 219
B32: 45 | C32: Mudoriko | D32: 576 | E32: 7.11 | F32: 0.029 | G32: =D32 -> 576 | H32: =ROUND(D32/E32,0) -> 81 | I32: =ROUND(D32+(D32*F32),0) -> 593 | K32: =ROUND(I32/E32,0) -> 83 | L32: 610 | M32: =ROUND(L32/E32,0) -> 86 | N32: 628 | O32: =ROUND(N32/E32,0) -> 88 | P32: 646 | Q32: =ROUND(P32/E32,0) -> 91 | R32: 665 | S32: =ROUND(R32/E32,0) -> 94 | T32: 684 | U32: =ROUND(T32/E32,0) -> 96 | V32: 704 | W32: =ROUND(V32/E32,0) -> 99 | X32: 724 | Y32: =ROUND(X32/E32,0) -> 102 | Z32: 745 | AA32: =ROUND(Z32/E32,0) -> 105 | AB32: 767 | AC32: =ROUND(AB32/E32,0) -> 108
B33: 57 | C33: Makhurisi | D33: 599 | E33: 6.3 | F33: 0.029 | G33: 599 | H33: 95 | I33: 616 | K33: 98 | L33: 634 | M33: 101 | N33: 652 | O33: 103 | P33: 671 | Q33: 107 | R33: 690 | S33: 110 | T33: 710 | U33: 113 | V33: 731 | W33: 116 | X33: 752 | Y33: 119 | Z33: 774 | AA33: 123 | AB33: 796 | AC33: 126
B34: 58 | C34: Matavi | D34: 593 | E34: 6.24 | F34: 0.029 | G34: 593 | H34: 95 | I34: 610 | K34: 98 | L34: 628 | M34: 101 | N34: 646 | O34: 104 | P34: 665 | Q34: 107 | R34: 684 | S34: 110 | T34: 704 | U34: 113 | V34: 724 | W34: 116 | X34: 745 | Y34: 119 | Z34: 767 | AA34: 123 | AB34: 789 | AC34: 126
B35: 59 | C35: Bwiri A | D35: 786 | E35: 6.24 | F35: 0.029 | G35: 786 | H35: 126 | I35: 809 | K35: 130 | L35: 832 | M35: 133 | N35: 856 | O35: 137 | P35: 881 | Q35: 141 | R35: 907 | S35: 145 | T35: 933 | U35: 150 | V35: 960 | W35: 154 | X35: 988 | Y35: 158 | Z35: 1017 | AA35: 163 | AB35: 1046 | AC35: 168
B36: 60 | C36: Bwiri B | D36: 517 | E36: 5.94 | F36: 0.029 | G36: 517 | H36: 87 | I36: 532 | K36: 90 | L36: 547 | M36: 92 | N36: 563 | O36: 95 | P36: 579 | Q36: 97 | R36: 596 | S36: 100 | T36: 613 | U36: 103 | V36: 631 | W36: 106 | X36: 649 | Y36: 109 | Z36: 668 | AA36: 112 | AB36: 687 | AC36: 116
B37: 61 | C37: Mumbaka | D37: 311 | E37: 5.26 | F37: 0.029 | G37: 311 | H37: 59 | I37: 320 | K37: 61 | L37: 329 | M37: 63 | N37: 339 | O37: 64 | P37: 349 | Q37: 66 | R37: 359 | S37: 68 | T37: 369 | U37: 70 | V37: 380 | W37: 72 | X37: 391 | Y37: 74 | Z37: 402 | AA37: 76 | AB37: 414 | AC37: 79
B38: 62 | C38: Rukada | D38: 724 | E38: 6.58 | F38: 0.029 | G38: 724 | H38: 110 | I38: 745 | K38: 113 | L38: 767 | M38: 117 | N38: 789 | O38: 120 | P38: 812 | Q38: 123 | R38: 836 | S38: 127 | T38: 860 | U38: 131 | V38: 885 | W38: 134 | X38: 911 | Y38: 138 | Z38: 937 | AA38: 142 | AB38: 964 | AC38: 147
B39: 64 | C39: Alemu Obekai | D39: 835 | E39: 6.9 | F39: 0.029 | G39: 835 | H39: 121 | I39: 859 | K39: 124 | L39: 884 | M39: 128 | N39: 910 | O39: 132 | P39: 936 | Q39: 136 | R39: 963 | S39: 140 | T39: 991 | U39: 144 | V39: 1020 | W39: 148 | X39: 1050 | Y39: 152 | Z39: 1080 | AA39: 157 | AB39: 1111 | AC39: 161
B40: 70 | C40: Oburi | D40: 813 | E40: 6.5 | F40: 0.029 | G40: 813 | H40: 125 | I40: 837 | K40: 129 | L40: 861 | M40: 132 | N40: 886 | O40: 136 | P40: 912 | Q40: 140 | R40: 938 | S40: 144 | T40: 965 | U40: 148 | V40: 993 | W40: 153 | X40: 1022 | Y40: 157 | Z40: 1052 | AA40: 162 | AB40: 1083 | AC40: 167
B41: 77 | C41: Angolek | D41: 632 | E41: 6.08 | F41: 0.029 | G41: 632 | H41: 104 | I41: 650 | K41: 107 | L41: 669 | M41: 110 | N41: 688 | O41: 113 | P41: 708 | Q41: 116 | R41: 729 | S41: 120 | T41: 750 | U41: 123 | V41: 772 | W41: 127 | X41: 794 | Y41: 131 | Z41: 817 | AA41: 134 | AB41: 841 | AC41: 138
B42: 78 | C42: Mufumu | D42: 1387 | E42: 6.39 | F42: 0.029 | G42: 1387 | H42: 217 | I42: 1427 | K42: 223 | L42: 1468 | M42: 230 | N42: 1511 | O42: 236 | P42: 1555 | Q42: 243 | R42: 1600 | S42: 250 | T42: 1646 | U42: 258 | V42: 1694 | W42: 265 | X42: 1743 | Y42: 273 | Z42: 1794 | AA42: 281 | AB42: 1846 | AC42: 289
B43: 94 | C43: Hakati | D43: 333 | E43: 5.55 | F43: 0.029 | G43: 333 | H43: 60 | I43: 343 | K43: 62 | L43: 353 | M43: 64 | N43: 363 | O43: 65 | P43: 374 | Q43: 67 | R43: 385 | S43: 69 | T43: 396 | U43: 71 | V43: 407 | W43: 73 | X43: 419 | Y43: 75 | Z43: 431 | AA43: 78 | AB43: 443 | AC43: 80
B44: 95 | C44: Mukhondo B | D44: 376 | E44: 5.88 | F44: 0.029 | G44: 376 | H44: 64 | I44: 387 | K44: 66 | L44: 398 | M44: 68 | N44: 410 | O44: 70 | P44: 422 | Q44: 72 | R44: 434 | S44: 74 | T44: 447 | U44: 76 | V44: 460 | W44: 78 | X44: 473 | Y44: 80 | Z44: 487 | AA44: 83 | AB44: 501 | AC44: 85
B45: 96 | C45: Mugonga | D45: 369 | E45: 6.36 | F45: 0.029 | G45: 369 | H45: 58 | I45: 380 | K45: 60 | L45: 391 | M45: 61 | N45: 402 | O45: 63 | P45: 414 | Q45: 65 | R45: 426 | S45: 67 | T45: 438 | U45: 69 | V45: 451 | W45: 71 | X45: 464 | Y45: 73 | Z45: 477 | AA45: 75 | AB45: 491 | AC45: 77
B46: 99 | C46: Namagumba | D46: 725 | E46: 6.65 | F46: 0.029 | G46: 725 | H46: 109 | I46: 746 | K46: 112 | L46: 768 | M46: 115 | N46: 790 | O46: 119 | P46: 813 | Q46: 122 | R46: 837 | S46: 126 | T46: 861 | U46: 129 | V46: 886 | W46: 133 | X46: 912 | Y46: 137 | Z46: 938 | AA46: 141 | AB46: 965 | AC46: 145
B47: 102 | C47: Mukhwayo | D47: 1322 | E47: 7.87 | F47: 0.029 | G47: 1322 | H47: 168 | I47: 1360 | K47: 173 | L47: 1399 | M47: 178 | N47: 1440 | O47: 183 | P47: 1482 | Q47: 188 | R47: 1525 | S47: 194 | T47: 1569 | U47: 199 | V47: 1615 | W47: 205 | X47: 1662 | Y47: 211 | Z47: 1710 | AA47: 217 | AB47: 1760 | AC47: 224
B48: 129 | C48: Muguli | D48: 599 | E48: 6.17 | F48: 0.029 | G48: 599 | H48: 97 | I48: 616 | K48: 100 | L48: 634 | M48: 103 | N48: 652 | O48: 106 | P48: 671 | Q48: 109 | R48: 690 | S48: 112 | T48: 710 | U48: 115 | V48: 731 | W48: 118 | X48: 752 | Y48: 122 | Z48: 774 | AA48: 125 | AB48: 796 | AC48: 129
B49: 132 | C49: Akadetewai | D49: 738 | E49: 6 | F49: 0.029 | G49: 738 | H49: 123 | I49: 759 | K49: 127 | L49: 781 | M49: 130 | N49: 804 | O49: 134 | P49: 827 | Q49: 138 | R49: 851 | S49: 142 | T49: 876 | U49: 146 | V49: 901 | W49: 150 | X49: 927 | Y49: 155 | Z49: 954 | AA49: 159 | AB49: 982 | AC49: 164
B50: 133 | C50: Buyende | D50: 1287 | E50: 6.77 | F50: 0.029 | G50: 1287 | H50: 190 | I50: 1324 | K50: 196 | L50: 1362 | M50: 201 | N50: 1401 | O50: 207 | P50: 1442 | Q50: 213 | R50: 1484 | S50: 219 | T50: 1527 | U50: 226 | V50: 1571 | W50: 232 | X50: 1617 | Y50: 239 | Z50: 1664 | AA50: 246 | AB50: 1712 | AC50: 253
B51: 136 | C51: Mudembi | D51: 418 | E51: 5.5 | F51: 0.029 | G51: 418 | H51: 76 | I51: 430 | K51: 78 | L51: 442 | M51: 80 | N51: 455 | O51: 83 | P51: 468 | Q51: 85 | R51: 482 | S51: 88 | T51: 496 | U51: 90 | V51: 510 | W51: 93 | X51: 525 | Y51: 95 | Z51: 540 | AA51: 98 | AB51: 556 | AC51: 101
B52: 145 | C52: Imprezza | D52: 584 | E52: 5.67 | F52: 0.029 | G52: 584 | H52: 103 | I52: 601 | K52: 106 | L52: 618 | M52: 109 | N52: 636 | O52: 112 | P52: 654 | Q52: 115 | R52: 673 | S52: 119 | T52: 693 | U52: 122 | V52: 713 | W52: 126 | X52: 734 | Y52: 129 | Z52: 755 | AA52: 133 | AB52: 777 | AC52: 137
H55: ph4 | I55: ph5
E56: =C5 -> Dirako | F56: =SUM(G5:I5) -> 164 | G56: 1 | H56: =F56 -> 164 | K56: =0.85 -> 0.85 | L56: =H56*K56 -> 139.4
E57: =C6 -> Mudoriko | F57: =SUM(G6:I6) -> 81 | G57: 1 | H57: =F57 -> 81 | K57: =0.85 -> 0.85 | L57: =H57*K57 -> 68.85
E58: Makhurisi | F58: 95 | G58: 1 | I58: =F58 -> 95 | K58: 0.85 | L58: 0
E59: Matavi | F59: 95 | G59: 1 | I59: =F59 -> 95 | K59: 0.85 | L59: 0
E60: Bwiri A | F60: 126 | G60: 1 | H60: 126 | K60: 0.85 | L60: 107.1
E61: Bwiri B | F61: 87 | G61: 1 | H61: 87 | K61: 0.85 | L61: 73.95
E62: Mumbaka | F62: 59 | G62: 1 | I62: 59 | K62: 0.85 | L62: 0
E63: Rukada | F63: 110 | G63: 1 | H63: 110 | K63: 0.85 | L63: 93.5
E64: Alemu Obekai | F64: 121 | G64: 1 | I64: 121 | K64: 0.85 | L64: 0
E65: Oburi | F65: 125 | G65: 1 | I65: 125 | K65: 0.85 | L65: 0
E66: Angolek | F66: 104 | G66: 1 | I66: 104 | K66: 0.85 | L66: 0
E67: Mufumu | F67: 217 | G67: 1 | H67: 217 | K67: 0.85 | L67: 184.45
E68: Hakati | F68: 60 | G68: 1 | I68: 60 | K68: 0.85 | L68: 0
E69: Mukhondo B | F69: 64 | G69: 1 | I69: 64 | K69: 0.85 | L69: 0
E70: Mugonga | F70: 58 | G70: 1 | I70: 58 | K70: 0.85 | L70: 0
E71: Namagumba | F71: 109 | G71: 1 | I71: 109 | K71: 0.85 | L71: 0
E72: Mukhwayo | F72: 168 | G72: 1 | H72: 168 | K72: 0.85 | L72: 142.8
E73: =C22 -> Muguli | F73: 97 | G73: 1 | I73: 97 | K73: 0.85 | L73: 0
E74: Akadetewai | F74: 123 | G74: 1 | I74: 123 | K74: 0.85 | L74: 0
E75: Buyende | F75: 190 | G75: 1 | H75: 190 | K75: 0.85 | L75: 161.5
E76: Mudembi | F76: 76 | G76: 1 | I76: 76 | K76: 0.85 | L76: 0
E77: Imprezza | F77: 104 | G77: 1 | I77: 104 | K77: 0.85 | L77: 0
F78: =SUM(F56:F77) -> 2433 | G78: =SUM(G56:G77) -> 22 | H78: =SUM(H56:H77) -> 1143 | I78: =SUM(I56:I77) -> 1290
